﻿Directorate,Service,Division,Responsible Unit,Expense Type,Payment Date,Trans No,Net Amount,Supplier Name
Adults Services,Adult Social Care,Physical Support - adults (18-64),Mental Health Commissioning,Social Care - Supported Accommodation,02/12/2016,3638879,753.72,Look Ahead Care & Support Ltd
Adults Services,Adult Social Care,Physical Support - adults (18-64),Public Health � Healthy Communities,Third Party Payments - Voluntary Associations,02/12/2016,3762006,"15,037.22",Account 3 Ltd
Adults Services,Adult Social Care,Support with Memory and Cognition - adults (18-64),Generic Care Packages SW Team - PS,Social Care - Homecare,02/12/2016,3772036,"13,918.11",Active Assistance
Adults Services,Adult Social Care,Support with Memory and Cognition - adults (18-64),Tower Hamlets Care Alarms,Educational/Training Supplies - Resources,02/12/2016,3774478,"2,637.01",Medpage Ltd t/a Easylink UK
Adults Services,Adult Social Care,Support with Memory and Cognition - adults (18-64),Tower Hamlets Care Alarms,Subscriptions - Subscriptions to Associations,02/12/2016,3775773,"4,197.00",Just Checking Ltd
Adults Services,Adult Social Care,Support with Memory and Cognition - adults (18-64),CLDS Longer Term Support Teams,Social Care - Homecare,02/12/2016,3777028,"4,155.84",Look Ahead Care & Support Ltd
Adults Services,Adult Social Care,Support with Memory and Cognition - adults (18-64),CLDS Longer Term Support Teams,Social Care - Homecare,02/12/2016,3777029,"2,120.30",Look Ahead Care & Support Ltd
Adults Services,Adult Social Care,Support with Memory and Cognition - adults (18-64),CLDS Longer Term Support Teams,Social Care - Homecare,02/12/2016,3777030,"1,660.75",Look Ahead Care & Support Ltd
Adults Services,Adult Social Care,Support with Memory and Cognition - adults (18-64),CLDS Longer Term Support Teams,Social Care - Homecare,02/12/2016,3777031,"1,660.75",Look Ahead Care & Support Ltd
Adults Services,Adult Social Care,Support with Memory and Cognition - adults (18-64),Cmht Bethnal Green,Social Care - Supported Living,02/12/2016,3777313,769.96,Look Ahead Care & Support Ltd
Adults Services,Adult Social Care,Support with Memory and Cognition - adults (18-64),Cmht Bethnal Green,Social Care - Supported Living,02/12/2016,3777314,759.32,Look Ahead Care & Support Ltd
Adults Services,Adult Social Care,Support with Memory and Cognition - adults (18-64),Cmht Bethnal Green,Social Care - Supported Living,02/12/2016,3777315,645.12,Look Ahead Care & Support Ltd
Adults Services,Adult Social Care,Support with Memory and Cognition - adults (18-64),Cmht Iod / Poplar South,Social Care - Supported Living,02/12/2016,3777316,759.32,Look Ahead Care & Support Ltd
Adults Services,Adult Social Care,Support with Memory and Cognition - adults (18-64),Cmht Bethnal Green,Social Care - Supported Living,02/12/2016,3777317,840.48,Look Ahead Care & Support Ltd
Adults Services,Adult Social Care,Support with Memory and Cognition - adults (18-64),Cmht Stepney / Wapping,Social Care - Supported Living,02/12/2016,3777318,679.68,Look Ahead Care & Support Ltd
Adults Services,Adult Social Care,Support with Memory and Cognition - adults (18-64),Cmht Iod / Poplar South,Social Care - Supported Living,02/12/2016,3777319,852.12,Look Ahead Care & Support Ltd
Adults Services,Adult Social Care,Support with Memory and Cognition - adults (18-64),CLDS Longer Term Support Teams,Social Care - Supported Living,02/12/2016,3777329,"5,678.00",Church House
Adults Services,General Fund/Council Fund,Homelessness,Supporting People Services,SP - Block-Gross - Old People-Supp Needs,02/12/2016,3777511,585.00,London Borough Of Newham
Adults Services,No Service Specified,No Division Specified,Community Equipment Store,Uniforms & Clothing,02/12/2016,3777554,988.89,Enfield Safety Supplies
Adults Services,Adult Social Care,Physical Support - adults (18-64),Public Health � Healthy 0-5 year olds,Third Party Payments - Other Establishments,02/12/2016,3777915,"591,095.00",Tower Hamlets GP Care Group CIC
Adults Services,Adult Social Care,Support with Memory and Cognition - adults (18-64),CLDS Longer Term Support Teams,Social Care - Homecare,02/12/2016,3778121,"1,660.75",Look Ahead Care & Support Ltd
Adults Services,Adult Social Care,Support with Memory and Cognition - adults (18-64),CLDS Longer Term Support Teams,Social Care - Residential Care,02/12/2016,3778383,"13,562.40",AUGUSTA CARE LTD
Adults Services,Adult Social Care,Support with Memory and Cognition - adults (18-64),Generic Care Packages SE Team -PS,Social Care - Residential Care,02/12/2016,3778888,505.34,CARE UK COMMUNITY PARTNERSHIPS LTD
Adults Services,Adult Social Care,Support with Memory and Cognition - adults (18-64),CLDS Longer Term Support Teams,Social Care - Day Care,02/12/2016,3781485,918.00,THE GARWOOD FOUNDATION
Adults Services,Adult Social Care,Service Strategy,Disability and Health M&A,Third Party Payments - Payments to Schools,02/12/2016,3782918,"36,765.68",LONDON BOROUGH OF GREENWICH
Adults Services,Adult Social Care,Support with Memory and Cognition - adults (18-64),Generic Care Packages NW Team -PS,Social Care - Direct Payments,02/12/2016,3785875,"-1,055.25",DAVID HOWARD LTD CLIENT ACCOUNT
Adults Services,Adult Social Care,Support with Memory and Cognition - adults (18-64),Generic Care Packages SE Team -PS,Social Care - Nursing Care,02/12/2016,3786128,"2,113.59",Sunhill Court
Adults Services,Adult Social Care,Support with Memory and Cognition - adults (18-64),Generic Care Packages SW Team - PS,Social Care - Direct Payments,02/12/2016,3788205,-799.20,DAVID HOWARD LTD CLIENT ACCOUNT
Adults Services,Adult Social Care,Support with Memory and Cognition - adults (18-64),Generic Care Packages NW Team -PS,Social Care - Direct Payments,02/12/2016,3788206,"-1,090.72",DAVID HOWARD LTD CLIENT ACCOUNT
Adults Services,Adult Social Care,Support with Memory and Cognition - adults (18-64),Generic Care Packages NW Team -PS,Social Care - Direct Payments,02/12/2016,3788208,"1,231.23",DAVID HOWARD LTD CLIENT ACCOUNT
Adults Services,Adult Social Care,Support with Memory and Cognition - adults (18-64),CLDS Longer Term Support Teams,Social Care - Respite Care,02/12/2016,3789526,537.00,VIBRANCE
Adults Services,Adult Social Care,Support with Memory and Cognition - adults (18-64),CLDS Longer Term Support Teams,Social Care - Day Care,02/12/2016,3789527,"1,533.75",VIBRANCE
Adults Services,Adult Social Care,Support with Memory and Cognition - adults (18-64),CLDS Longer Term Support Teams,Social Care - Respite Care,02/12/2016,3789528,745.00,VIBRANCE
Adults Services,Adult Social Care,Support with Memory and Cognition - adults (18-64),CLDS Longer Term Support Teams,Social Care - Day Care,02/12/2016,3789529,"1,376.00",VIBRANCE
Adults Services,Adult Social Care,Support with Memory and Cognition - adults (18-64),CLDS Longer Term Support Teams,Social Care - Day Care,02/12/2016,3789531,"1,240.00",VIBRANCE
Adults Services,Adult Social Care,Support with Memory and Cognition - adults (18-64),CLDS Longer Term Support Teams,Social Care - Day Care,02/12/2016,3789532,806.00,VIBRANCE
Adults Services,Adult Social Care,Support with Memory and Cognition - adults (18-64),CLDS Longer Term Support Teams,Social Care - Day Care,02/12/2016,3789533,"1,505.00",VIBRANCE
Adults Services,Adult Social Care,Support with Memory and Cognition - adults (18-64),CLDS Longer Term Support Teams,Social Care - Day Care,02/12/2016,3789534,"1,240.00",VIBRANCE
Adults Services,Adult Social Care,Support with Memory and Cognition - adults (18-64),CLDS Longer Term Support Teams,Social Care - Day Care,02/12/2016,3789535,"1,556.00",VIBRANCE
Adults Services,Adult Social Care,Support with Memory and Cognition - adults (18-64),CLDS Longer Term Support Teams,Social Care - Day Care,02/12/2016,3789536,"1,054.00",VIBRANCE
Adults Services,Adult Social Care,Support with Memory and Cognition - adults (18-64),CLDS Longer Term Support Teams,Social Care - Day Care,02/12/2016,3789537,992.00,VIBRANCE
Adults Services,Adult Social Care,Support with Memory and Cognition - adults (18-64),CLDS Longer Term Support Teams,Social Care - Day Care,02/12/2016,3789538,992.00,VIBRANCE
Adults Services,Adult Social Care,Support with Memory and Cognition - adults (18-64),CLDS Longer Term Support Teams,Social Care - Day Care,02/12/2016,3789539,"1,692.00",VIBRANCE
Adults Services,Adult Social Care,Support with Memory and Cognition - adults (18-64),CLDS Longer Term Support Teams,Social Care - Day Care,02/12/2016,3789540,"1,128.00",VIBRANCE
Adults Services,Adult Social Care,Support with Memory and Cognition - adults (18-64),CLDS Longer Term Support Teams,Social Care - Day Care,02/12/2016,3789541,"2,820.00",VIBRANCE
Adults Services,Adult Social Care,Support with Memory and Cognition - adults (18-64),CLDS Longer Term Support Teams,Social Care - Day Care,02/12/2016,3789542,"2,820.00",VIBRANCE
Adults Services,Adult Social Care,Support with Memory and Cognition - adults (18-64),CLDS Longer Term Support Teams,Social Care - Day Care,02/12/2016,3789543,"2,185.50",VIBRANCE
Adults Services,Adult Social Care,Support with Memory and Cognition - adults (18-64),CLDS Longer Term Support Teams,Social Care - Day Care,02/12/2016,3789544,"2,820.00",VIBRANCE
Adults Services,Adult Social Care,Support with Memory and Cognition - adults (18-64),CLDS Longer Term Support Teams,Social Care - Day Care,02/12/2016,3789545,"2,679.00",VIBRANCE
Adults Services,Adult Social Care,Support with Memory and Cognition - adults (18-64),CLDS Longer Term Support Teams,Social Care - Day Care,02/12/2016,3789546,"2,820.00",VIBRANCE
Adults Services,Adult Social Care,Support with Memory and Cognition - adults (18-64),CLDS Longer Term Support Teams,Social Care - Day Care,02/12/2016,3789547,"2,679.00",VIBRANCE
Adults Services,Adult Social Care,Support with Memory and Cognition - adults (18-64),CLDS Longer Term Support Teams,Social Care - Day Care,02/12/2016,3789548,707.20,VIBRANCE
Adults Services,Adult Social Care,Support with Memory and Cognition - adults (18-64),CLDS Longer Term Support Teams,Social Care - Day Care,02/12/2016,3789550,"1,266.00",VIBRANCE
Adults Services,Adult Social Care,Support with Memory and Cognition - adults (18-64),CLDS Longer Term Support Teams,Social Care - Day Care,02/12/2016,3789551,744.00,VIBRANCE
Adults Services,Adult Social Care,Support with Memory and Cognition - adults (18-64),CLDS Longer Term Support Teams,Social Care - Day Care,02/12/2016,3789552,"1,240.00",VIBRANCE
Adults Services,Adult Social Care,Support with Memory and Cognition - adults (18-64),CLDS Longer Term Support Teams,Social Care - Day Care,02/12/2016,3789553,"1,872.00",VIBRANCE
Adults Services,Adult Social Care,Support with Memory and Cognition - adults (18-64),CLDS Longer Term Support Teams,Social Care - Day Care,02/12/2016,3789554,"1,308.00",VIBRANCE
Adults Services,Adult Social Care,Support with Memory and Cognition - adults (18-64),CLDS Longer Term Support Teams,Social Care - Day Care,02/12/2016,3789555,"1,240.00",VIBRANCE
Adults Services,Adult Social Care,Support with Memory and Cognition - adults (18-64),CLDS Longer Term Support Teams,Social Care - Day Care,02/12/2016,3789556,"1,692.00",VIBRANCE
Adults Services,Adult Social Care,Support with Memory and Cognition - adults (18-64),CLDS Longer Term Support Teams,Social Care - Day Care,02/12/2016,3789557,620.00,VIBRANCE
Adults Services,Adult Social Care,Support with Memory and Cognition - adults (18-64),CLDS Longer Term Support Teams,Social Care - Day Care,02/12/2016,3789558,"2,820.00",VIBRANCE
Adults Services,Adult Social Care,Support with Memory and Cognition - adults (18-64),CLDS Longer Term Support Teams,Social Care - Day Care,02/12/2016,3789559,"1,240.00",VIBRANCE
Adults Services,Adult Social Care,Support with Memory and Cognition - adults (18-64),CLDS Longer Term Support Teams,Social Care - Day Care,02/12/2016,3789560,"1,054.00",VIBRANCE
Adults Services,Adult Social Care,Support with Memory and Cognition - adults (18-64),CLDS Longer Term Support Teams,Social Care - Day Care,02/12/2016,3789561,"1,240.00",VIBRANCE
Adults Services,Adult Social Care,Support with Memory and Cognition - adults (18-64),CLDS Longer Term Support Teams,Social Care - Day Care,02/12/2016,3789563,"2,820.00",VIBRANCE
Adults Services,Adult Social Care,Support with Memory and Cognition - adults (18-64),CLDS Longer Term Support Teams,Social Care - Day Care,02/12/2016,3789564,"1,560.00",VIBRANCE
Adults Services,Adult Social Care,Support with Memory and Cognition - adults (18-64),CLDS Longer Term Support Teams,Social Care - Day Care,02/12/2016,3789565,806.00,VIBRANCE
Adults Services,Adult Social Care,Support with Memory and Cognition - adults (18-64),Cmht For Older People,Social Care - Residential Care,02/12/2016,3789569,"2,700.69",Essex County Council
Adults Services,Adult Social Care,Support with Memory and Cognition - adults (18-64),Generic Care Packages SE Team -PS,Social Care - Nursing Care,02/12/2016,3789570,"3,195.00",Barron Kirk Quality Care Ltd
Adults Services,Adult Social Care,Support with Memory and Cognition - adults (18-64),Generic Care Packages NW Team -PS,Social Care - Homecare,02/12/2016,3789575,741.72,ATHLONE CARE LTD
Adults Services,Adult Social Care,Support with Memory and Cognition - adults (18-64),Cmht For Older People,Social Care - Residential Care,02/12/2016,3789589,"1,578.57",Barrowhill Hall Nursing Home
Adults Services,Adult Social Care,Support with Memory and Cognition - adults (18-64),Cmht For Older People,Social Care - Residential Care,02/12/2016,3789590,"3,642.86",Barrowhill Hall Nursing Home
Adults Services,Adult Social Care,Support with Memory and Cognition - adults (18-64),CLDS Longer Term Support Teams,Social Care - Day Care,02/12/2016,3789591,"7,020.94",London Borough of Haringey
Adults Services,Adult Social Care,Support with Memory and Cognition - adults (18-64),CLDS Longer Term Support Teams,Social Care - Day Care,02/12/2016,3789592,"7,020.94",London Borough of Haringey
Adults Services,Adult Social Care,Support with Memory and Cognition - adults (18-64),CLDS Longer Term Support Teams,Social Care - Homecare,02/12/2016,3789596,"1,769.16",MEARS CARE LTD
Adults Services,Adult Social Care,Support with Memory and Cognition - adults (18-64),CLDS Longer Term Support Teams,Social Care - Homecare,02/12/2016,3789597,"2,673.60",MEARS CARE LTD
Adults Services,Adult Social Care,Support with Memory and Cognition - adults (18-64),Generic Care Packages SE Team -PS,Social Care - Home Care (Short Term),02/12/2016,3789603,"2,320.88",Excelcare (Home Care Division) LTD
Adults Services,Adult Social Care,Support with Memory and Cognition - adults (18-64),Generic Care Packages SE Team-SMC,Social Care - Homecare,02/12/2016,3789611,"1,268.46",Excelcare (Home Care Division) LTD
Adults Services,Adult Social Care,Support with Memory and Cognition - adults (18-64),Cmht For Older People,Social Care - Homecare,02/12/2016,3789614,"1,460.92",Excelcare (Home Care Division) LTD
Adults Services,Adult Social Care,Support with Memory and Cognition - adults (18-64),Generic Care Packages SW Team - PS,Social Care - Homecare,02/12/2016,3789617,"1,872.30",Excelcare (Home Care Division) LTD
Adults Services,Adult Social Care,Support with Memory and Cognition - adults (18-64),Generic Care Packages SE Team -PS,Social Care - Homecare,02/12/2016,3789618,798.00,Excelcare (Home Care Division) LTD
Adults Services,Adult Social Care,Support with Memory and Cognition - adults (18-64),Generic Care Packages NW Team -PS,Social Care - Homecare,02/12/2016,3789620,798.28,Excelcare (Home Care Division) LTD
Adults Services,Adult Social Care,Support with Memory and Cognition - adults (18-64),Generic Care Packages NW Team -PS,Social Care - Homecare,02/12/2016,3789621,620.06,Excelcare (Home Care Division) LTD
Adults Services,Adult Social Care,Support with Memory and Cognition - adults (18-64),Generic Care Packages SE Team -PS,Social Care - Homecare,02/12/2016,3789624,541.67,Excelcare (Home Care Division) LTD
Adults Services,Adult Social Care,Support with Memory and Cognition - adults (18-64),Generic Care Packages SE Team -PS,Social Care - Homecare,02/12/2016,3789626,534.59,Excelcare (Home Care Division) LTD
Adults Services,Adult Social Care,Support with Memory and Cognition - adults (18-64),Generic Care Packages NW Team -SP,Social Care - Homecare,02/12/2016,3789627,"1,126.10",Excelcare (Home Care Division) LTD
Adults Services,Adult Social Care,Support with Memory and Cognition - adults (18-64),Generic Care Packages NW Team -PS,Social Care - Homecare,02/12/2016,3789628,"1,184.58",Excelcare (Home Care Division) LTD
Adults Services,Adult Social Care,Support with Memory and Cognition - adults (18-64),Generic Care Packages SW Team - PS,Social Care - Homecare,02/12/2016,3789631,897.90,Excelcare (Home Care Division) LTD
Adults Services,Adult Social Care,Support with Memory and Cognition - adults (18-64),Generic Care Packages SE Team -PS,Social Care - Homecare,02/12/2016,3789636,783.82,Excelcare (Home Care Division) LTD
Adults Services,Adult Social Care,Support with Memory and Cognition - adults (18-64),Generic Care Packages SW Team - PS,Social Care - Homecare,02/12/2016,3789640,"4,788.00",Excelcare (Home Care Division) LTD
Adults Services,Adult Social Care,Support with Memory and Cognition - adults (18-64),Generic Care Packages SE Team -SP,Social Care - Homecare,02/12/2016,3789641,534.54,Excelcare (Home Care Division) LTD
Adults Services,Adult Social Care,Support with Memory and Cognition - adults (18-64),Generic Care Packages SW Team - PS,Social Care - Homecare,02/12/2016,3789645,726.82,Excelcare (Home Care Division) LTD
Adults Services,Adult Social Care,Support with Memory and Cognition - adults (18-64),Generic Care Packages NW Team -PS,Social Care - Homecare,02/12/2016,3789649,705.48,Excelcare (Home Care Division) LTD
Adults Services,Adult Social Care,Support with Memory and Cognition - adults (18-64),Generic Care Packages SE Team -PS,Social Care - Homecare,02/12/2016,3789657,566.60,Excelcare (Home Care Division) LTD
Adults Services,Adult Social Care,Support with Memory and Cognition - adults (18-64),Generic Care Packages SW Team - PS,Social Care - Home Care (Short Term),02/12/2016,3789660,705.13,Excelcare (Home Care Division) LTD
Adults Services,Adult Social Care,Support with Memory and Cognition - adults (18-64),Generic Care Packages SW Team - PS,Social Care - Homecare,02/12/2016,3789664,"1,076.14",Excelcare (Home Care Division) LTD
Adults Services,Adult Social Care,Support with Memory and Cognition - adults (18-64),Generic Care Packages SE Team -PS,Social Care - Homecare,02/12/2016,3789667,"1,460.71",Excelcare (Home Care Division) LTD
Adults Services,Adult Social Care,Support with Memory and Cognition - adults (18-64),Generic Care Packages SE Team -PS,Social Care - Homecare,02/12/2016,3789674,"1,156.34",Excelcare (Home Care Division) LTD
Adults Services,Adult Social Care,Support with Memory and Cognition - adults (18-64),Generic Care Packages SW Team - PS,Social Care - Residential Care,02/12/2016,3789682,"1,036.00",GATEWAY HOUSING ASSOCIATION
Adults Services,Adult Social Care,Support with Memory and Cognition - adults (18-64),SW Team AS - Generic Care Packages,Social Care - Residential Care,02/12/2016,3789683,"5,664.28",LITTLEDENE HOUSE
Adults Services,Adult Social Care,Support with Memory and Cognition - adults (18-64),Generic Care Packages SE Team -PS,Social Care - Extra Care Sheltered Housing,02/12/2016,3789687,"1,679.68",Creative Support
Adults Services,Adult Social Care,Support with Memory and Cognition - adults (18-64),Generic Care Packages SE Team -PS,Social Care - Extra Care Sheltered Housing,02/12/2016,3789688,731.24,Creative Support
Adults Services,Adult Social Care,Support with Memory and Cognition - adults (18-64),Generic Care Packages SW Team - PS,Social Care - Direct Payments,02/12/2016,3789690,"4,888.80",DAVID HOWARD LTD CLIENT ACCOUNT
Adults Services,Adult Social Care,Support with Memory and Cognition - adults (18-64),Generic Care Packages SE Team -PS,Social Care - Home Care (Short Term),02/12/2016,3789693,550.79,FOCUS CARE LINK LTD
Adults Services,Adult Social Care,Support with Memory and Cognition - adults (18-64),Generic Care Packages SE Team -PS,Social Care - Home Care (Short Term),02/12/2016,3789695,"1,219.33",SEVACARE UK LTD
Adults Services,Adult Social Care,Support with Memory and Cognition - adults (18-64),Generic Care Packages SW Team - PS,Social Care - Homecare,02/12/2016,3789697,"1,102.30",SEVACARE UK LTD
Adults Services,Adult Social Care,Support with Memory and Cognition - adults (18-64),Generic Care Packages SW Team - PS,Social Care - Home Care (Short Term),02/12/2016,3789698,807.85,SEVACARE UK LTD
Adults Services,Adult Social Care,Support with Memory and Cognition - adults (18-64),Generic Care Packages NE Team -PS,Social Care - Residential Care,02/12/2016,3789699,553.57,Oatlands Care Ltd
Adults Services,Adult Social Care,Support with Memory and Cognition - adults (18-64),Generic Care Packages NE Team -PS,Social Care - Residential Care,02/12/2016,3789700,"3,432.14",Oatlands Care Ltd
Adults Services,Adult Social Care,Support with Memory and Cognition - adults (18-64),Generic Care Packages NE Team -PS,Social Care - Residential Care,02/12/2016,3789701,"3,321.43",Oatlands Care Ltd
Adults Services,Adult Social Care,Support with Memory and Cognition - adults (18-64),Generic Care Packages SE Team -PS,Social Care - Homecare,02/12/2016,3789709,536.05,SEVACARE UK LTD
Adults Services,Adult Social Care,Support with Memory and Cognition - adults (18-64),Generic Care Packages SW Team - PS,Social Care - Homecare,02/12/2016,3789715,951.30,SEVACARE UK LTD
Adults Services,Adult Social Care,Support with Memory and Cognition - adults (18-64),Generic Care Packages NW Team -PS,Social Care - Home Care (Short Term),02/12/2016,3789726,581.35,SEVACARE UK LTD
Adults Services,Adult Social Care,Support with Memory and Cognition - adults (18-64),Generic Care Packages NW Team -PS,Social Care - Homecare,02/12/2016,3789727,513.40,SEVACARE UK LTD
Adults Services,Adult Social Care,Support with Memory and Cognition - adults (18-64),Generic Care Packages NE Team -PS,Social Care - Home Care (Short Term),02/12/2016,3789728,509.63,SEVACARE UK LTD
Adults Services,Adult Social Care,Support with Memory and Cognition - adults (18-64),Cmht Iod / Poplar South,Social Care - Home Care (Short Term),02/12/2016,3789731,543.60,SEVACARE UK LTD
Adults Services,Adult Social Care,Support with Memory and Cognition - adults (18-64),Generic Care Packages SW Team - PS,Social Care - Homecare,02/12/2016,3789733,"1,683.65",SEVACARE UK LTD
Adults Services,Adult Social Care,Support with Memory and Cognition - adults (18-64),Generic Care Packages SW Team - PS,Social Care - Home Care (Short Term),02/12/2016,3789740,551.15,SEVACARE UK LTD
Adults Services,Adult Social Care,Support with Memory and Cognition - adults (18-64),Generic Care Packages SE Team -PS,Social Care - Home Care (Short Term),02/12/2016,3789741,951.30,SEVACARE UK LTD
Adults Services,Adult Social Care,Support with Memory and Cognition - adults (18-64),"Generic Care Packages NW Team-MH						",Social Care - Homecare,02/12/2016,3789752,"1,600.60",SEVACARE UK LTD
Adults Services,Adult Social Care,Support with Memory and Cognition - adults (18-64),Generic Care Packages NE Team -SI,Social Care - Homecare,02/12/2016,3789757,966.40,SEVACARE UK LTD
Adults Services,Adult Social Care,Support with Memory and Cognition - adults (18-64),Generic Care Packages SE Team -PS,Social Care - Home Care (Short Term),02/12/2016,3789758,"2,334.99",Excelcare (Home Care Division) LTD
Adults Services,Adult Social Care,Support with Memory and Cognition - adults (18-64),Generic Care Packages SE Team -PS,Social Care - Home Care (Short Term),02/12/2016,3789759,"2,306.78",Excelcare (Home Care Division) LTD
Adults Services,Adult Social Care,Support with Memory and Cognition - adults (18-64),Generic Care Packages SW Team - PS,Social Care - Residential Care,02/12/2016,3789761,"2,190.13",JEWISH CARE
Adults Services,Adult Social Care,Support with Memory and Cognition - adults (18-64),Generic Care Packages NE Team -PS,Social Care - Residential Care,02/12/2016,3789762,"2,217.51",JEWISH CARE
Adults Services,Adult Social Care,Support with Memory and Cognition - adults (18-64),Generic Care Packages SW Team - PS,Social Care - Residential Care,02/12/2016,3789763,"1,748.31",JEWISH CARE
Adults Services,Adult Social Care,Support with Memory and Cognition - adults (18-64),CLDS Longer Term Support Teams,Social Care - Homecare,02/12/2016,3789769,"1,472.80",REDSPOT HOMECARE (CONTRACTS) LTD
Adults Services,Adult Social Care,Support with Memory and Cognition - adults (18-64),Generic Care Packages SW Team - PS,Social Care - Homecare,02/12/2016,3789771,920.50,REDSPOT HOMECARE (CONTRACTS) LTD
Adults Services,Adult Social Care,Support with Memory and Cognition - adults (18-64),CLDS Longer Term Support Teams,Social Care - Residential Care,02/12/2016,3789778,"4,714.20",SHERICO CARE SERVICES LTD
Adults Services,Adult Social Care,Support with Memory and Cognition - adults (18-64),Generic Care Packages NW Team -PS,Social Care - Homecare,02/12/2016,3789805,643.00,MiHOMECARE LIMITED
Adults Services,Adult Social Care,Support with Memory and Cognition - adults (18-64),Generic Care Packages SE Team -PS,Social Care - Homecare,02/12/2016,3789806,931.28,MiHOMECARE LIMITED
Adults Services,Adult Social Care,Support with Memory and Cognition - adults (18-64),Generic Care Packages NE Team-SMC,Social Care - Residential Care,02/12/2016,3789814,"2,317.64",H-C ONE
Adults Services,Adult Social Care,Support with Memory and Cognition - adults (18-64),Generic Care Packages NE Team-SMC,Social Care - Nursing Care,02/12/2016,3789815,"2,160.23",H-C ONE
Adults Services,Adult Social Care,Physical Support - adults (18-64),"Failed Care Package Conversion		",Social Care - Prevention & Support - Block,02/12/2016,3789816,"84,000.00",Real DPO
Adults Services,Adult Social Care,Support with Memory and Cognition - adults (18-64),CLDS Longer Term Support Teams,Social Care - Homecare,02/12/2016,3789817,620.78,APASENTH
Adults Services,Adult Social Care,Support with Memory and Cognition - adults (18-64),CLDS Longer Term Support Teams,Social Care - Homecare,02/12/2016,3789818,597.68,APASENTH
Adults Services,Adult Social Care,Support with Memory and Cognition - adults (18-64),Generic Care Packages SW Team - PS,Social Care - Homecare,02/12/2016,3789877,951.30,St Hilda's East Community Centre
Adults Services,Adult Social Care,Support with Memory and Cognition - adults (18-64),Generic Care Packages NE Team -PS,Social Care - Homecare,02/12/2016,3789881,"1,691.20",St Hilda's East Community Centre
Adults Services,Adult Social Care,Physical Support - adults (18-64),"Failed Care Package Conversion		",Social Care - Learning Disabilities,02/12/2016,3789890,"4,047.64",POhWER
Adults Services,Adult Social Care,Physical Support - adults (18-64),"Failed Care Package Conversion		",Social Care - Mental Health,02/12/2016,3789890,"19,702.36",POhWER
Adults Services,Adult Social Care,Support with Memory and Cognition - adults (18-64),CLDS Longer Term Support Teams,Social Care - Respite Care,02/12/2016,3789891,"2,160.00",QALB Centre Short Break Services
Adults Services,Adult Social Care,Support with Memory and Cognition - adults (18-64),Generic Care Packages SE Team -PS,Social Care - Home Care (Short Term),02/12/2016,3789902,660.92,SANCTUARY HOME CARE LIMITED
Adults Services,Adult Social Care,Support with Memory and Cognition - adults (18-64),Generic Care Packages NE Team -PS,Social Care - Homecare,02/12/2016,3789906,568.23,SANCTUARY HOME CARE LIMITED
Adults Services,Adult Social Care,Support with Memory and Cognition - adults (18-64),Generic Care Packages SE Team -PS,Social Care - Homecare,02/12/2016,3789907,"1,289.60",SANCTUARY HOME CARE LIMITED
Adults Services,Adult Social Care,Support with Memory and Cognition - adults (18-64),Generic Care Packages SW Team - PS,Social Care - Home Care (Short Term),02/12/2016,3789908,564.20,SANCTUARY HOME CARE LIMITED
Adults Services,Adult Social Care,Support with Memory and Cognition - adults (18-64),Generic Care Packages SW Team - PS,Social Care - Homecare,02/12/2016,3789910,507.78,SANCTUARY HOME CARE LIMITED
Adults Services,Adult Social Care,Support with Memory and Cognition - adults (18-64),Generic Care Packages SE Team -PS,Social Care - Homecare,02/12/2016,3789912,540.02,SANCTUARY HOME CARE LIMITED
Adults Services,Adult Social Care,Support with Memory and Cognition - adults (18-64),Generic Care Packages SE Team -PS,Social Care - Homecare,02/12/2016,3789923,"1,009.80",Soma Healthcare Ltd
Adults Services,Adult Social Care,Support with Memory and Cognition - adults (18-64),Generic Care Packages SE Team -PS,Social Care - Homecare,02/12/2016,3789924,"1,039.50",Soma Healthcare Ltd
Adults Services,Adult Social Care,Support with Memory and Cognition - adults (18-64),Generic Care Packages SE Team-SMC,Social Care - Respite Care,05/12/2016,3777258,"2,378.66",ANCHOR TRUST HOMES ACCOUNT
Adults Services,Adult Social Care,Support with Memory and Cognition - adults (18-64),Generic Care Packages SE Team-SMC,Social Care - Respite Care,05/12/2016,3777260,"1,268.62",ANCHOR TRUST HOMES ACCOUNT
Adults Services,Adult Social Care,Support with Memory and Cognition - adults (18-64),Generic Care Packages NE Team-SMC,Social Care - Respite Care,05/12/2016,3777261,"4,281.58",ANCHOR TRUST HOMES ACCOUNT
Adults Services,Adult Social Care,Support with Memory and Cognition - adults (18-64),Generic Care Packages NE Team-SMC,Social Care - Respite Care,05/12/2016,3777262,"2,299.37",ANCHOR TRUST HOMES ACCOUNT
Adults Services,Adult Social Care,Support with Memory and Cognition - adults (18-64),CLDS Longer Term Support Teams,Social Care - Homecare,05/12/2016,3777334,"1,177.20",Outward Housing
Adults Services,Adult Social Care,Support with Memory and Cognition - adults (18-64),CLDS Longer Term Support Teams,Social Care - Prevention & Support,05/12/2016,3777336,"1,137.96",Outward Housing
Adults Services,Adult Social Care,Support with Memory and Cognition - adults (18-64),CLDS Transition,Social Care - Prevention & Support,05/12/2016,3777337,"1,177.20",Outward Housing
Adults Services,Adult Social Care,Support with Memory and Cognition - adults (18-64),Integration Project,Social Care - Nursing Care,05/12/2016,3777441,"27,350.00",East London NHS Foundation Trust
Adults Services,Adult Social Care,Support with Memory and Cognition - adults (18-64),Tower Hamlets Care Alarms,Educational/Training Supplies - Resources,05/12/2016,3777864,"1,500.00",Doro Care
Adults Services,Adult Social Care,Support with Memory and Cognition - adults (18-64),CLDS Longer Term Support Teams,Social Care - Supported Living,05/12/2016,3781403,"7,611.00",SPENCER & ARLINGTON LTD
Adults Services,Adult Social Care,Physical Support - adults (18-64),Public Health � Healthy Young Adults,Third Party Payments - Other Establishments,05/12/2016,3782575,"85,424.61",Chelsea and Westmeinster Hospital NHS Foundation Trust
Adults Services,Adult Social Care,Support with Memory and Cognition - adults (18-64),Generic Care Packages NW Team -PS,Social Care - Residential Care,05/12/2016,3785186,"1,137.00",Forest Drive Residential Home Ltd
Adults Services,Adult Social Care,Support with Memory and Cognition - adults (18-64),Cmht For Older People,Social Care - Residential Care,05/12/2016,3785789,"2,166.67",South Park Residential Home Limited
Adults Services,Adult Social Care,Support with Memory and Cognition - adults (18-64),Generic Care Packages NW Team -PS,Social Care - Residential Care,05/12/2016,3788137,"3,642.86",OULTON PARK CARE CENTRE
Adults Services,Adult Social Care,Support with Memory and Cognition - adults (18-64),Cmht Bow / Poplar North,Social Care - Residential Care,06/12/2016,3785873,"-7,461.30",SHANTI HEALTHCARE LTD
Adults Services,Adult Social Care,Support with Memory and Cognition - adults (18-64),Cmht Bethnal Green,Social Care - Residential Care,06/12/2016,3785874,"7,461.30",SHANTI HEALTHCARE LTD
Adults Services,Adult Social Care,Physical Support - adults (18-64),Public Health � Healthy Children & Adolescents,Third Party Payments - Voluntary Associations,07/12/2016,3775820,"16,125.00",Play Association Tower Hamlets
Adults Services,Adult Social Care,Physical Support - adults (18-64),Public Health � Healthy Young Adults,Third Party Payments - Voluntary Associations,07/12/2016,3776628,"8,490.00",Positive East
Adults Services,Adult Social Care,Support with Memory and Cognition - adults (18-64),Generic Care Packages SW Team - PS,Social Care - Residential Care,07/12/2016,3777128,"1,458.43",North Park Care Home (Barchester Healthcare)
Adults Services,Adult Social Care,Support with Memory and Cognition - adults (18-64),Generic Care Packages SE Team-SMC,Social Care - Respite Care,07/12/2016,3777259,"1,030.75",ANCHOR TRUST HOMES ACCOUNT
Adults Services,Adult Social Care,Physical Support - adults (18-64),Public Health � Healthy Young Adults,Third Party Payments - Voluntary Associations,07/12/2016,3777523,"39,389.25",Positive East
Adults Services,Adult Social Care,Physical Support - adults (18-64),Public Health � Healthy Middle Age & Older People.,Third Party Payments - Voluntary Associations,07/12/2016,3777524,"11,490.00",Positive East
Adults Services,Adult Social Care,Support with Memory and Cognition - adults (18-64),CLDS Longer Term Support Teams,Social Care - Supported Living,07/12/2016,3785275,"13,203.90",ADVANCE HOUSING & SUPPORT LTD
Adults Services,Adult Social Care,Support with Memory and Cognition - adults (18-64),CLDS Longer Term Support Teams,Social Care - Supported Living,07/12/2016,3785276,"13,644.03",ADVANCE HOUSING & SUPPORT LTD
Adults Services,Adult Social Care,Support with Memory and Cognition - adults (18-64),Cmht For Older People,Social Care - Residential Care,07/12/2016,3785786,"2,700.69",Essex County Council
Adults Services,Adult Social Care,Support with Memory and Cognition - adults (18-64),Generic Care Packages NE Team -PS,Social Care - Nursing Care,07/12/2016,3785787,"2,473.07",Essex County Council
Adults Services,Adult Social Care,Physical Support - adults (18-64),Public Health � Healthy Middle Age & Older People.,Payments to Private Contractors - Other Contractors,07/12/2016,3790087,794.58,Sai Chemist
Adults Services,Adult Social Care,Physical Support - adults (18-64),Public Health � Healthy Young Adults,Payments to Private Contractors - Other Contractors,07/12/2016,3790089,587.10,MAYORS CHEMIST
Adults Services,Adult Social Care,Physical Support - adults (18-64),Public Health � Healthy Young Adults,Payments to Private Contractors - Other Contractors,07/12/2016,3790098,"1,938.20",FLORIDA PHARMACY
Adults Services,Adult Social Care,Physical Support - adults (18-64),Public Health � Healthy Young Adults,Payments to Private Contractors - Other Contractors,07/12/2016,3790105,564.90,ARMS CHEMIST
Adults Services,Adult Social Care,Physical Support - adults (18-64),Public Health � Healthy Young Adults,Payments to Private Contractors - Other Contractors,07/12/2016,3790116,"1,415.50",Guardian Pharmacy t/a Lansbury Chemist
Adults Services,Adult Social Care,Physical Support - adults (18-64),Public Health � Healthy Young Adults,Payments to Private Contractors - Other Contractors,07/12/2016,3790120,"1,418.30",Boots UK Ltd Store 185
Adults Services,Adult Social Care,Physical Support - adults (18-64),Public Health � Healthy Young Adults,Payments to Private Contractors - Other Contractors,07/12/2016,3790123,"1,401.20",SINCLAIR PHARMACY
Adults Services,Adult Social Care,Physical Support - adults (18-64),Public Health � Healthy Young Adults,Payments to Private Contractors - Other Contractors,07/12/2016,3790130,521.20,Chapel Pharmacy
Adults Services,Adult Social Care,Physical Support - adults (18-64),Public Health � Healthy Young Adults,Payments to Private Contractors - Other Contractors,07/12/2016,3790140,614.50,Laville Ltd t/a BRITANNIA PHARMACY
Adults Services,Adult Social Care,Physical Support - adults (18-64),Public Health � Healthy Young Adults,Payments to Private Contractors - Other Contractors,07/12/2016,3790143,546.90,CHRISCHEM UK LTD
Adults Services,Adult Social Care,Physical Support - adults (18-64),Public Health � Healthy Young Adults,Payments to Private Contractors - Other Contractors,07/12/2016,3790145,"1,844.00",BARKANTINE PHARMACY
Adults Services,Adult Social Care,Physical Support - adults (18-64),Public Health � Healthy Young Adults,Payments to Private Contractors - Other Contractors,07/12/2016,3790149,"1,935.70",Perimart t/a BRITANNIA PHARMACY
Adults Services,Adult Social Care,Physical Support - adults (18-64),Public Health � Healthy Young Adults,Payments to Private Contractors - Other Contractors,07/12/2016,3790150,809.10,AR Parmar Ltd
Adults Services,Adult Social Care,Physical Support - adults (18-64),Public Health � Healthy Young Adults,Payments to Private Contractors - Other Contractors,07/12/2016,3790165,602.50,Green Light Pharmacy
Adults Services,Adult Social Care,Physical Support - adults (18-64),Public Health � Healthy Communities,Third Party Payments - Other Establishments,07/12/2016,3790881,"22,838.50",The Bromley by Bow Centre
Adults Services,Adult Social Care,Support with Memory and Cognition - adults (18-64),CLDS Longer Term Support Teams,Social Care - Day Care,07/12/2016,3791776,"2,904.00",HOFFMANN FOUNDATION FOR AUTISM
Adults Services,Adult Social Care,Support with Memory and Cognition - adults (18-64),CLDS Longer Term Support Teams,Social Care - Residential Care,07/12/2016,3791778,"10,392.86",PEMBROKE HOUSE
Adults Services,Adult Social Care,Support with Memory and Cognition - adults (18-64),CLDS Longer Term Support Teams,Social Care - Supported Living,07/12/2016,3791779,"7,285.71",PEMBROKE HOUSE
Adults Services,Adult Social Care,Support with Memory and Cognition - adults (18-64),Generic Care Packages SE Team-SMC,Social Care - Residential Care,07/12/2016,3791784,"2,138.57",Oakdene Rest Home
Adults Services,Adult Social Care,Support with Memory and Cognition - adults (18-64),Cmht For Older People,Social Care - Homecare,07/12/2016,3791786,519.71,ATHLONE CARE LTD
Adults Services,Adult Social Care,Support with Memory and Cognition - adults (18-64),Generic Care Packages NE Team -PS,Social Care - Home Care (Short Term),07/12/2016,3791787,511.32,ATHLONE CARE LTD
Adults Services,Adult Social Care,Support with Memory and Cognition - adults (18-64),CLDS Longer Term Support Teams,Social Care - Day Care,07/12/2016,3791788,"2,720.00",ST MARKS DAY SERVICE
Adults Services,Adult Social Care,Support with Memory and Cognition - adults (18-64),Cmht For Older People,Social Care - Supported Living,07/12/2016,3791789,"2,424.26",J M CAREHOMES LIMITED
Adults Services,Adult Social Care,Support with Memory and Cognition - adults (18-64),Generic Care Packages SE Team -AS,Social Care - Prevention & Support,07/12/2016,3791792,"2,450.00",City Inn Express Limited
Adults Services,Adult Social Care,Support with Memory and Cognition - adults (18-64),Generic Care Packages NE Team -PS,Social Care - Prevention & Support,07/12/2016,3791793,"4,200.00",City Inn Express Limited
Adults Services,Adult Social Care,Support with Memory and Cognition - adults (18-64),CLDS Longer Term Support Teams,Social Care - Homecare,07/12/2016,3791795,"2,436.60",MEARS CARE LTD
Adults Services,Adult Social Care,Support with Memory and Cognition - adults (18-64),Generic Care Packages NW Team -PS,Social Care - Homecare,07/12/2016,3791798,729.88,Excelcare (Home Care Division) LTD
Adults Services,Adult Social Care,Support with Memory and Cognition - adults (18-64),CLDS Longer Term Support Teams,Social Care - Day Care,07/12/2016,3791799,"1,288.00",SOUTHBANK MOSAICS CIC
Adults Services,Adult Social Care,Support with Memory and Cognition - adults (18-64),Generic Care Packages SE Team -PS,Social Care - Home Care (Short Term),07/12/2016,3791801,"1,239.76",Excelcare (Home Care Division) LTD
Adults Services,Adult Social Care,Support with Memory and Cognition - adults (18-64),Generic Care Packages NW Team -PS,Social Care - Homecare,07/12/2016,3791804,"2,265.80",Excelcare (Home Care Division) LTD
Adults Services,Adult Social Care,Support with Memory and Cognition - adults (18-64),Generic Care Packages SW Team - PS,Social Care - Homecare,07/12/2016,3791815,"4,836.30",Excelcare (Home Care Division) LTD
Adults Services,Adult Social Care,Support with Memory and Cognition - adults (18-64),Generic Care Packages SE Team -PS,Social Care - Homecare,07/12/2016,3791822,"4,088.00",Excelcare (Home Care Division) LTD
Adults Services,Adult Social Care,Support with Memory and Cognition - adults (18-64),CLDS Longer Term Support Teams,Social Care - Homecare,07/12/2016,3791834,798.16,Excelcare (Home Care Division) LTD
Adults Services,Adult Social Care,Support with Memory and Cognition - adults (18-64),CLDS Longer Term Support Teams,Social Care - Homecare,07/12/2016,3791836,"3,161.80",Excelcare (Home Care Division) LTD
Adults Services,Adult Social Care,Support with Memory and Cognition - adults (18-64),Generic Care Packages SE Team -PS,Social Care - Prevention & Support,07/12/2016,3791846,863.10,Circle Housing - C33
Adults Services,Adult Social Care,Support with Memory and Cognition - adults (18-64),Generic Care Packages SE Team -PS,Social Care - Home Care (Short Term),07/12/2016,3791847,526.64,FOCUS CARE LINK LTD
Adults Services,Adult Social Care,Support with Memory and Cognition - adults (18-64),CLDS Longer Term Support Teams,Social Care - Residential Care,07/12/2016,3791848,"9,200.00",Coppice Care Burgess Hill LLP
Adults Services,Adult Social Care,Support with Memory and Cognition - adults (18-64),CLDS Longer Term Support Teams,Social Care - Homecare,07/12/2016,3791849,"4,906.80",Tower Project
Adults Services,Adult Social Care,Support with Memory and Cognition - adults (18-64),CLDS Longer Term Support Teams,Social Care - Homecare,07/12/2016,3791850,"5,024.87",Tower Project
Adults Services,Adult Social Care,Support with Memory and Cognition - adults (18-64),CLDS Longer Term Support Teams,Social Care - Supported Living,07/12/2016,3791851,"6,625.20",Tower Project
Adults Services,General Fund/Council Fund,Homelessness,Supporting People Services,SP - Block-Gross - Single Homeless,07/12/2016,3792452,"75,781.05",Salvation Army
Adults Services,General Fund/Council Fund,Homelessness,Supporting People Services,SP - Block-Gross - Mental Health,07/12/2016,3792453,"6,651.25",Providence Row Housing Association
Adults Services,General Fund/Council Fund,Homelessness,Supporting People Services,SP - Block-Gross - Single Homeless,07/12/2016,3792453,"147,492.66",Providence Row Housing Association
Adults Services,General Fund/Council Fund,Homelessness,Supporting People Services,SP - Block-Gross - Learning Disabilities,07/12/2016,3792454,"40,768.62",Outward Housing
Adults Services,General Fund/Council Fund,Homelessness,Supporting People Services,SP - Block-Gross - Domestic Violence,07/12/2016,3792455,"25,722.58",HESTIA HOUSING & SUPPORT
Adults Services,General Fund/Council Fund,Homelessness,Supporting People Services,SP - Block-Gross - Mental Health,07/12/2016,3792455,"57,064.19",HESTIA HOUSING & SUPPORT
Adults Services,General Fund/Council Fund,Homelessness,Supporting People Services,SP - Block-Gross - Y People Risk/Care Lev,07/12/2016,3792456,"12,166.67",Kipper Project
Adults Services,General Fund/Council Fund,Homelessness,Supporting People Services,SP - Block-Gross - Old People-Supp Needs,07/12/2016,3792458,606.67,CIRCLE SUPPORT CONSORTIUM
Adults Services,General Fund/Council Fund,Homelessness,Supporting People Services,SP - Block-Gross - Learning Disabilities,07/12/2016,3792459,"24,139.37",Look Ahead Care & Support Ltd
Adults Services,General Fund/Council Fund,Homelessness,Supporting People Services,SP - Block-Gross - Mental Health,07/12/2016,3792459,"191,808.62",Look Ahead Care & Support Ltd
Adults Services,General Fund/Council Fund,Homelessness,Supporting People Services,SP - Block-Gross - Single Homeless,07/12/2016,3792459,"143,530.83",Look Ahead Care & Support Ltd
Adults Services,General Fund/Council Fund,Homelessness,Supporting People Services,SP - Block-Gross - Y People Risk/Care Lev,07/12/2016,3792459,"62,943.49",Look Ahead Care & Support Ltd
Adults Services,Adult Social Care,Support with Memory and Cognition - adults (18-64),Generic Care Packages NE Team -PS,Social Care - Residential Care,07/12/2016,3792463,"2,378.66",ANCHOR TRUST HOMES ACCOUNT
Adults Services,Adult Social Care,Support with Memory and Cognition - adults (18-64),Generic Care Packages SW Team - PS,Social Care - Residential Care,07/12/2016,3792464,"9,752.49",ANCHOR TRUST HOMES ACCOUNT
Adults Services,Adult Social Care,Support with Memory and Cognition - adults (18-64),Cmht For Older People,Social Care - Nursing Care,07/12/2016,3792466,"2,035.72",SUMMERDALE COURT CARE CENTRE
Adults Services,Adult Social Care,Support with Memory and Cognition - adults (18-64),CLDS Longer Term Support Teams,Social Care - Residential Care,07/12/2016,3792467,501.10,PRIORS COURT FOUNDATION
Adults Services,Adult Social Care,Support with Memory and Cognition - adults (18-64),Generic Care Packages NW Team -PS,Social Care - Direct Payments,07/12/2016,3792470,"-1,577.76",DAVID HOWARD LTD CLIENT ACCOUNT
Adults Services,Adult Social Care,Support with Memory and Cognition - adults (18-64),Generic Care Packages SE Team -PS,Social Care - Direct Payments,07/12/2016,3792471,-714.80,DAVID HOWARD LTD CLIENT ACCOUNT
Adults Services,Adult Social Care,Support with Memory and Cognition - adults (18-64),Generic Care Packages NE Team -PS,Social Care - Direct Payments,07/12/2016,3792472,"4,139.43",DAVID HOWARD LTD CLIENT ACCOUNT
Adults Services,Adult Social Care,Support with Memory and Cognition - adults (18-64),Generic Care Packages NW Team -PS,Social Care - Direct Payments,07/12/2016,3792473,"1,577.76",DAVID HOWARD LTD CLIENT ACCOUNT
Adults Services,Adult Social Care,Support with Memory and Cognition - adults (18-64),Generic Care Packages SE Team -PS,Social Care - Direct Payments,07/12/2016,3792474,978.07,DAVID HOWARD LTD CLIENT ACCOUNT
Adults Services,Adult Social Care,Support with Memory and Cognition - adults (18-64),Generic Care Packages SE Team -PS,Social Care - Home Care (Short Term),07/12/2016,3792475,521.04,FOCUS CARE LINK LTD
Adults Services,Adult Social Care,Support with Memory and Cognition - adults (18-64),Generic Care Packages SE Team -PS,Social Care - Home Care (Short Term),07/12/2016,3792476,534.64,FOCUS CARE LINK LTD
Adults Services,Adult Social Care,Physical Support - adults (18-64),"Failed Care Package Conversion		",Social Care - Homecare,07/12/2016,3792499,551.15,SEVACARE UK LTD
Adults Services,Adult Social Care,Support with Memory and Cognition - adults (18-64),Cmht Iod / Poplar South,Social Care - Homecare,07/12/2016,3792509,845.60,SEVACARE UK LTD
Adults Services,Adult Social Care,Support with Memory and Cognition - adults (18-64),Generic Care Packages NE Team -PS,Social Care - Homecare,07/12/2016,3792510,830.50,SEVACARE UK LTD
Adults Services,Adult Social Care,Support with Memory and Cognition - adults (18-64),Generic Care Packages NE Team -PS,Social Care - Homecare,07/12/2016,3792511,536.05,SEVACARE UK LTD
Adults Services,Adult Social Care,Support with Memory and Cognition - adults (18-64),Generic Care Packages SE Team -PS,Social Care - Homecare,07/12/2016,3792514,588.90,SEVACARE UK LTD
Adults Services,Adult Social Care,Support with Memory and Cognition - adults (18-64),Generic Care Packages NE Team -PS,Social Care - Homecare,07/12/2016,3792518,596.45,SEVACARE UK LTD
Adults Services,Adult Social Care,Support with Memory and Cognition - adults (18-64),Generic Care Packages NW Team -PS,Social Care - Home Care (Short Term),07/12/2016,3792533,"3,699.50",SEVACARE UK LTD
Adults Services,Adult Social Care,Support with Memory and Cognition - adults (18-64),Generic Care Packages NW Team -PS,Social Care - Home Care (Short Term),07/12/2016,3792534,"1,691.20",SEVACARE UK LTD
Adults Services,Adult Social Care,Support with Memory and Cognition - adults (18-64),Generic Care Packages NE Team -PS,Social Care - Home Care (Short Term),07/12/2016,3792538,943.75,SEVACARE UK LTD
Adults Services,Adult Social Care,Support with Memory and Cognition - adults (18-64),"Generic Care Packages SW Team -SS		",Social Care - Homecare,07/12/2016,3792544,739.90,SEVACARE UK LTD
Adults Services,Adult Social Care,Support with Memory and Cognition - adults (18-64),Generic Care Packages SE Team -PS,Social Care - Homecare,07/12/2016,3792545,"1,162.70",SEVACARE UK LTD
Adults Services,Adult Social Care,Support with Memory and Cognition - adults (18-64),Generic Care Packages SW Team - PS,Social Care - Homecare,07/12/2016,3792547,"1,102.30",SEVACARE UK LTD
Adults Services,Adult Social Care,Support with Memory and Cognition - adults (18-64),Generic Care Packages SE Team -SI,Social Care - Homecare,07/12/2016,3792552,555.61,Excelcare (Home Care Division) LTD
Adults Services,Adult Social Care,Support with Memory and Cognition - adults (18-64),Generic Care Packages NW Team -PS,Social Care - Homecare,07/12/2016,3792553,602.85,Excelcare (Home Care Division) LTD
Adults Services,Adult Social Care,Support with Memory and Cognition - adults (18-64),Generic Care Packages SE Team -SI,Social Care - Homecare,07/12/2016,3792554,542.92,Excelcare (Home Care Division) LTD
Adults Services,Adult Social Care,Support with Memory and Cognition - adults (18-64),Generic Care Packages SW Team - PS,Social Care - Residential Care,07/12/2016,3792555,"1,883.79",JEWISH CARE
Adults Services,Adult Social Care,Support with Memory and Cognition - adults (18-64),Generic Care Packages SE Team -PS,Social Care - Nursing Care,07/12/2016,3792556,"1,702.11",JEWISH CARE
Adults Services,Adult Social Care,Support with Memory and Cognition - adults (18-64),Generic Care Packages SW Team - PS,Social Care - Homecare,07/12/2016,3792557,"1,325.68",Excelcare (Home Care Division) LTD
Adults Services,Adult Social Care,Support with Memory and Cognition - adults (18-64),Generic Care Packages SW Team - PS,Social Care - Homecare,07/12/2016,3792558,"1,382.08",Excelcare (Home Care Division) LTD
Adults Services,Adult Social Care,Support with Memory and Cognition - adults (18-64),Generic Care Packages NW Team -PS,Social Care - Homecare,07/12/2016,3792559,662.88,Excelcare (Home Care Division) LTD
Adults Services,Adult Social Care,Support with Memory and Cognition - adults (18-64),Generic Care Packages SE Team -PS,Social Care - Homecare,07/12/2016,3792562,532.58,REDSPOT HOMECARE (CONTRACTS) LTD
Adults Services,Adult Social Care,Support with Memory and Cognition - adults (18-64),Cmht For Older People,Social Care - Residential Care,07/12/2016,3792564,"2,807.14",Leona Enterprises Ltd
Adults Services,Adult Social Care,Support with Memory and Cognition - adults (18-64),Generic Care Packages NE Team -PS,Social Care - Day Care,07/12/2016,3792570,719.46,St Hilda's East Community Centre
Adults Services,Adult Social Care,Support with Memory and Cognition - adults (18-64),Cmht For Older People,Social Care - Home Care (Short Term),07/12/2016,3792573,611.60,St Hilda's East Community Centre
Adults Services,Adult Social Care,Support with Memory and Cognition - adults (18-64),Generic Care Packages NW Team -PS,Social Care - Day Care,07/12/2016,3792577,700.92,St Hilda's East Community Centre
Adults Services,Adult Social Care,Support with Memory and Cognition - adults (18-64),Generic Care Packages NW Team -PS,Social Care - Day Care,07/12/2016,3792586,612.47,St Hilda's East Community Centre
Adults Services,Adult Social Care,Support with Memory and Cognition - adults (18-64),Generic Care Packages SW Team - PS,Social Care - Day Care,07/12/2016,3792587,513.90,St Hilda's East Community Centre
Adults Services,Adult Social Care,Support with Memory and Cognition - adults (18-64),Generic Care Packages NW Team -PS,Social Care - Day Care,07/12/2016,3792598,942.23,St Hilda's East Community Centre
Adults Services,Adult Social Care,Support with Memory and Cognition - adults (18-64),Cmht For Older People,Social Care - Day Care,07/12/2016,3792610,668.07,St Hilda's East Community Centre
Adults Services,Adult Social Care,Support with Memory and Cognition - adults (18-64),Generic Care Packages NE Team -PS,Social Care - Day Care,07/12/2016,3792613,685.28,St Hilda's East Community Centre
Adults Services,Adult Social Care,Support with Memory and Cognition - adults (18-64),Generic Care Packages NW Team -PS,Social Care - Day Care,07/12/2016,3792614,681.07,St Hilda's East Community Centre
Adults Services,Adult Social Care,Support with Memory and Cognition - adults (18-64),Generic Care Packages SE Team -PS,Social Care - Day Care,07/12/2016,3792618,668.07,St Hilda's East Community Centre
Adults Services,Adult Social Care,Support with Memory and Cognition - adults (18-64),Generic Care Packages SW Team - PS,Social Care - Day Care,07/12/2016,3792624,687.24,St Hilda's East Community Centre
Adults Services,Adult Social Care,Support with Memory and Cognition - adults (18-64),Generic Care Packages SW Team -SI,Social Care - Day Care,07/12/2016,3792630,"1,037.96",St Hilda's East Community Centre
Adults Services,Adult Social Care,Support with Memory and Cognition - adults (18-64),Generic Care Packages NE Team -PS,Social Care - Day Care,07/12/2016,3792635,"1,074.98",St Hilda's East Community Centre
Adults Services,Adult Social Care,Support with Memory and Cognition - adults (18-64),Generic Care Packages SW Team - PS,Social Care - Day Care,07/12/2016,3792641,531.11,St Hilda's East Community Centre
Adults Services,Adult Social Care,Support with Memory and Cognition - adults (18-64),Generic Care Packages SE Team -PS,Social Care - Day Care,07/12/2016,3792643,565.29,St Hilda's East Community Centre
Adults Services,Adult Social Care,Support with Memory and Cognition - adults (18-64),CLDS Longer Term Support Teams,Social Care - Day Care,07/12/2016,3792667,"1,199.44",APASENTH
Adults Services,Adult Social Care,Support with Memory and Cognition - adults (18-64),CLDS Longer Term Support Teams,Social Care - Day Care,07/12/2016,3792668,794.50,APASENTH
Adults Services,Adult Social Care,Support with Memory and Cognition - adults (18-64),CLDS Longer Term Support Teams,Social Care - Day Care,07/12/2016,3792669,"1,090.40",APASENTH
Adults Services,Adult Social Care,Support with Memory and Cognition - adults (18-64),CLDS Longer Term Support Teams,Social Care - Day Care,07/12/2016,3792671,"2,659.91",APASENTH
Adults Services,Adult Social Care,Support with Memory and Cognition - adults (18-64),CLDS Longer Term Support Teams,Social Care - Day Care,07/12/2016,3792672,908.00,APASENTH
Adults Services,Adult Social Care,Support with Memory and Cognition - adults (18-64),CLDS Longer Term Support Teams,Social Care - Day Care,07/12/2016,3792673,"1,199.44",APASENTH
Adults Services,Adult Social Care,Support with Memory and Cognition - adults (18-64),CLDS Longer Term Support Teams,Social Care - Day Care,07/12/2016,3792674,"1,454.88",APASENTH
Adults Services,Adult Social Care,Support with Memory and Cognition - adults (18-64),CLDS Longer Term Support Teams,Social Care - Day Care,07/12/2016,3792675,599.72,APASENTH
Adults Services,Adult Social Care,Support with Memory and Cognition - adults (18-64),CLDS Longer Term Support Teams,Social Care - Day Care,07/12/2016,3792676,763.28,APASENTH
Adults Services,Adult Social Care,Support with Memory and Cognition - adults (18-64),CLDS Longer Term Support Teams,Social Care - Day Care,07/12/2016,3792677,"1,284.14",APASENTH
Adults Services,Adult Social Care,Support with Memory and Cognition - adults (18-64),CLDS Longer Term Support Teams,Social Care - Day Care,07/12/2016,3792678,981.36,APASENTH
Adults Services,Adult Social Care,Support with Memory and Cognition - adults (18-64),CLDS Longer Term Support Teams,Social Care - Day Care,07/12/2016,3792679,"1,524.16",APASENTH
Adults Services,Adult Social Care,Support with Memory and Cognition - adults (18-64),CLDS Longer Term Support Teams,Social Care - Day Care,07/12/2016,3792680,900.64,APASENTH
Adults Services,Adult Social Care,Support with Memory and Cognition - adults (18-64),CLDS Longer Term Support Teams,Social Care - Day Care,07/12/2016,3792681,"1,199.44",APASENTH
Adults Services,Adult Social Care,Support with Memory and Cognition - adults (18-64),CLDS Longer Term Support Teams,Social Care - Day Care,07/12/2016,3792682,"1,524.16",APASENTH
Adults Services,Adult Social Care,Support with Memory and Cognition - adults (18-64),CLDS Longer Term Support Teams,Social Care - Day Care,07/12/2016,3792683,599.72,APASENTH
Adults Services,Adult Social Care,Support with Memory and Cognition - adults (18-64),CLDS Longer Term Support Teams,Social Care - Day Care,07/12/2016,3792684,"1,524.16",APASENTH
Adults Services,Adult Social Care,Support with Memory and Cognition - adults (18-64),CLDS Longer Term Support Teams,Social Care - Day Care,07/12/2016,3792685,"2,497.00",APASENTH
Adults Services,Adult Social Care,Support with Memory and Cognition - adults (18-64),Generic Care Packages NW Team -PS,Social Care - Homecare,07/12/2016,3792691,709.58,MiHOMECARE LIMITED
Adults Services,Adult Social Care,Support with Memory and Cognition - adults (18-64),Generic Care Packages SE Team -PS,Social Care - Homecare,07/12/2016,3792698,546.86,MiHOMECARE LIMITED
Adults Services,Adult Social Care,Support with Memory and Cognition - adults (18-64),CLDS Longer Term Support Teams,Social Care - Homecare,07/12/2016,3792703,528.39,MiHOMECARE LIMITED
Adults Services,Adult Social Care,Support with Memory and Cognition - adults (18-64),Generic Care Packages SW Team - PS,Social Care - Nursing Care,07/12/2016,3792707,"4,400.89",Heathlands Care Home
Adults Services,Adult Social Care,Support with Memory and Cognition - adults (18-64),Generic Care Packages SE Team -PS,Social Care - Nursing Care,07/12/2016,3792708,"3,515.18",Heathlands Care Home
Adults Services,Adult Social Care,Support with Memory and Cognition - adults (18-64),Generic Care Packages SE Team -PS,Social Care - Nursing Care,07/12/2016,3792709,"-2,381.25",Heathlands Care Home
Adults Services,Adult Social Care,Support with Memory and Cognition - adults (18-64),Generic Care Packages SW Team - PS,Social Care - Residential Care,07/12/2016,3792710,"3,757.20",ACTION ON HEARING LOSS
Adults Services,Adult Social Care,Support with Memory and Cognition - adults (18-64),Generic Care Packages NE Team -SS,Social Care - Residential Care,07/12/2016,3792712,"-18,439.40",Methodist Homes
Adults Services,Adult Social Care,Support with Memory and Cognition - adults (18-64),Cmht For Older People,Social Care - Residential Care,07/12/2016,3792712,"19,084.96",Methodist Homes
Adults Services,Adult Social Care,Support with Memory and Cognition - adults (18-64),Generic Care Packages SE Team -SM,Social Care - Prevention & Support,07/12/2016,3792713,"1,680.00",Plaza London Hotel
Adults Services,Adult Social Care,Support with Memory and Cognition - adults (18-64),Generic Care Packages NW Team -PS,Social Care - Nursing Care,07/12/2016,3792715,"1,743.40",Romford Grange Care Home (Four Seasons)
Adults Services,Adult Social Care,Support with Memory and Cognition - adults (18-64),Generic Care Packages NW Team -PS,Social Care - Nursing Care,07/12/2016,3792716,"1,712.03",Romford Grange Care Home (Four Seasons)
Adults Services,Adult Social Care,Support with Memory and Cognition - adults (18-64),Generic Care Packages NW Team -PS,Social Care - Nursing Care,07/12/2016,3792717,"1,446.46",Romford Grange Care Home (Four Seasons)
Adults Services,Adult Social Care,Support with Memory and Cognition - adults (18-64),Generic Care Packages SE Team -PS,Social Care - Residential Care,07/12/2016,3792726,"1,904.70",RUNWOOD HOMES PLC
Adults Services,Adult Social Care,Support with Memory and Cognition - adults (18-64),Generic Care Packages SE Team -PS,Social Care - Home Care (Short Term),07/12/2016,3792740,652.86,SANCTUARY HOME CARE LIMITED
Adults Services,Adult Social Care,Support with Memory and Cognition - adults (18-64),Generic Care Packages SW Team - PS,Social Care - Homecare,07/12/2016,3792747,709.28,SANCTUARY HOME CARE LIMITED
Adults Services,Adult Social Care,Support with Memory and Cognition - adults (18-64),Generic Care Packages SE Team -PS,Social Care - Home Care (Short Term),07/12/2016,3792752,507.78,SANCTUARY HOME CARE LIMITED
Adults Services,Adult Social Care,Support with Memory and Cognition - adults (18-64),Generic Care Packages NE Team -PS,Social Care - Homecare,07/12/2016,3792753,531.96,SANCTUARY HOME CARE LIMITED
Adults Services,Adult Social Care,Support with Memory and Cognition - adults (18-64),Generic Care Packages SE Team -PS,Social Care - Homecare,07/12/2016,3792756,515.84,SANCTUARY HOME CARE LIMITED
Adults Services,Adult Social Care,Support with Memory and Cognition - adults (18-64),Generic Care Packages SE Team -PS,Social Care - Homecare,07/12/2016,3792761,515.84,SANCTUARY HOME CARE LIMITED
Adults Services,Adult Social Care,Support with Memory and Cognition - adults (18-64),Generic Care Packages SW Team - PS,Social Care - Homecare,07/12/2016,3792768,"1,015.56",SANCTUARY HOME CARE LIMITED
Adults Services,Adult Social Care,Support with Memory and Cognition - adults (18-64),Generic Care Packages NW Team -PS,Social Care - Homecare,07/12/2016,3792769,540.02,SANCTUARY HOME CARE LIMITED
Adults Services,Adult Social Care,Support with Memory and Cognition - adults (18-64),Generic Care Packages SE Team -PS,Social Care - Homecare,07/12/2016,3792771,564.20,SANCTUARY HOME CARE LIMITED
Adults Services,Adult Social Care,Support with Memory and Cognition - adults (18-64),Generic Care Packages NW Team -PS,Social Care - Homecare,07/12/2016,3792772,596.44,SANCTUARY HOME CARE LIMITED
Adults Services,Adult Social Care,Support with Memory and Cognition - adults (18-64),Generic Care Packages SE Team -PS,Social Care - Homecare,07/12/2016,3792774,521.44,SANCTUARY HOME CARE LIMITED
Adults Services,Adult Social Care,Support with Memory and Cognition - adults (18-64),Generic Care Packages NW Team -PS,Social Care - Homecare,07/12/2016,3792776,"1,596.92",SANCTUARY HOME CARE LIMITED
Adults Services,Adult Social Care,Physical Support - adults (18-64),"Failed Care Package Conversion		",Social Care - Homecare,07/12/2016,3792777,513.30,SANCTUARY HOME CARE LIMITED
Adults Services,Adult Social Care,Support with Memory and Cognition - adults (18-64),Generic Care Packages NW Team -PS,Social Care - Homecare,07/12/2016,3792782,624.00,Soma Healthcare Ltd
Adults Services,Adult Social Care,Support with Memory and Cognition - adults (18-64),Cmht For Older People,Social Care - Homecare,07/12/2016,3792784,674.00,Soma Healthcare Ltd
Adults Services,Adult Social Care,Support with Memory and Cognition - adults (18-64),Cmht Bethnal Green,Social Care - Homecare,07/12/2016,3792785,674.00,Soma Healthcare Ltd
Adults Services,Adult Social Care,Support with Memory and Cognition - adults (18-64),Generic Care Packages SE Team -PS,Social Care - Homecare,07/12/2016,3792788,"1,376.40",AQUAFLO CARE LTD
Adults Services,Adult Social Care,Physical Support - adults (18-64),"Failed Care Package Conversion		",Social Care - Prevention & Support - Block,07/12/2016,3792789,"3,125.00",Black Women's Health & Family Support
Adults Services,Adult Social Care,Support with Memory and Cognition - adults (18-64),Generic Care Packages NE Team-SMC,Social Care - Residential Care,07/12/2016,3792790,"3,077.14",Leona Enterprises Ltd
Adults Services,Adult Social Care,Physical Support - adults (18-64),Public Health � Healthy Young Adults,Third Party Payments - Other Establishments,09/12/2016,3771024,"14,418.00",Imperial College Healthcare NHS Trust
Adults Services,Adult Social Care,Physical Support - adults (18-64),Public Health � Healthy Middle Age & Older People.,Third Party Payments - Voluntary Associations,09/12/2016,3772329,"67,452.00",The Bromley by Bow Centre
Adults Services,Adult Social Care,Physical Support - adults (18-64),Public Health � Healthy Middle Age & Older People.,Third Party Payments - Voluntary Associations,09/12/2016,3772330,"82,990.00",The Bromley by Bow Centre
Adults Services,Adult Social Care,Physical Support - adults (18-64),Public Health � Healthy Young Adults,Third Party Payments - Other Establishments,09/12/2016,3774432,"-18,685.77",Barts Health NHS Trust
Adults Services,Adult Social Care,Physical Support - adults (18-64),Learning Dis Commissioning,Social Care - Residential Care,09/12/2016,3777797,"3,420.03",Scope
Adults Services,Adult Social Care,Sensory Support - older people (65+),"Public Health-Vanguard			",Third Party Payments - Other Establishments,09/12/2016,3777818,"1,920.00",Shortwork
Adults Services,Adult Social Care,Support with Memory and Cognition - adults (18-64),Generic Care Packages NE Team-SMC,Social Care - Respite Care,09/12/2016,3778583,640.77,ANCHOR TRUST HOMES ACCOUNT
Adults Services,Adult Social Care,Support with Memory and Cognition - adults (18-64),Generic Care Packages NE Team-SMC,Social Care - Respite Care,09/12/2016,3778584,"4,633.26",ANCHOR TRUST HOMES ACCOUNT
Adults Services,Adult Social Care,Physical Support - adults (18-64),Public Health � Healthy Communities,Third Party Payments - Voluntary Associations,09/12/2016,3779276,"2,942.07",Account 3 Ltd
Adults Services,Adult Social Care,Physical Support - adults (18-64),Public Health � Healthy Young Adults,Third Party Payments - Other Establishments,09/12/2016,3786309,"3,099.00",North West London Hospitals NHS Trust
Adults Services,Adult Social Care,Support with Memory and Cognition - adults (18-64),CLDS Longer Term Support Teams,Social Care - Homecare,09/12/2016,3789568,"1,199.64",Look Ahead Care & Support Ltd
Adults Services,Adult Social Care,Physical Support - adults (18-64),Public Health � Healthy Young Adults,Payments to Private Contractors - Other Contractors,09/12/2016,3790431,840.40,FLORIDA PHARMACY
Adults Services,Adult Social Care,Support with Memory and Cognition - adults (18-64),CLDS Longer Term Support Teams,Social Care - Day Care,09/12/2016,3793147,"1,399.00",VIBRANCE
Adults Services,Adult Social Care,Support with Memory and Cognition - adults (18-64),CLDS Longer Term Support Teams,Social Care - Day Care,09/12/2016,3793148,"1,753.00",VIBRANCE
Adults Services,Adult Social Care,Support with Memory and Cognition - adults (18-64),CLDS Longer Term Support Teams,Social Care - Day Care,09/12/2016,3793149,"1,328.00",VIBRANCE
Adults Services,Adult Social Care,Support with Memory and Cognition - adults (18-64),CLDS Longer Term Support Teams,Social Care - Day Care,09/12/2016,3793153,"1,731.00",VIBRANCE
Adults Services,Adult Social Care,Support with Memory and Cognition - adults (18-64),CLDS Longer Term Support Teams,Social Care - Residential Care,09/12/2016,3793154,"12,127.80",Kisimul Group Ltd
Adults Services,Adult Social Care,Support with Memory and Cognition - adults (18-64),CLDS Longer Term Support Teams,Social Care - Prevention & Support,09/12/2016,3793156,"1,279.20",Look Ahead Care & Support Ltd
Adults Services,Adult Social Care,Support with Memory and Cognition - adults (18-64),Cmht Bethnal Green,Social Care - Supported Living,09/12/2016,3793157,"3,487.56",J M CAREHOMES LIMITED
Adults Services,Adult Social Care,Support with Memory and Cognition - adults (18-64),CLDS Longer Term Support Teams,Social Care - Residential Care,09/12/2016,3793159,"7,915.46",Care Management Group Ltd
Adults Services,Adult Social Care,Support with Memory and Cognition - adults (18-64),CLDS Longer Term Support Teams,Social Care - Residential Care,09/12/2016,3793169,"6,537.90",INDEPENDENCE HOMES LTD
Adults Services,Adult Social Care,Support with Memory and Cognition - adults (18-64),CLDS Longer Term Support Teams,Social Care - Day Care,09/12/2016,3793173,"1,740.20",CLACTON FAMILY TRUST
Adults Services,Adult Social Care,Support with Memory and Cognition - adults (18-64),CLDS Longer Term Support Teams,Social Care - Day Care,09/12/2016,3793189,"1,298.71",VIBRANCE
Adults Services,Adult Social Care,Physical Support - adults (18-64),"Failed Care Package Conversion		",Social Care - Others,09/12/2016,3793189,"-2,284.71",VIBRANCE
Adults Services,Adult Social Care,Support with Memory and Cognition - adults (18-64),Generic Care Packages NW Team-SMC,Social Care - Nursing Care,09/12/2016,3793198,"4,687.50",Loughton Care Centre
Adults Services,Adult Social Care,Support with Memory and Cognition - adults (18-64),Cmht Bethnal Green,Social Care - Prevention & Support,09/12/2016,3793202,"2,450.00",City Inn Express Limited
Adults Services,Adult Social Care,Support with Memory and Cognition - adults (18-64),Cmht Bow / Poplar North,Social Care - Prevention & Support,09/12/2016,3793203,"2,450.00",City Inn Express Limited
Adults Services,Adult Social Care,Support with Memory and Cognition - adults (18-64),Cmht Bethnal Green,Social Care - Prevention & Support,09/12/2016,3793204,"2,450.00",City Inn Express Limited
Adults Services,Adult Social Care,Support with Memory and Cognition - adults (18-64),Cmht Bethnal Green,Social Care - Prevention & Support,09/12/2016,3793205,"2,450.00",City Inn Express Limited
Adults Services,Adult Social Care,Support with Memory and Cognition - adults (18-64),Cmht Bethnal Green,Social Care - Prevention & Support,09/12/2016,3793206,"4,480.00",City Inn Express Limited
Adults Services,Adult Social Care,Support with Memory and Cognition - adults (18-64),Cmht Bow / Poplar North,Social Care - Prevention & Support,09/12/2016,3793206,"-2,030.00",City Inn Express Limited
Adults Services,Adult Social Care,Support with Memory and Cognition - adults (18-64),CLDS Longer Term Support Teams,Social Care - Residential Care,09/12/2016,3793211,"3,082.00",Craegmoor Roseneath Avenue
Adults Services,Adult Social Care,Support with Memory and Cognition - adults (18-64),CLDS Longer Term Support Teams,Social Care - Residential Care,09/12/2016,3793212,"14,537.79",Craegmoor Roseneath Avenue
Adults Services,Adult Social Care,Support with Memory and Cognition - adults (18-64),CLDS Longer Term Support Teams,Social Care - Residential Care,09/12/2016,3793229,"10,189.50",Care Management Group Ltd
Adults Services,Adult Social Care,Support with Memory and Cognition - adults (18-64),CLDS Longer Term Support Teams,Social Care - Homecare,09/12/2016,3793241,840.93,Excelcare (Home Care Division) LTD
Adults Services,Adult Social Care,Support with Memory and Cognition - adults (18-64),CLDS Longer Term Support Teams,Social Care - Homecare,09/12/2016,3793242,798.16,Excelcare (Home Care Division) LTD
Adults Services,Adult Social Care,Support with Memory and Cognition - adults (18-64),CLDS Longer Term Support Teams,Social Care - Homecare,09/12/2016,3793245,"2,590.20",MEARS CARE LTD
Adults Services,Adult Social Care,Support with Memory and Cognition - adults (18-64),Generic Care Packages SW Team - PS,Social Care - Homecare,09/12/2016,3793252,"1,212.88",Excelcare (Home Care Division) LTD
Adults Services,Adult Social Care,Support with Memory and Cognition - adults (18-64),Generic Care Packages NW Team -PS,Social Care - Homecare,09/12/2016,3793254,570.21,Excelcare (Home Care Division) LTD
Adults Services,Adult Social Care,Support with Memory and Cognition - adults (18-64),Generic Care Packages SW Team - PS,Social Care - Homecare,09/12/2016,3793256,691.04,Excelcare (Home Care Division) LTD
Adults Services,Adult Social Care,Support with Memory and Cognition - adults (18-64),Generic Care Packages SW Team - PS,Social Care - Homecare,09/12/2016,3793261,634.70,Excelcare (Home Care Division) LTD
Adults Services,Adult Social Care,Support with Memory and Cognition - adults (18-64),Generic Care Packages NE Team -PS,Social Care - Homecare,09/12/2016,3793263,888.44,Excelcare (Home Care Division) LTD
Adults Services,Adult Social Care,Support with Memory and Cognition - adults (18-64),Generic Care Packages SE Team -SI,Social Care - Homecare,09/12/2016,3793273,542.92,Excelcare (Home Care Division) LTD
Adults Services,Adult Social Care,Support with Memory and Cognition - adults (18-64),Generic Care Packages SW Team - PS,Social Care - Homecare,09/12/2016,3793278,535.80,Excelcare (Home Care Division) LTD
Adults Services,Adult Social Care,Support with Memory and Cognition - adults (18-64),Generic Care Packages NE Team -PS,Social Care - Homecare,09/12/2016,3793283,599.46,Excelcare (Home Care Division) LTD
Adults Services,Adult Social Care,Support with Memory and Cognition - adults (18-64),Generic Care Packages SE Team -PS,Social Care - Home Care (Short Term),09/12/2016,3793286,"2,227.82",Excelcare (Home Care Division) LTD
Adults Services,Adult Social Care,Support with Memory and Cognition - adults (18-64),CLDS Longer Term Support Teams,Social Care - Homecare,09/12/2016,3793287,"1,762.58",Excelcare (Home Care Division) LTD
Adults Services,Adult Social Care,Support with Memory and Cognition - adults (18-64),Generic Care Packages NE Team -PS,Social Care - Homecare,09/12/2016,3793288,521.80,Excelcare (Home Care Division) LTD
Adults Services,Adult Social Care,Support with Memory and Cognition - adults (18-64),Generic Care Packages NE Team -PS,Social Care - Homecare,09/12/2016,3793289,571.20,Excelcare (Home Care Division) LTD
Adults Services,Adult Social Care,Physical Support - adults (18-64),"Failed Care Package Conversion		",Social Care - Homecare,09/12/2016,3793294,"1,184.40",Excelcare (Home Care Division) LTD
Adults Services,Adult Social Care,Support with Memory and Cognition - adults (18-64),CLDS Longer Term Support Teams,Social Care - Homecare,09/12/2016,3793295,"4,088.02",Excelcare (Home Care Division) LTD
Adults Services,Adult Social Care,Support with Memory and Cognition - adults (18-64),Generic Care Packages SE Team -PS,Social Care - Homecare,09/12/2016,3793296,951.82,Excelcare (Home Care Division) LTD
Adults Services,Adult Social Care,Support with Memory and Cognition - adults (18-64),Generic Care Packages NW Team -PS,Social Care - Homecare,09/12/2016,3793299,506.16,Excelcare (Home Care Division) LTD
Adults Services,Adult Social Care,Support with Memory and Cognition - adults (18-64),CLDS Longer Term Support Teams,Social Care - Residential Care,09/12/2016,3793300,"8,802.00",London Care Partnership Ltd
Adults Services,Adult Social Care,Support with Memory and Cognition - adults (18-64),CLDS Transition,Social Care - Residential Care,09/12/2016,3793301,"7,317.11",APPLEWOOD CARE HOME
Adults Services,Adult Social Care,Support with Memory and Cognition - adults (18-64),CLDS Transition,Social Care - Residential Care,09/12/2016,3793302,"7,081.07",APPLEWOOD CARE HOME
Adults Services,Adult Social Care,Support with Memory and Cognition - adults (18-64),CLDS Transition,Social Care - Residential Care,09/12/2016,3793303,"7,317.11",APPLEWOOD CARE HOME
Adults Services,Adult Social Care,Support with Memory and Cognition - adults (18-64),"Generic Care Packages SE Team-LD							",Social Care - Residential Care,09/12/2016,3793305,"3,985.71",Amber Care East Anglia Ltd
Adults Services,Adult Social Care,Physical Support - adults (18-64),"Failed Care Package Conversion		",Social Care - Others,09/12/2016,3793306,637.19,SUMMERDALE COURT CARE CENTRE
Adults Services,Adult Social Care,Support with Memory and Cognition - adults (18-64),Cmht Stepney / Wapping,Social Care - Residential Care,09/12/2016,3793307,"11,392.85",ST MICHAELS LODGE T/A SHAKTHI HEALTHCARE LIMITED
Adults Services,Adult Social Care,Support with Memory and Cognition - adults (18-64),Generic Care Packages NW Team -PS,Social Care - Direct Payments,09/12/2016,3793309,"-1,206.72",DAVID HOWARD LTD CLIENT ACCOUNT
Adults Services,Adult Social Care,Support with Memory and Cognition - adults (18-64),Generic Care Packages SW Team - PS,Social Care - Direct Payments,09/12/2016,3793313,"1,475.29",DAVID HOWARD LTD CLIENT ACCOUNT
Adults Services,Adult Social Care,Support with Memory and Cognition - adults (18-64),Generic Care Packages SW Team - PS,Social Care - Direct Payments,09/12/2016,3793315,914.55,DAVID HOWARD LTD CLIENT ACCOUNT
Adults Services,Adult Social Care,Support with Memory and Cognition - adults (18-64),CLDS Longer Term Support Teams,Social Care - Residential Care,09/12/2016,3793317,"4,350.00",The Pines
Adults Services,Adult Social Care,Support with Memory and Cognition - adults (18-64),Generic Care Packages SW Team - PS,Social Care - Homecare,09/12/2016,3793325,807.32,FOCUS CARE LINK LTD
Adults Services,Adult Social Care,Support with Memory and Cognition - adults (18-64),Generic Care Packages SE Team -PS,Social Care - Homecare,09/12/2016,3793327,"1,524.09",FOCUS CARE LINK LTD
Adults Services,Adult Social Care,Support with Memory and Cognition - adults (18-64),Cmht Bow / Poplar North,Social Care - Homecare,09/12/2016,3793336,"1,094.03",FOCUS CARE LINK LTD
Adults Services,Adult Social Care,Support with Memory and Cognition - adults (18-64),Generic Care Packages SE Team -PS,Social Care - Home Care (Short Term),09/12/2016,3793337,"1,478.82",FOCUS CARE LINK LTD
Adults Services,Adult Social Care,Support with Memory and Cognition - adults (18-64),CLDS Longer Term Support Teams,Social Care - Residential Care,09/12/2016,3793343,"9,297.22",Wallace Crescent
Adults Services,Adult Social Care,Support with Memory and Cognition - adults (18-64),Generic Care Packages SE Team -PS,Social Care - Home Care (Short Term),09/12/2016,3793347,"1,253.30",SEVACARE UK LTD
Adults Services,Adult Social Care,Support with Memory and Cognition - adults (18-64),CLDS Longer Term Support Teams,Social Care - Home Care (Short Term),09/12/2016,3793355,513.40,SEVACARE UK LTD
Adults Services,Adult Social Care,Support with Memory and Cognition - adults (18-64),Generic Care Packages SE Team-SMC,Social Care - Homecare,09/12/2016,3793363,"1,661.00",SEVACARE UK LTD
Adults Services,Adult Social Care,Support with Memory and Cognition - adults (18-64),Generic Care Packages NE Team -PS,Social Care - Homecare,09/12/2016,3793378,"1,170.25",SEVACARE UK LTD
Adults Services,Adult Social Care,Support with Memory and Cognition - adults (18-64),Generic Care Packages NW Team -PS,Social Care - Home Care (Short Term),09/12/2016,3793382,604.00,SEVACARE UK LTD
Adults Services,Adult Social Care,Support with Memory and Cognition - adults (18-64),Generic Care Packages NW Team -PS,Social Care - Home Care (Short Term),09/12/2016,3793389,"1,124.95",SEVACARE UK LTD
Adults Services,Adult Social Care,Support with Memory and Cognition - adults (18-64),Generic Care Packages NW Team -PS,Social Care - Homecare,09/12/2016,3793391,845.60,SEVACARE UK LTD
Adults Services,Adult Social Care,Support with Memory and Cognition - adults (18-64),Generic Care Packages SW Team - PS,Social Care - Homecare,09/12/2016,3793408,951.30,SEVACARE UK LTD
Adults Services,Adult Social Care,Support with Memory and Cognition - adults (18-64),Generic Care Packages NW Team -PS,Social Care - Home Care (Short Term),09/12/2016,3793418,581.35,SEVACARE UK LTD
Adults Services,Adult Social Care,Support with Memory and Cognition - adults (18-64),Generic Care Packages NW Team -PS,Social Care - Homecare,09/12/2016,3793419,528.50,SEVACARE UK LTD
Adults Services,Adult Social Care,Support with Memory and Cognition - adults (18-64),Generic Care Packages NE Team -PS,Social Care - Home Care (Short Term),09/12/2016,3793420,520.95,SEVACARE UK LTD
Adults Services,Adult Social Care,Support with Memory and Cognition - adults (18-64),Generic Care Packages SW Team - PS,Social Care - Homecare,09/12/2016,3793427,"1,683.65",SEVACARE UK LTD
Adults Services,Adult Social Care,Support with Memory and Cognition - adults (18-64),Generic Care Packages SW Team - PS,Social Care - Home Care (Short Term),09/12/2016,3793434,551.15,SEVACARE UK LTD
Adults Services,Adult Social Care,Support with Memory and Cognition - adults (18-64),Generic Care Packages SE Team -PS,Social Care - Home Care (Short Term),09/12/2016,3793435,943.75,SEVACARE UK LTD
Adults Services,Adult Social Care,Support with Memory and Cognition - adults (18-64),Generic Care Packages SE Team -PS,Social Care - Home Care (Short Term),09/12/2016,3793437,"1,057.00",SEVACARE UK LTD
Adults Services,Adult Social Care,Support with Memory and Cognition - adults (18-64),Generic Care Packages NE Team -PS,Social Care - Homecare,09/12/2016,3793458,"1,543.92",REDSPOT HOMECARE (CONTRACTS) LTD
Adults Services,Adult Social Care,Support with Memory and Cognition - adults (18-64),Generic Care Packages SE Team -PS,Social Care - Homecare,09/12/2016,3793458,"2,874.48",REDSPOT HOMECARE (CONTRACTS) LTD
Adults Services,Adult Social Care,Support with Memory and Cognition - adults (18-64),Generic Care Packages SW Team - PS,Social Care - Homecare,09/12/2016,3793462,867.90,REDSPOT HOMECARE (CONTRACTS) LTD
Adults Services,Adult Social Care,Support with Memory and Cognition - adults (18-64),Generic Care Packages SW Team - PS,Social Care - Homecare,09/12/2016,3793474,598.33,REDSPOT HOMECARE (CONTRACTS) LTD
Adults Services,Adult Social Care,Support with Memory and Cognition - adults (18-64),CLDS Longer Term Support Teams,Social Care - Residential Care,09/12/2016,3793476,"9,300.77",NEW DIRECTIONS (ST LEONARDS ON SEA) LTD
Adults Services,Adult Social Care,Support with Memory and Cognition - adults (18-64),CLDS Longer Term Support Teams,Social Care - Day Care,09/12/2016,3793477,"2,210.40",NAS Services Ltd
Adults Services,Adult Social Care,Support with Memory and Cognition - adults (18-64),CLDS Longer Term Support Teams,Social Care - Supported Living,09/12/2016,3793478,"1,755.00",Kent Homefinding and Fostering
Adults Services,Adult Social Care,Support with Memory and Cognition - adults (18-64),Generic Care Packages NE Team -PS,Social Care - Nursing Care,09/12/2016,3793479,"2,216.14",Bakers Court Nursing Home
Adults Services,Adult Social Care,Support with Memory and Cognition - adults (18-64),Generic Care Packages NE Team-SMC,Social Care - Residential Care,09/12/2016,3793480,"2,159.66",Bakers Court Nursing Home
Adults Services,Adult Social Care,Support with Memory and Cognition - adults (18-64),Generic Care Packages NE Team -PS,Social Care - Nursing Care,09/12/2016,3793481,"2,290.01",Bakers Court Nursing Home
Adults Services,Adult Social Care,Support with Memory and Cognition - adults (18-64),Generic Care Packages NE Team-SMC,Social Care - Residential Care,09/12/2016,3793482,"2,231.65",Bakers Court Nursing Home
Adults Services,Adult Social Care,Support with Memory and Cognition - adults (18-64),Cmht Bethnal Green,Social Care - Day Care,09/12/2016,3793484,552.66,St Hilda's East Community Centre
Adults Services,Adult Social Care,Support with Memory and Cognition - adults (18-64),Generic Care Packages SW Team - PS,Social Care - Day Care,09/12/2016,3793486,"1,027.80",St Hilda's East Community Centre
Adults Services,Adult Social Care,Support with Memory and Cognition - adults (18-64),Cmht Stepney / Wapping,Social Care - Day Care,09/12/2016,3793488,758.22,St Hilda's East Community Centre
Adults Services,Adult Social Care,Support with Memory and Cognition - adults (18-64),Cmht Bow / Poplar North,Social Care - Day Care,09/12/2016,3793491,608.26,St Hilda's East Community Centre
Adults Services,Adult Social Care,Support with Memory and Cognition - adults (18-64),Generic Care Packages NW Team -PS,Social Care - Homecare,09/12/2016,3793494,562.40,COMMUNITY CARE CONSORTIUM
Adults Services,Adult Social Care,Support with Memory and Cognition - adults (18-64),Generic Care Packages NW Team -PS,Social Care - Homecare,09/12/2016,3793495,600.40,COMMUNITY CARE CONSORTIUM
Adults Services,Adult Social Care,Support with Memory and Cognition - adults (18-64),Generic Care Packages NW Team -PS,Social Care - Homecare,09/12/2016,3793496,562.40,COMMUNITY CARE CONSORTIUM
Adults Services,Adult Social Care,Support with Memory and Cognition - adults (18-64),Generic Care Packages NW Team -PS,Social Care - Homecare,09/12/2016,3793497,600.40,COMMUNITY CARE CONSORTIUM
Adults Services,Adult Social Care,Support with Memory and Cognition - adults (18-64),Generic Care Packages NW Team -PS,Social Care - Homecare,09/12/2016,3793498,532.00,COMMUNITY CARE CONSORTIUM
Adults Services,Adult Social Care,Support with Memory and Cognition - adults (18-64),Generic Care Packages NW Team -PS,Social Care - Homecare,09/12/2016,3793499,562.40,COMMUNITY CARE CONSORTIUM
Adults Services,Adult Social Care,Support with Memory and Cognition - adults (18-64),Generic Care Packages NW Team -PS,Social Care - Homecare,09/12/2016,3793500,562.40,COMMUNITY CARE CONSORTIUM
Adults Services,Adult Social Care,Support with Memory and Cognition - adults (18-64),CLDS Longer Term Support Teams,Social Care - Homecare,09/12/2016,3793501,836.90,COMMUNITY CARE CONSORTIUM
Adults Services,Adult Social Care,Support with Memory and Cognition - adults (18-64),Generic Care Packages NE Team -PS,Social Care - Homecare,09/12/2016,3793502,786.60,COMMUNITY CARE CONSORTIUM
Adults Services,Adult Social Care,Support with Memory and Cognition - adults (18-64),Generic Care Packages SE Team -PS,Social Care - Homecare,09/12/2016,3793503,585.20,COMMUNITY CARE CONSORTIUM
Adults Services,Adult Social Care,Support with Memory and Cognition - adults (18-64),CLDS Longer Term Support Teams,Social Care - Homecare,09/12/2016,3793504,"1,302.00",COMMUNITY CARE CONSORTIUM
Adults Services,Adult Social Care,Support with Memory and Cognition - adults (18-64),Generic Care Packages NW Team -PS,Social Care - Homecare,09/12/2016,3793505,562.40,COMMUNITY CARE CONSORTIUM
Adults Services,Adult Social Care,Support with Memory and Cognition - adults (18-64),Generic Care Packages NW Team -PS,Social Care - Homecare,09/12/2016,3793506,700.80,COMMUNITY CARE CONSORTIUM
Adults Services,Adult Social Care,Support with Memory and Cognition - adults (18-64),CLDS Longer Term Support Teams,Social Care - Residential Care,09/12/2016,3793508,"5,998.20",NEXUS Programme Ltd
Adults Services,Adult Social Care,Support with Memory and Cognition - adults (18-64),CLDS Longer Term Support Teams,Social Care - Day Care,09/12/2016,3793509,708.76,APASENTH
Adults Services,Adult Social Care,Support with Memory and Cognition - adults (18-64),CLDS Longer Term Support Teams,Social Care - Day Care,09/12/2016,3793510,"1,090.40",APASENTH
Adults Services,Adult Social Care,Support with Memory and Cognition - adults (18-64),CLDS Longer Term Support Teams,Social Care - Day Care,09/12/2016,3793512,926.84,APASENTH
Adults Services,Adult Social Care,Support with Memory and Cognition - adults (18-64),CLDS Longer Term Support Teams,Social Care - Day Care,09/12/2016,3793513,599.72,APASENTH
Adults Services,Adult Social Care,Support with Memory and Cognition - adults (18-64),CLDS Longer Term Support Teams,Social Care - Day Care,09/12/2016,3793516,"2,172.94",APASENTH
Adults Services,Adult Social Care,Support with Memory and Cognition - adults (18-64),CLDS Longer Term Support Teams,Social Care - Day Care,09/12/2016,3793517,"1,524.16",APASENTH
Adults Services,Adult Social Care,Support with Memory and Cognition - adults (18-64),CLDS Longer Term Support Teams,Social Care - Day Care,09/12/2016,3793518,"2,043.00",APASENTH
Adults Services,Adult Social Care,Support with Memory and Cognition - adults (18-64),CLDS Longer Term Support Teams,Social Care - Day Care,09/12/2016,3793519,"1,199.44",APASENTH
Adults Services,Adult Social Care,Support with Memory and Cognition - adults (18-64),CLDS Longer Term Support Teams,Social Care - Day Care,09/12/2016,3793521,"2,497.00",APASENTH
Adults Services,Adult Social Care,Support with Memory and Cognition - adults (18-64),CLDS Longer Term Support Teams,Social Care - Day Care,09/12/2016,3793522,"1,913.56",APASENTH
Adults Services,Adult Social Care,Support with Memory and Cognition - adults (18-64),CLDS Longer Term Support Teams,Social Care - Day Care,09/12/2016,3793523,"1,199.44",APASENTH
Adults Services,Adult Social Care,Support with Memory and Cognition - adults (18-64),CLDS Longer Term Support Teams,Social Care - Day Care,09/12/2016,3793524,900.64,APASENTH
Adults Services,Adult Social Care,Support with Memory and Cognition - adults (18-64),CLDS Longer Term Support Teams,Social Care - Day Care,09/12/2016,3793525,"2,074.38",APASENTH
Adults Services,Adult Social Care,Support with Memory and Cognition - adults (18-64),CLDS Longer Term Support Teams,Social Care - Day Care,09/12/2016,3793526,"1,144.92",APASENTH
Adults Services,Adult Social Care,Support with Memory and Cognition - adults (18-64),CLDS Longer Term Support Teams,Social Care - Day Care,09/12/2016,3793527,"1,316.32",APASENTH
Adults Services,Adult Social Care,Support with Memory and Cognition - adults (18-64),CLDS Longer Term Support Teams,Social Care - Day Care,09/12/2016,3793528,708.76,APASENTH
Adults Services,Adult Social Care,Support with Memory and Cognition - adults (18-64),CLDS Longer Term Support Teams,Social Care - Day Care,09/12/2016,3793529,"1,199.44",APASENTH
Adults Services,Adult Social Care,Support with Memory and Cognition - adults (18-64),CLDS Longer Term Support Teams,Social Care - Day Care,09/12/2016,3793530,"1,090.40",APASENTH
Adults Services,Adult Social Care,Support with Memory and Cognition - adults (18-64),CLDS Longer Term Support Teams,Social Care - Day Care,09/12/2016,3793531,654.24,APASENTH
Adults Services,Adult Social Care,Support with Memory and Cognition - adults (18-64),CLDS Longer Term Support Teams,Social Care - Day Care,09/12/2016,3793532,"1,035.88",APASENTH
Adults Services,Adult Social Care,Support with Memory and Cognition - adults (18-64),CLDS Longer Term Support Teams,Social Care - Day Care,09/12/2016,3793533,"1,199.44",APASENTH
Adults Services,Adult Social Care,Support with Memory and Cognition - adults (18-64),CLDS Longer Term Support Teams,Social Care - Day Care,09/12/2016,3793535,"1,524.16",APASENTH
Adults Services,Adult Social Care,Support with Memory and Cognition - adults (18-64),CLDS Longer Term Support Teams,Social Care - Day Care,09/12/2016,3793536,708.76,APASENTH
Adults Services,Adult Social Care,Support with Memory and Cognition - adults (18-64),CLDS Longer Term Support Teams,Social Care - Day Care,09/12/2016,3793537,"1,589.42",APASENTH
Adults Services,Adult Social Care,Support with Memory and Cognition - adults (18-64),CLDS Longer Term Support Teams,Social Care - Day Care,09/12/2016,3793539,"1,199.44",APASENTH
Adults Services,Adult Social Care,Support with Memory and Cognition - adults (18-64),CLDS Longer Term Support Teams,Social Care - Day Care,09/12/2016,3793540,545.20,APASENTH
Adults Services,Adult Social Care,Support with Memory and Cognition - adults (18-64),CLDS Longer Term Support Teams,Social Care - Day Care,09/12/2016,3793541,"1,524.16",APASENTH
Adults Services,Adult Social Care,Support with Memory and Cognition - adults (18-64),CLDS Transition,Social Care - Day Care,09/12/2016,3793542,"1,524.16",APASENTH
Adults Services,Adult Social Care,Support with Memory and Cognition - adults (18-64),CLDS Transition,Social Care - Day Care,09/12/2016,3793546,"2,497.00",APASENTH
Adults Services,Adult Social Care,Support with Memory and Cognition - adults (18-64),Cmht Bow / Poplar North,Social Care - Residential Care,09/12/2016,3793547,"2,378.79",Goldcarehomes
Adults Services,Adult Social Care,Support with Memory and Cognition - adults (18-64),Generic Care Packages NE Team -PS,Social Care - Homecare,09/12/2016,3793548,-537.86,MiHOMECARE LIMITED
Adults Services,Adult Social Care,Physical Support - adults (18-64),"Failed Care Package Conversion		",Social Care - Others,09/12/2016,3793548,"1,055.16",MiHOMECARE LIMITED
Adults Services,Adult Social Care,Support with Memory and Cognition - adults (18-64),Generic Care Packages NE Team -PS,Social Care - Homecare,09/12/2016,3793549,509.91,MiHOMECARE LIMITED
Adults Services,Adult Social Care,Support with Memory and Cognition - adults (18-64),Cmht For Older People,Social Care - Nursing Care,09/12/2016,3793550,"3,739.93",Havelock Court (Bupa)
Adults Services,Adult Social Care,Support with Memory and Cognition - adults (18-64),Cmht For Older People,Social Care - Nursing Care,09/12/2016,3793551,"3,864.59",Havelock Court (Bupa)
Adults Services,Adult Social Care,Support with Memory and Cognition - adults (18-64),CLDS Longer Term Support Teams,Social Care - Day Care,09/12/2016,3793553,"1,520.28",ROYAL BOROUGH OF WINDSOR AND MAIDENHEAD
Adults Services,Adult Social Care,Support with Memory and Cognition - adults (18-64),CLDS Longer Term Support Teams,Social Care - Residential Care,09/12/2016,3793554,"1,055.37",GRACE EYRE FOUNDATION
Adults Services,Adult Social Care,Support with Memory and Cognition - adults (18-64),CLDS Longer Term Support Teams,Social Care - Day Care,09/12/2016,3793556,"1,166.34",GRACE EYRE FOUNDATION
Adults Services,Adult Social Care,Support with Memory and Cognition - adults (18-64),CLDS Longer Term Support Teams,Social Care - Residential Care,09/12/2016,3793557,"7,364.00",North Down Villa
Adults Services,Adult Social Care,Support with Memory and Cognition - adults (18-64),CLDS Longer Term Support Teams,Social Care - Residential Care,09/12/2016,3793572,"7,071.43",DELROSE HOUSE LIMITED
Adults Services,Adult Social Care,Physical Support - adults (18-64),"Failed Care Package Conversion		",Social Care - Old People-Supp Needs,09/12/2016,3793573,"19,685.25",AGE UK EAST LONDON
Adults Services,Adult Social Care,Physical Support - adults (18-64),"Failed Care Package Conversion		",Social Care - Old People-Supp Needs,09/12/2016,3793574,"14,000.00",AGE UK EAST LONDON
Adults Services,Adult Social Care,Support with Memory and Cognition - adults (18-64),CLDS Longer Term Support Teams,Social Care - Supported Living,09/12/2016,3793575,"3,214.29",LEYTON HOUSE COMMUNITY CARE
Adults Services,Adult Social Care,Support with Memory and Cognition - adults (18-64),CLDS Longer Term Support Teams,Social Care - Residential Care,09/12/2016,3793576,"3,786.30",OUTLOOK HOUSE
Adults Services,Adult Social Care,Support with Memory and Cognition - adults (18-64),CLDS Longer Term Support Teams,Social Care - Day Care,09/12/2016,3793587,"1,787.20",POETRY IN WOOD
Adults Services,Adult Social Care,Support with Memory and Cognition - adults (18-64),CLDS Longer Term Support Teams,Social Care - Homecare,09/12/2016,3793591,799.54,East Thames Group Ltd
Adults Services,Adult Social Care,Support with Memory and Cognition - adults (18-64),Generic Care Packages NW Team -PS,Social Care - Nursing Care,09/12/2016,3793592,"2,052.38",CARE FIRST CARE HOMES LTD
Adults Services,Adult Social Care,Support with Memory and Cognition - adults (18-64),Generic Care Packages NW Team -PS,Social Care - Nursing Care,09/12/2016,3793593,"2,798.70",CARE FIRST CARE HOMES LTD
Adults Services,Adult Social Care,Support with Memory and Cognition - adults (18-64),Generic Care Packages NW Team -PS,Social Care - Nursing Care,09/12/2016,3793594,746.32,CARE FIRST CARE HOMES LTD
Adults Services,Adult Social Care,Support with Memory and Cognition - adults (18-64),CLDS Longer Term Support Teams,Non Staff Transport Costs - Client Transport Costs,09/12/2016,3793595,857.27,DIMENSIONS (UK) LTD
Adults Services,Adult Social Care,Support with Memory and Cognition - adults (18-64),Generic Care Packages SE Team -PS,Social Care - Residential Care,09/12/2016,3793604,"2,172.90",RUNWOOD HOMES PLC
Adults Services,Adult Social Care,Support with Memory and Cognition - adults (18-64),Generic Care Packages NW Team -PS,Social Care - Residential Care,09/12/2016,3793605,"1,925.96",RUNWOOD HOMES PLC
Adults Services,Adult Social Care,Support with Memory and Cognition - adults (18-64),CLDS Longer Term Support Teams,Social Care - Day Care,09/12/2016,3793606,"3,179.31",Norwood Ravenswood Services LTD
Adults Services,Adult Social Care,Support with Memory and Cognition - adults (18-64),CLDS Longer Term Support Teams,Social Care - Day Care,09/12/2016,3793607,"2,049.83",Norwood Ravenswood Services LTD
Adults Services,Adult Social Care,Physical Support - adults (18-64),Adult Protection Team,Services - Professional Fees - Consultants Fees,12/12/2016,3781806,722.68,SMART CLOUD CONSULTING LTD
Adults Services,No Service Specified,No Division Specified,Residents Savings(P & V ),Residents Savings - Resdnt Savings Receipts,12/12/2016,3782562,"6,400.00",IWC Estate Planning & Management Limited
Adults Services,Adult Social Care,Support with Memory and Cognition - adults (18-64),Cmht For Older People,Social Care - Respite Care,12/12/2016,3783834,"1,928.57",BARCHESTER HEALTHCARE
Adults Services,Adult Social Care,Support with Memory and Cognition - adults (18-64),Generic Care Packages SE Team -PS,Social Care - Residential Care,12/12/2016,3785779,"2,507.14",BARCHESTER HEALTHCARE
Adults Services,Adult Social Care,Support with Memory and Cognition - adults (18-64),Generic Care Packages SW Team - PS,Social Care - Residential Care,12/12/2016,3785780,"2,705.36",BARCHESTER HEALTHCARE
Adults Services,Adult Social Care,Support with Memory and Cognition - adults (18-64),Generic Care Packages SW Team - PS,Social Care - Residential Care,12/12/2016,3785781,"2,400.00",BARCHESTER HEALTHCARE
Adults Services,Adult Social Care,Support with Memory and Cognition - adults (18-64),Generic Care Packages NW Team -PS,Social Care - Residential Care,12/12/2016,3785782,"1,689.81",BARCHESTER HEALTHCARE
Adults Services,Adult Social Care,Support with Memory and Cognition - adults (18-64),Generic Care Packages NW Team-SMC,Social Care - Nursing Care,12/12/2016,3785783,"2,158.93",BARCHESTER HEALTHCARE
Adults Services,Adult Social Care,Support with Memory and Cognition - adults (18-64),Generic Care Packages SE Team -PS,Social Care - Nursing Care,12/12/2016,3785784,"2,437.50",BARCHESTER HEALTHCARE
Adults Services,Adult Social Care,Support with Memory and Cognition - adults (18-64),Generic Care Packages SE Team -PS,Social Care - Nursing Care,12/12/2016,3785785,"2,973.22",BARCHESTER HEALTHCARE
Adults Services,Adult Social Care,Support with Memory and Cognition - adults (18-64),CLDS Longer Term Support Teams,Social Care - Day Care,12/12/2016,3785886,"2,286.84",Somerset County Council
Adults Services,Adult Social Care,Support with Memory and Cognition - adults (18-64),CLDS Longer Term Support Teams,Social Care - Day Care,12/12/2016,3785887,"2,286.84",Somerset County Council
Adults Services,Adult Social Care,Support with Memory and Cognition - adults (18-64),Generic Care Packages NW Team -PS,Social Care - Nursing Care,12/12/2016,3787968,"3,603.22",BARCHESTER HEALTHCARE
Adults Services,Adult Social Care,Support with Memory and Cognition - adults (18-64),CLDS Longer Term Support Teams,Social Care - Supported Living,12/12/2016,3789566,"3,428.58",BAXTER HOUSE SUPPORTED LIVING PROJECT
Adults Services,Adult Social Care,Support with Memory and Cognition - adults (18-64),CLDS Longer Term Support Teams,Social Care - Supported Living,12/12/2016,3793155,"3,000.00",BAXTER HOUSE SUPPORTED LIVING PROJECT
Adults Services,Adult Social Care,Physical Support - adults (18-64),Public Health � Healthy Young Adults,Third Party Payments - Other Establishments,14/12/2016,3749134,"244,578.65",Barts Health NHS Trust
Adults Services,Adult Social Care,Physical Support - adults (18-64),Public Health � Healthy Young Adults,Third Party Payments - Other Establishments,14/12/2016,3755889,"244,578.65",Barts Health NHS Trust
Adults Services,Adult Social Care,Support with Memory and Cognition - adults (18-64),Generic Care Packages SW Team - PS,Social Care - Nursing Care,14/12/2016,3786111,"1,915.80",H-C ONE LTD - TOWER BRIDGE
Adults Services,Adult Social Care,Physical Support - adults (18-64),Public Health � Healthy Communities,Third Party Payments - Voluntary Associations,14/12/2016,3789114,"6,250.00",Somali Integration Team
Adults Services,Adult Social Care,Support with Memory and Cognition - adults (18-64),Generic Care Packages SE Team -SP,Non Staff Transport Costs - Client Transport Costs,14/12/2016,3789898,600.00,Abacus Ambulance Service
Adults Services,Adult Social Care,Support with Memory and Cognition - adults (18-64),Generic Care Packages SE Team -SP,Non Staff Transport Costs - Client Transport Costs,14/12/2016,3789899,600.00,Abacus Ambulance Service
Adults Services,Adult Social Care,Support with Memory and Cognition - adults (18-64),Generic Care Packages SE Team -PS,Social Care - Direct Payments,14/12/2016,3793308,"-2,170.35",D D PAYROLL SERVICES
Adults Services,Adult Social Care,Support with Memory and Cognition - adults (18-64),Generic Care Packages SE Team -PS,Social Care - Direct Payments,14/12/2016,3793310,"1,870.13",D D PAYROLL SERVICES
Adults Services,Adult Social Care,Physical Support - adults (18-64),"Carers & Cross Cutting Issues		",Social Care - Small Grants,14/12/2016,3794257,500.00,MONTHLY LUNCHEON CLUB
Adults Services,Adult Social Care,Physical Support - adults (18-64),"Carers & Cross Cutting Issues		",Social Care - Small Grants,14/12/2016,3794258,500.00,OCEAN BOWLS CLUB
Adults Services,Adult Social Care,Physical Support - adults (18-64),"Carers & Cross Cutting Issues		",Social Care - Small Grants,14/12/2016,3794260,500.00,Parmiter's Almshouse and Pension Charity
Adults Services,Adult Social Care,Physical Support - adults (18-64),"Carers & Cross Cutting Issues		",Social Care - Small Grants,14/12/2016,3794263,500.00,St Peters Community Wellbeing Projects
Adults Services,Adult Social Care,Physical Support - adults (18-64),"Carers & Cross Cutting Issues		",Social Care - Small Grants,14/12/2016,3794264,500.00,STAR SOMALI COMMUNITY
Adults Services,Adult Social Care,Physical Support - adults (18-64),"Carers & Cross Cutting Issues		",Social Care - Small Grants,14/12/2016,3794266,500.00,TREDEGAR SABELLA T A
Adults Services,Adult Social Care,Physical Support - adults (18-64),"Carers & Cross Cutting Issues		",Social Care - Small Grants,14/12/2016,3794270,500.00,ZACCHEUS PROJECT
Adults Services,Adult Social Care,Physical Support - adults (18-64),"Carers & Cross Cutting Issues		",Social Care - Small Grants,14/12/2016,3794273,500.00,THE YOUNG AT HEART BINGO CLUB
Adults Services,Adult Social Care,Physical Support - adults (18-64),Public Health � Healthy Young Adults,Payments to Private Contractors - Other Contractors,14/12/2016,3794393,643.00,FLORIDA PHARMACY
Adults Services,Adult Social Care,Physical Support - adults (18-64),Public Health � Healthy Young Adults,Payments to Private Contractors - Other Contractors,14/12/2016,3794404,944.90,Guardian Pharmacy t/a Lansbury Chemist
Adults Services,Adult Social Care,Physical Support - adults (18-64),Public Health � Healthy Young Adults,Payments to Private Contractors - Other Contractors,14/12/2016,3794407,"1,035.40",Boots UK Ltd Store 185
Adults Services,Adult Social Care,Physical Support - adults (18-64),Public Health � Healthy Young Adults,Payments to Private Contractors - Other Contractors,14/12/2016,3794414,"1,328.00",Forward Pharmacy
Adults Services,Adult Social Care,Support with Memory and Cognition - adults (18-64),CLDS Longer Term Support Teams,Social Care - Day Care,14/12/2016,3794654,"1,571.25",VIBRANCE
Adults Services,Adult Social Care,Support with Memory and Cognition - adults (18-64),CLDS Longer Term Support Teams,Social Care - Day Care,14/12/2016,3794655,"1,652.00",VIBRANCE
Adults Services,Adult Social Care,Support with Memory and Cognition - adults (18-64),Generic Care Packages NW Team -PS,Social Care - Residential Care,14/12/2016,3794660,"3,257.14",Federation of Jewish Services
Adults Services,Adult Social Care,Support with Memory and Cognition - adults (18-64),Generic Care Packages NE Team -PS,Social Care - Home Care (Short Term),14/12/2016,3794670,505.40,ATHLONE CARE LTD
Adults Services,Adult Social Care,Support with Memory and Cognition - adults (18-64),Generic Care Packages NW Team -PS,Social Care - Homecare,14/12/2016,3794687,577.60,ATHLONE CARE LTD
Adults Services,Adult Social Care,Support with Memory and Cognition - adults (18-64),Generic Care Packages NE Team -PS,Social Care - Homecare,14/12/2016,3794688,707.56,ATHLONE CARE LTD
Adults Services,Adult Social Care,Support with Memory and Cognition - adults (18-64),Generic Care Packages SW Team - PS,Social Care - Homecare,14/12/2016,3794690,573.99,ATHLONE CARE LTD
Adults Services,Adult Social Care,Support with Memory and Cognition - adults (18-64),Generic Care Packages SE Team -PS,Social Care - Homecare,14/12/2016,3794692,"1,256.28",ATHLONE CARE LTD
Adults Services,Adult Social Care,Support with Memory and Cognition - adults (18-64),Generic Care Packages NW Team -PS,Social Care - Homecare,14/12/2016,3794693,"1,797.78",ATHLONE CARE LTD
Adults Services,Adult Social Care,Support with Memory and Cognition - adults (18-64),Generic Care Packages NW Team-SMC,Social Care - Homecare,14/12/2016,3794696,606.48,ATHLONE CARE LTD
Adults Services,Adult Social Care,Support with Memory and Cognition - adults (18-64),Generic Care Packages NE Team -PS,Social Care - Homecare,14/12/2016,3794703,541.50,ATHLONE CARE LTD
Adults Services,Adult Social Care,Support with Memory and Cognition - adults (18-64),Generic Care Packages NW Team -PS,Social Care - Homecare,14/12/2016,3794709,"1,018.02",ATHLONE CARE LTD
Adults Services,Adult Social Care,Support with Memory and Cognition - adults (18-64),Generic Care Packages NE Team -PS,Social Care - Home Care (Short Term),14/12/2016,3794710,"1,126.32",ATHLONE CARE LTD
Adults Services,Adult Social Care,Support with Memory and Cognition - adults (18-64),CLDS Longer Term Support Teams,Social Care - Home Care (Short Term),14/12/2016,3794715,592.04,ATHLONE CARE LTD
Adults Services,Adult Social Care,Support with Memory and Cognition - adults (18-64),CLDS Longer Term Support Teams,Social Care - Home Care (Short Term),14/12/2016,3794716,505.40,ATHLONE CARE LTD
Adults Services,Adult Social Care,Support with Memory and Cognition - adults (18-64),Generic Care Packages SE Team -PS,Social Care - Homecare,14/12/2016,3794723,797.81,ATHLONE CARE LTD
Adults Services,Adult Social Care,Support with Memory and Cognition - adults (18-64),Generic Care Packages NE Team -PS,Social Care - Residential Care,14/12/2016,3794735,"3,896.15",Nightingale Residential Care Home Ltx
Adults Services,Adult Social Care,Support with Memory and Cognition - adults (18-64),Generic Care Packages NE Team -PS,Social Care - Residential Care,14/12/2016,3794736,"3,896.15",Nightingale Residential Care Home Ltx
Adults Services,Adult Social Care,Support with Memory and Cognition - adults (18-64),Generic Care Packages SW Team - PS,Social Care - Residential Care,14/12/2016,3794737,"2,652.72",SUNRISE ASSISTED LIVING
Adults Services,Adult Social Care,Support with Memory and Cognition - adults (18-64),Generic Care Packages SW Team - PS,Social Care - Residential Care,14/12/2016,3794738,"1,326.36",SUNRISE ASSISTED LIVING
Adults Services,Adult Social Care,Support with Memory and Cognition - adults (18-64),Generic Care Packages SW Team - PS,Social Care - Residential Care,14/12/2016,3794739,"1,326.36",SUNRISE ASSISTED LIVING
Adults Services,Adult Social Care,Physical Support - adults (18-64),"Failed Care Package Conversion		",Social Care - Others,14/12/2016,3794741,559.08,Carewatch Newham Ltd
Adults Services,Adult Social Care,Support with Memory and Cognition - adults (18-64),Generic Care Packages SE Team -PS,Social Care - Homecare,14/12/2016,3794742,730.92,Carewatch Newham Ltd
Adults Services,Adult Social Care,Support with Memory and Cognition - adults (18-64),Generic Care Packages NW Team -PS,Social Care - Homecare,14/12/2016,3794744,637.74,Carewatch Newham Ltd
Adults Services,Adult Social Care,Support with Memory and Cognition - adults (18-64),Generic Care Packages NW Team -PS,Social Care - Homecare,14/12/2016,3794745,637.74,Carewatch Newham Ltd
Adults Services,Adult Social Care,Support with Memory and Cognition - adults (18-64),Generic Care Packages NW Team -PS,Social Care - Homecare,14/12/2016,3794746,637.74,Carewatch Newham Ltd
Adults Services,Adult Social Care,Support with Memory and Cognition - adults (18-64),Generic Care Packages NW Team -PS,Social Care - Homecare,14/12/2016,3794748,637.74,Carewatch Newham Ltd
Adults Services,Adult Social Care,Support with Memory and Cognition - adults (18-64),Generic Care Packages NW Team -PS,Social Care - Homecare,14/12/2016,3794752,584.42,Excelcare (Home Care Division) LTD
Adults Services,Adult Social Care,Support with Memory and Cognition - adults (18-64),CLDS Longer Term Support Teams,Social Care - Supported Living,14/12/2016,3794753,"4,332.30",HOLMLEIGH CARE HOMES LTD
Adults Services,Adult Social Care,Support with Memory and Cognition - adults (18-64),CLDS Longer Term Support Teams,Social Care - Homecare,14/12/2016,3794755,"1,743.33",MEARS CARE LTD
Adults Services,Adult Social Care,Support with Memory and Cognition - adults (18-64),CLDS Longer Term Support Teams,Social Care - Homecare,14/12/2016,3794756,"2,266.08",MEARS CARE LTD
Adults Services,Adult Social Care,Support with Memory and Cognition - adults (18-64),CLDS Longer Term Support Teams,Social Care - Homecare,14/12/2016,3794758,874.20,Excelcare (Home Care Division) LTD
Adults Services,Adult Social Care,Support with Memory and Cognition - adults (18-64),Generic Care Packages NE Team -PS,Social Care - Home Care (Short Term),14/12/2016,3794760,504.14,Excelcare (Home Care Division) LTD
Adults Services,Adult Social Care,Support with Memory and Cognition - adults (18-64),Generic Care Packages NW Team -PS,Social Care - Homecare,14/12/2016,3794762,584.44,Excelcare (Home Care Division) LTD
Adults Services,Adult Social Care,Support with Memory and Cognition - adults (18-64),CLDS Longer Term Support Teams,Social Care - Homecare,14/12/2016,3794763,874.20,Excelcare (Home Care Division) LTD
Adults Services,Adult Social Care,Support with Memory and Cognition - adults (18-64),Generic Care Packages NE Team -PS,Social Care - Home Care (Short Term),14/12/2016,3794765,542.92,Excelcare (Home Care Division) LTD
Adults Services,Adult Social Care,Support with Memory and Cognition - adults (18-64),CLDS Longer Term Support Teams,Social Care - Homecare,14/12/2016,3794767,896.76,Excelcare (Home Care Division) LTD
Adults Services,Adult Social Care,Support with Memory and Cognition - adults (18-64),Generic Care Packages NE Team -PS,Social Care - Home Care (Short Term),14/12/2016,3794770,523.17,Excelcare (Home Care Division) LTD
Adults Services,Adult Social Care,Support with Memory and Cognition - adults (18-64),CLDS Longer Term Support Teams,Social Care - Homecare,14/12/2016,3794771,817.80,Excelcare (Home Care Division) LTD
Adults Services,Adult Social Care,Support with Memory and Cognition - adults (18-64),CLDS Longer Term Support Teams,Social Care - Homecare,14/12/2016,3794774,"1,866.90",Excelcare (Home Care Division) LTD
Adults Services,Adult Social Care,Support with Memory and Cognition - adults (18-64),Generic Care Packages SE Team -PS,Social Care - Homecare,14/12/2016,3794775,"1,417.94",Excelcare (Home Care Division) LTD
Adults Services,Adult Social Care,Physical Support - adults (18-64),"Failed Care Package Conversion		",Social Care - Others,14/12/2016,3794776,"1,211.91",Excelcare (Home Care Division) LTD
Adults Services,Adult Social Care,Support with Memory and Cognition - adults (18-64),CLDS Longer Term Support Teams,Social Care - Residential Care,14/12/2016,3794777,"2,100.00",SUTTON COURT ASSOCIATES LTD
Adults Services,Adult Social Care,Support with Memory and Cognition - adults (18-64),CLDS Longer Term Support Teams,Social Care - Residential Care,14/12/2016,3794778,"2,100.00",SUTTON COURT ASSOCIATES LTD
Adults Services,Adult Social Care,Support with Memory and Cognition - adults (18-64),Cmht Iod / Poplar South,Social Care - Residential Care,14/12/2016,3794779,"3,428.57",Number Residential Care Home
Adults Services,Adult Social Care,Support with Memory and Cognition - adults (18-64),"Generic Care Packages SE Team-LD							",Social Care - Residential Care,14/12/2016,3794780,"3,857.14",Amber Care East Anglia Ltd
Adults Services,Adult Social Care,Support with Memory and Cognition - adults (18-64),Cmht Bow / Poplar North,Social Care - Prevention & Support,14/12/2016,3794782,"1,750.00",OLD FRIEND HOTEL
Adults Services,Adult Social Care,Support with Memory and Cognition - adults (18-64),Cmht For Older People,Social Care - Residential Care,14/12/2016,3794783,"8,742.86",CHURCHILL HOUSE
Adults Services,Adult Social Care,Support with Memory and Cognition - adults (18-64),Generic Care Packages NW Team -PS,Social Care - Residential Care,14/12/2016,3794784,541.29,Norwood Ravenswood Services LTD
Adults Services,Adult Social Care,Support with Memory and Cognition - adults (18-64),Generic Care Packages SW Team - PS,Social Care - Direct Payments,14/12/2016,3794797,"1,319.25",St Hilda's East Community Centre
Adults Services,Adult Social Care,Support with Memory and Cognition - adults (18-64),CLDS Longer Term Support Teams,Social Care - Direct Payments,14/12/2016,3794798,"2,892.65",Excelcare (Home Care Division) LTD
Adults Services,Adult Social Care,Support with Memory and Cognition - adults (18-64),Generic Care Packages NW Team -PS,Social Care - Direct Payments,14/12/2016,3794806,"1,030.66",DAVID HOWARD LTD CLIENT ACCOUNT
Adults Services,Adult Social Care,Support with Memory and Cognition - adults (18-64),Generic Care Packages NW Team -PS,Social Care - Direct Payments,14/12/2016,3794809,-527.34,DAVID HOWARD LTD CLIENT ACCOUNT
Adults Services,Adult Social Care,Support with Memory and Cognition - adults (18-64),Generic Care Packages SW Team - PS,Social Care - Direct Payments,14/12/2016,3794810,"1,083.76",DAVID HOWARD LTD CLIENT ACCOUNT
Adults Services,Adult Social Care,Support with Memory and Cognition - adults (18-64),Generic Care Packages NE Team -SI,Social Care - Direct Payments,14/12/2016,3794820,"1,171.76",DAVID HOWARD LTD CLIENT ACCOUNT
Adults Services,Adult Social Care,Support with Memory and Cognition - adults (18-64),Generic Care Packages SW Team - PS,Social Care - Direct Payments,14/12/2016,3794821,"2,524.29",D D PAYROLL SERVICES
Adults Services,Adult Social Care,Support with Memory and Cognition - adults (18-64),Generic Care Packages NE Team -PS,Social Care - Direct Payments,14/12/2016,3794822,"1,138.81",DAVID HOWARD LTD CLIENT ACCOUNT
Adults Services,Adult Social Care,Support with Memory and Cognition - adults (18-64),Generic Care Packages NE Team -PS,Social Care - Direct Payments,14/12/2016,3794824,"2,491.78",D D PAYROLL SERVICES
Adults Services,Adult Social Care,Support with Memory and Cognition - adults (18-64),Generic Care Packages SE Team -PS,Social Care - Direct Payments,14/12/2016,3794827,"1,095.58",DAVID HOWARD LTD CLIENT ACCOUNT
Adults Services,Adult Social Care,Support with Memory and Cognition - adults (18-64),Generic Care Packages SE Team -PS,Social Care - Direct Payments,14/12/2016,3794828,"1,024.68",DAVID HOWARD LTD CLIENT ACCOUNT
Adults Services,Adult Social Care,Support with Memory and Cognition - adults (18-64),Generic Care Packages SW Team - PS,Social Care - Direct Payments,14/12/2016,3794829,"2,530.84",DAVID HOWARD LTD CLIENT ACCOUNT
Adults Services,Adult Social Care,Support with Memory and Cognition - adults (18-64),Generic Care Packages NE Team -PS,Social Care - Direct Payments,14/12/2016,3794830,904.14,DAVID HOWARD LTD CLIENT ACCOUNT
Adults Services,Adult Social Care,Support with Memory and Cognition - adults (18-64),Generic Care Packages SW Team - PS,Social Care - Direct Payments,14/12/2016,3794833,"1,150.90",D D PAYROLL SERVICES
Adults Services,Adult Social Care,Support with Memory and Cognition - adults (18-64),CLDS Longer Term Support Teams,Social Care - Direct Payments,14/12/2016,3794834,"1,885.60",DAVID HOWARD LTD CLIENT ACCOUNT
Adults Services,Adult Social Care,Support with Memory and Cognition - adults (18-64),Generic Care Packages NW Team -PS,Social Care - Direct Payments,14/12/2016,3794835,692.81,D D PAYROLL SERVICES
Adults Services,Adult Social Care,Support with Memory and Cognition - adults (18-64),Generic Care Packages SE Team -PS,Social Care - Direct Payments,14/12/2016,3794837,"1,330.96",D D PAYROLL SERVICES
Adults Services,Adult Social Care,Support with Memory and Cognition - adults (18-64),CLDS Longer Term Support Teams,Social Care - Direct Payments,14/12/2016,3794842,"1,548.01",D D PAYROLL SERVICES
Adults Services,Adult Social Care,Support with Memory and Cognition - adults (18-64),Generic Care Packages SE Team -PS,Social Care - Direct Payments,14/12/2016,3794844,888.37,D D PAYROLL SERVICES
Adults Services,Adult Social Care,Support with Memory and Cognition - adults (18-64),Generic Care Packages NE Team -PS,Social Care - Direct Payments,14/12/2016,3794848,748.65,DAVID HOWARD LTD CLIENT ACCOUNT
Adults Services,Adult Social Care,Support with Memory and Cognition - adults (18-64),CLDS Longer Term Support Teams,Social Care - Direct Payments,14/12/2016,3794849,797.14,D D PAYROLL SERVICES
Adults Services,Adult Social Care,Support with Memory and Cognition - adults (18-64),CLDS Longer Term Support Teams,Social Care - Direct Payments,14/12/2016,3794852,"3,849.00",D D PAYROLL SERVICES
Adults Services,Adult Social Care,Support with Memory and Cognition - adults (18-64),Generic Care Packages SE Team -PS,Social Care - Direct Payments,14/12/2016,3794853,776.20,DAVID HOWARD LTD CLIENT ACCOUNT
Adults Services,Adult Social Care,Support with Memory and Cognition - adults (18-64),Generic Care Packages NW Team -PS,Social Care - Direct Payments,14/12/2016,3794854,852.19,DAVID HOWARD LTD CLIENT ACCOUNT
Adults Services,Adult Social Care,Support with Memory and Cognition - adults (18-64),Cmht Bethnal Green,Social Care - Direct Payments,14/12/2016,3794855,711.27,DAVID HOWARD LTD CLIENT ACCOUNT
Adults Services,Adult Social Care,Support with Memory and Cognition - adults (18-64),Generic Care Packages NE Team -SI,Social Care - Direct Payments,14/12/2016,3794859,"2,173.37",DAVID HOWARD LTD CLIENT ACCOUNT
Adults Services,Adult Social Care,Support with Memory and Cognition - adults (18-64),Generic Care Packages NE Team -PS,Social Care - Direct Payments,14/12/2016,3794860,"3,630.68",DAVID HOWARD LTD CLIENT ACCOUNT
Adults Services,Adult Social Care,Support with Memory and Cognition - adults (18-64),CLDS Longer Term Support Teams,Social Care - Direct Payments,14/12/2016,3794861,"2,930.38",DAVID HOWARD LTD CLIENT ACCOUNT
Adults Services,Adult Social Care,Support with Memory and Cognition - adults (18-64),CLDS Longer Term Support Teams,Social Care - Direct Payments,14/12/2016,3794862,"3,392.24",DAVID HOWARD LTD CLIENT ACCOUNT
Adults Services,Adult Social Care,Support with Memory and Cognition - adults (18-64),Generic Care Packages SW Team - PS,Social Care - Direct Payments,14/12/2016,3794864,"1,293.36",DAVID HOWARD LTD CLIENT ACCOUNT
Adults Services,Adult Social Care,Support with Memory and Cognition - adults (18-64),CLDS Longer Term Support Teams,Social Care - Direct Payments,14/12/2016,3794865,646.62,D D PAYROLL SERVICES
Adults Services,Adult Social Care,Support with Memory and Cognition - adults (18-64),Generic Care Packages SE Team -PS,Social Care - Direct Payments,14/12/2016,3794866,"1,038.01",D D PAYROLL SERVICES
Adults Services,Adult Social Care,Support with Memory and Cognition - adults (18-64),CLDS Longer Term Support Teams,Social Care - Direct Payments,14/12/2016,3794869,675.84,DAVID HOWARD LTD CLIENT ACCOUNT
Adults Services,Adult Social Care,Support with Memory and Cognition - adults (18-64),Generic Care Packages NW Team -PS,Social Care - Direct Payments,14/12/2016,3794870,"1,492.92",D D PAYROLL SERVICES
Adults Services,Adult Social Care,Support with Memory and Cognition - adults (18-64),Generic Care Packages NW Team -PS,Social Care - Direct Payments,14/12/2016,3794872,746.13,DAVID HOWARD LTD CLIENT ACCOUNT
Adults Services,Adult Social Care,Support with Memory and Cognition - adults (18-64),CLDS Longer Term Support Teams,Social Care - Direct Payments,14/12/2016,3794875,"1,155.64",D D PAYROLL SERVICES
Adults Services,Adult Social Care,Support with Memory and Cognition - adults (18-64),Generic Care Packages NW Team -PS,Social Care - Direct Payments,14/12/2016,3794876,"1,053.56",DAVID HOWARD LTD CLIENT ACCOUNT
Adults Services,Adult Social Care,Support with Memory and Cognition - adults (18-64),CLDS Longer Term Support Teams,Social Care - Direct Payments,14/12/2016,3794877,832.35,D D PAYROLL SERVICES
Adults Services,Adult Social Care,Support with Memory and Cognition - adults (18-64),Generic Care Packages SW Team - PS,Social Care - Direct Payments,14/12/2016,3794878,"3,747.41",DAVID HOWARD LTD CLIENT ACCOUNT
Adults Services,Adult Social Care,Support with Memory and Cognition - adults (18-64),Generic Care Packages SE Team -PS,Social Care - Direct Payments,14/12/2016,3794881,-896.22,DAVID HOWARD LTD CLIENT ACCOUNT
Adults Services,Adult Social Care,Support with Memory and Cognition - adults (18-64),Generic Care Packages SW Team - PS,Social Care - Direct Payments,14/12/2016,3794883,527.00,DAVID HOWARD LTD CLIENT ACCOUNT
Adults Services,Adult Social Care,Support with Memory and Cognition - adults (18-64),Generic Care Packages SW Team -SC,Social Care - Direct Payments,14/12/2016,3794884,646.08,DAVID HOWARD LTD CLIENT ACCOUNT
Adults Services,Adult Social Care,Support with Memory and Cognition - adults (18-64),Generic Care Packages SW Team - PS,Social Care - Direct Payments,14/12/2016,3794885,767.34,DAVID HOWARD LTD CLIENT ACCOUNT
Adults Services,Adult Social Care,Support with Memory and Cognition - adults (18-64),CLDS Longer Term Support Teams,Social Care - Direct Payments,14/12/2016,3794886,"1,387.03",D D PAYROLL SERVICES
Adults Services,Adult Social Care,Support with Memory and Cognition - adults (18-64),CLDS Longer Term Support Teams,Social Care - Direct Payments,14/12/2016,3794888,"2,350.86",D D PAYROLL SERVICES
Adults Services,Adult Social Care,Support with Memory and Cognition - adults (18-64),Generic Care Packages SW Team - PS,Social Care - Direct Payments,14/12/2016,3794890,647.46,D D PAYROLL SERVICES
Adults Services,Adult Social Care,Support with Memory and Cognition - adults (18-64),CLDS Longer Term Support Teams,Social Care - Direct Payments,14/12/2016,3794895,"1,378.08",D D PAYROLL SERVICES
Adults Services,Adult Social Care,Support with Memory and Cognition - adults (18-64),Generic Care Packages NW Team -PS,Social Care - Direct Payments,14/12/2016,3794897,"4,247.62",DAVID HOWARD LTD CLIENT ACCOUNT
Adults Services,Adult Social Care,Support with Memory and Cognition - adults (18-64),CLDS Longer Term Support Teams,Social Care - Direct Payments,14/12/2016,3794898,"4,317.86",D D PAYROLL SERVICES
Adults Services,Adult Social Care,Support with Memory and Cognition - adults (18-64),Generic Care Packages SW Team - PS,Social Care - Direct Payments,14/12/2016,3794899,721.68,DAVID HOWARD LTD CLIENT ACCOUNT
Adults Services,Adult Social Care,Support with Memory and Cognition - adults (18-64),Generic Care Packages NW Team -PS,Social Care - Direct Payments,14/12/2016,3794904,538.65,DAVID HOWARD LTD CLIENT ACCOUNT
Adults Services,Adult Social Care,Support with Memory and Cognition - adults (18-64),Generic Care Packages SE Team -PS,Social Care - Direct Payments,14/12/2016,3794905,556.67,D D PAYROLL SERVICES
Adults Services,Adult Social Care,Support with Memory and Cognition - adults (18-64),Generic Care Packages SW Team - PS,Social Care - Direct Payments,14/12/2016,3794907,"2,165.79",DAVID HOWARD LTD CLIENT ACCOUNT
Adults Services,Adult Social Care,Support with Memory and Cognition - adults (18-64),CLDS Longer Term Support Teams,Social Care - Direct Payments,14/12/2016,3794909,"2,125.27",DAVID HOWARD LTD CLIENT ACCOUNT
Adults Services,Adult Social Care,Support with Memory and Cognition - adults (18-64),CLDS Longer Term Support Teams,Social Care - Direct Payments,14/12/2016,3794911,"4,043.06",D D PAYROLL SERVICES
Adults Services,Adult Social Care,Support with Memory and Cognition - adults (18-64),CLDS Longer Term Support Teams,Social Care - Direct Payments,14/12/2016,3794912,"1,931.12",D D PAYROLL SERVICES
Adults Services,Adult Social Care,Support with Memory and Cognition - adults (18-64),Generic Care Packages SW Team - PS,Social Care - Direct Payments,14/12/2016,3794913,"1,263.25",DAVID HOWARD LTD CLIENT ACCOUNT
Adults Services,Adult Social Care,Support with Memory and Cognition - adults (18-64),Cmht Iod / Poplar South,Social Care - Direct Payments,14/12/2016,3794915,523.46,DAVID HOWARD LTD CLIENT ACCOUNT
Adults Services,Adult Social Care,Support with Memory and Cognition - adults (18-64),Generic Care Packages SW Team - PS,Social Care - Direct Payments,14/12/2016,3794917,"1,241.24",DAVID HOWARD LTD CLIENT ACCOUNT
Adults Services,Adult Social Care,Support with Memory and Cognition - adults (18-64),Generic Care Packages SE Team -PS,Social Care - Direct Payments,14/12/2016,3794919,"1,266.31",DAVID HOWARD LTD CLIENT ACCOUNT
Adults Services,Adult Social Care,Support with Memory and Cognition - adults (18-64),CLDS Longer Term Support Teams,Social Care - Direct Payments,14/12/2016,3794920,"1,001.03",D D PAYROLL SERVICES
Adults Services,Adult Social Care,Support with Memory and Cognition - adults (18-64),CLDS Longer Term Support Teams,Social Care - Direct Payments,14/12/2016,3794921,"3,060.67",D D PAYROLL SERVICES
Adults Services,Adult Social Care,Support with Memory and Cognition - adults (18-64),CLDS Longer Term Support Teams,Social Care - Direct Payments,14/12/2016,3794923,"2,878.57",DAVID HOWARD LTD CLIENT ACCOUNT
Adults Services,Adult Social Care,Support with Memory and Cognition - adults (18-64),CLDS Longer Term Support Teams,Social Care - Direct Payments,14/12/2016,3794928,"1,302.97",DAVID HOWARD LTD CLIENT ACCOUNT
Adults Services,Adult Social Care,Support with Memory and Cognition - adults (18-64),CLDS Longer Term Support Teams,Social Care - Direct Payments,14/12/2016,3794929,900.99,D D PAYROLL SERVICES
Adults Services,Adult Social Care,Support with Memory and Cognition - adults (18-64),CLDS Longer Term Support Teams,Social Care - Direct Payments,14/12/2016,3794930,900.99,D D PAYROLL SERVICES
Adults Services,Adult Social Care,Support with Memory and Cognition - adults (18-64),Generic Care Packages SW Team - PS,Social Care - Direct Payments,14/12/2016,3794931,773.89,DAVID HOWARD LTD CLIENT ACCOUNT
Adults Services,Adult Social Care,Support with Memory and Cognition - adults (18-64),CLDS Longer Term Support Teams,Social Care - Direct Payments,14/12/2016,3794932,"1,982.05",DAVID HOWARD LTD CLIENT ACCOUNT
Adults Services,Adult Social Care,Support with Memory and Cognition - adults (18-64),CLDS Longer Term Support Teams,Social Care - Direct Payments,14/12/2016,3794933,"1,120.92",DAVID HOWARD LTD CLIENT ACCOUNT
Adults Services,Adult Social Care,Support with Memory and Cognition - adults (18-64),Generic Care Packages NE Team -PS,Social Care - Direct Payments,14/12/2016,3794934,"1,875.85",DAVID HOWARD LTD CLIENT ACCOUNT
Adults Services,Adult Social Care,Support with Memory and Cognition - adults (18-64),Generic Care Packages SW Team-SMC,Social Care - Direct Payments,14/12/2016,3794938,642.94,DAVID HOWARD LTD CLIENT ACCOUNT
Adults Services,Adult Social Care,Support with Memory and Cognition - adults (18-64),Generic Care Packages NW Team -PS,Social Care - Direct Payments,14/12/2016,3794940,873.09,DAVID HOWARD LTD CLIENT ACCOUNT
Adults Services,Adult Social Care,Support with Memory and Cognition - adults (18-64),Generic Care Packages SW Team - PS,Social Care - Direct Payments,14/12/2016,3794944,701.53,DAVID HOWARD LTD CLIENT ACCOUNT
Adults Services,Adult Social Care,Support with Memory and Cognition - adults (18-64),Generic Care Packages NE Team -PS,Social Care - Direct Payments,14/12/2016,3794947,"1,360.24",D D PAYROLL SERVICES
Adults Services,Adult Social Care,Support with Memory and Cognition - adults (18-64),CLDS Longer Term Support Teams,Social Care - Direct Payments,14/12/2016,3794948,650.29,D D PAYROLL SERVICES
Adults Services,Adult Social Care,Support with Memory and Cognition - adults (18-64),Generic Care Packages SE Team -PS,Social Care - Direct Payments,14/12/2016,3794949,"1,047.27",DAVID HOWARD LTD CLIENT ACCOUNT
Adults Services,Adult Social Care,Support with Memory and Cognition - adults (18-64),Generic Care Packages NW Team -PS,Social Care - Direct Payments,14/12/2016,3794950,"1,413.38",DAVID HOWARD LTD CLIENT ACCOUNT
Adults Services,Adult Social Care,Support with Memory and Cognition - adults (18-64),Generic Care Packages SE Team -PS,Social Care - Direct Payments,14/12/2016,3794951,786.56,D D PAYROLL SERVICES
Adults Services,Adult Social Care,Support with Memory and Cognition - adults (18-64),Generic Care Packages SE Team -PS,Social Care - Direct Payments,14/12/2016,3794952,925.84,DAVID HOWARD LTD CLIENT ACCOUNT
Adults Services,Adult Social Care,Support with Memory and Cognition - adults (18-64),Generic Care Packages SE Team -PS,Social Care - Direct Payments,14/12/2016,3794954,607.64,DAVID HOWARD LTD CLIENT ACCOUNT
Adults Services,Adult Social Care,Support with Memory and Cognition - adults (18-64),Generic Care Packages NW Team -PS,Social Care - Direct Payments,14/12/2016,3794955,"4,112.37",D D PAYROLL SERVICES
Adults Services,Adult Social Care,Support with Memory and Cognition - adults (18-64),Generic Care Packages SE Team-SMC,Social Care - Direct Payments,14/12/2016,3794957,"13,832.29",D D PAYROLL SERVICES
Adults Services,Adult Social Care,Support with Memory and Cognition - adults (18-64),Generic Care Packages SW Team - PS,Social Care - Direct Payments,14/12/2016,3794959,531.43,DAVID HOWARD LTD CLIENT ACCOUNT
Adults Services,Adult Social Care,Support with Memory and Cognition - adults (18-64),Generic Care Packages SE Team -PS,Social Care - Direct Payments,14/12/2016,3794960,"-2,732.38",DAVID HOWARD LTD CLIENT ACCOUNT
Adults Services,Adult Social Care,Support with Memory and Cognition - adults (18-64),Generic Care Packages SW Team - PS,Social Care - Direct Payments,14/12/2016,3794961,686.30,D D PAYROLL SERVICES
Adults Services,Adult Social Care,Support with Memory and Cognition - adults (18-64),Generic Care Packages SW Team - PS,Social Care - Direct Payments,14/12/2016,3794962,710.12,D D PAYROLL SERVICES
Adults Services,Adult Social Care,Support with Memory and Cognition - adults (18-64),CLDS Longer Term Support Teams,Social Care - Direct Payments,14/12/2016,3794969,989.34,D D PAYROLL SERVICES
Adults Services,Adult Social Care,Support with Memory and Cognition - adults (18-64),Generic Care Packages SE Team -PS,Social Care - Direct Payments,14/12/2016,3794973,"2,809.93",Redacted Section 40 FOI Act
Adults Services,Adult Social Care,Support with Memory and Cognition - adults (18-64),"Generic Care Packages SE Team-LD							",Social Care - Direct Payments,14/12/2016,3794983,"1,371.88",DAVID HOWARD LTD CLIENT ACCOUNT
Adults Services,Adult Social Care,Support with Memory and Cognition - adults (18-64),Generic Care Packages NE Team -PS,Social Care - Direct Payments,14/12/2016,3794984,831.24,DAVID HOWARD LTD CLIENT ACCOUNT
Adults Services,Adult Social Care,Support with Memory and Cognition - adults (18-64),Generic Care Packages NW Team -SP,Social Care - Direct Payments,14/12/2016,3794985,544.32,DAVID HOWARD LTD CLIENT ACCOUNT
Adults Services,Adult Social Care,Support with Memory and Cognition - adults (18-64),Generic Care Packages SW Team - PS,Social Care - Direct Payments,14/12/2016,3794986,560.35,DAVID HOWARD LTD CLIENT ACCOUNT
Adults Services,Adult Social Care,Support with Memory and Cognition - adults (18-64),CLDS Longer Term Support Teams,Social Care - Direct Payments,14/12/2016,3794989,"2,706.08",DAVID HOWARD LTD CLIENT ACCOUNT
Adults Services,Adult Social Care,Support with Memory and Cognition - adults (18-64),CLDS Longer Term Support Teams,Social Care - Direct Payments,14/12/2016,3794990,"2,224.65",DAVID HOWARD LTD CLIENT ACCOUNT
Adults Services,Adult Social Care,Support with Memory and Cognition - adults (18-64),CLDS Longer Term Support Teams,Social Care - Direct Payments,14/12/2016,3794991,"3,459.51",DAVID HOWARD LTD CLIENT ACCOUNT
Adults Services,Adult Social Care,Support with Memory and Cognition - adults (18-64),Generic Care Packages NW Team -PS,Social Care - Direct Payments,14/12/2016,3794997,"2,895.09",D D PAYROLL SERVICES
Adults Services,Adult Social Care,Support with Memory and Cognition - adults (18-64),Generic Care Packages NW Team -PS,Social Care - Direct Payments,14/12/2016,3794999,"-14,024.22",DAVID HOWARD LTD CLIENT ACCOUNT
Adults Services,Adult Social Care,Support with Memory and Cognition - adults (18-64),Generic Care Packages SE Team -PS,Social Care - Direct Payments,14/12/2016,3795001,"3,011.21",DAVID HOWARD LTD CLIENT ACCOUNT
Adults Services,Adult Social Care,Support with Memory and Cognition - adults (18-64),Generic Care Packages SW Team - PS,Social Care - Direct Payments,14/12/2016,3795006,"1,077.78",DAVID HOWARD LTD CLIENT ACCOUNT
Adults Services,Adult Social Care,Support with Memory and Cognition - adults (18-64),Generic Care Packages NW Team -PS,Social Care - Direct Payments,14/12/2016,3795009,905.91,DAVID HOWARD LTD CLIENT ACCOUNT
Adults Services,Adult Social Care,Support with Memory and Cognition - adults (18-64),Cmht Bethnal Green,Social Care - Direct Payments,14/12/2016,3795010,548.61,PayPacket Ltd
Adults Services,Adult Social Care,Support with Memory and Cognition - adults (18-64),Cmht For Older People,Social Care - Direct Payments,14/12/2016,3795012,"10,022.17",DAVID HOWARD LTD CLIENT ACCOUNT
Adults Services,Adult Social Care,Support with Memory and Cognition - adults (18-64),Generic Care Packages SW Team - PS,Social Care - Direct Payments,14/12/2016,3795014,"3,073.25",D D PAYROLL SERVICES
Adults Services,Adult Social Care,Support with Memory and Cognition - adults (18-64),Cmht For Older People,Social Care - Direct Payments,14/12/2016,3795015,"1,745.92",D D PAYROLL SERVICES
Adults Services,Adult Social Care,Support with Memory and Cognition - adults (18-64),CLDS Longer Term Support Teams,Social Care - Direct Payments,14/12/2016,3795016,"-1,986.98",DAVID HOWARD LTD CLIENT ACCOUNT
Adults Services,Adult Social Care,Support with Memory and Cognition - adults (18-64),Generic Care Packages NW Team -PS,Social Care - Direct Payments,14/12/2016,3795017,543.08,DAVID HOWARD LTD CLIENT ACCOUNT
Adults Services,Adult Social Care,Support with Memory and Cognition - adults (18-64),CLDS Longer Term Support Teams,Social Care - Direct Payments,14/12/2016,3795018,"8,390.99",D D PAYROLL SERVICES
Adults Services,Adult Social Care,Support with Memory and Cognition - adults (18-64),CLDS Longer Term Support Teams,Social Care - Direct Payments,14/12/2016,3795019,"4,407.58",D D PAYROLL SERVICES
Adults Services,Adult Social Care,Support with Memory and Cognition - adults (18-64),Generic Care Packages NW Team -PS,Social Care - Direct Payments,14/12/2016,3795023,508.62,DAVID HOWARD LTD CLIENT ACCOUNT
Adults Services,Adult Social Care,Support with Memory and Cognition - adults (18-64),Generic Care Packages SE Team -PS,Social Care - Direct Payments,14/12/2016,3795024,816.32,DAVID HOWARD LTD CLIENT ACCOUNT
Adults Services,Adult Social Care,Support with Memory and Cognition - adults (18-64),Generic Care Packages NW Team -PS,Social Care - Direct Payments,14/12/2016,3795025,649.45,D D PAYROLL SERVICES
Adults Services,Adult Social Care,Support with Memory and Cognition - adults (18-64),CLDS Longer Term Support Teams,Social Care - Direct Payments,14/12/2016,3795028,"3,089.64",DAVID HOWARD LTD CLIENT ACCOUNT
Adults Services,Adult Social Care,Support with Memory and Cognition - adults (18-64),CLDS Longer Term Support Teams,Social Care - Direct Payments,14/12/2016,3795029,797.14,DAVID HOWARD LTD CLIENT ACCOUNT
Adults Services,Adult Social Care,Support with Memory and Cognition - adults (18-64),Generic Care Packages SW Team - PS,Social Care - Direct Payments,14/12/2016,3795030,"1,540.12",DAVID HOWARD LTD CLIENT ACCOUNT
Adults Services,Adult Social Care,Support with Memory and Cognition - adults (18-64),Generic Care Packages SE Team -PS,Social Care - Direct Payments,14/12/2016,3795033,650.25,DAVID HOWARD LTD CLIENT ACCOUNT
Adults Services,Adult Social Care,Support with Memory and Cognition - adults (18-64),Cmht Stepney / Wapping,Social Care - Direct Payments,14/12/2016,3795034,646.62,DAVID HOWARD LTD CLIENT ACCOUNT
Adults Services,Adult Social Care,Support with Memory and Cognition - adults (18-64),CLDS Longer Term Support Teams,Social Care - Direct Payments,14/12/2016,3795035,737.05,DAVID HOWARD LTD CLIENT ACCOUNT
Adults Services,Adult Social Care,Support with Memory and Cognition - adults (18-64),Generic Care Packages NE Team -PS,Social Care - Direct Payments,14/12/2016,3795039,510.75,DAVID HOWARD LTD CLIENT ACCOUNT
Adults Services,Adult Social Care,Support with Memory and Cognition - adults (18-64),Generic Care Packages NE Team -PS,Social Care - Direct Payments,14/12/2016,3795044,"1,140.62",DAVID HOWARD LTD CLIENT ACCOUNT
Adults Services,Adult Social Care,Support with Memory and Cognition - adults (18-64),Generic Care Packages NE Team -PS,Social Care - Direct Payments,14/12/2016,3795045,"1,002.32",DAVID HOWARD LTD CLIENT ACCOUNT
Adults Services,Adult Social Care,Support with Memory and Cognition - adults (18-64),CLDS Longer Term Support Teams,Social Care - Direct Payments,14/12/2016,3795046,"12,109.00",D D PAYROLL SERVICES
Adults Services,Adult Social Care,Support with Memory and Cognition - adults (18-64),Generic Care Packages NE Team -PS,Social Care - Direct Payments,14/12/2016,3795048,"1,189.51",DAVID HOWARD LTD CLIENT ACCOUNT
Adults Services,Adult Social Care,Support with Memory and Cognition - adults (18-64),Cmht For Older People,Social Care - Direct Payments,14/12/2016,3795049,"2,484.34",DAVID HOWARD LTD CLIENT ACCOUNT
Adults Services,Adult Social Care,Support with Memory and Cognition - adults (18-64),Generic Care Packages SW Team - PS,Social Care - Direct Payments,14/12/2016,3795050,976.32,DAVID HOWARD LTD CLIENT ACCOUNT
Adults Services,Adult Social Care,Support with Memory and Cognition - adults (18-64),Generic Care Packages NW Team -PS,Social Care - Direct Payments,14/12/2016,3795052,"1,168.92",DAVID HOWARD LTD CLIENT ACCOUNT
Adults Services,Adult Social Care,Support with Memory and Cognition - adults (18-64),CLDS Longer Term Support Teams,Social Care - Direct Payments,14/12/2016,3795054,"1,821.29",D D PAYROLL SERVICES
Adults Services,Adult Social Care,Support with Memory and Cognition - adults (18-64),Generic Care Packages SW Team - PS,Social Care - Direct Payments,14/12/2016,3795057,947.05,DAVID HOWARD LTD CLIENT ACCOUNT
Adults Services,Adult Social Care,Support with Memory and Cognition - adults (18-64),Generic Care Packages SW Team - PS,Social Care - Direct Payments,14/12/2016,3795058,621.95,D D PAYROLL SERVICES
Adults Services,Adult Social Care,Support with Memory and Cognition - adults (18-64),Generic Care Packages NE Team -PS,Social Care - Direct Payments,14/12/2016,3795059,519.74,DAVID HOWARD LTD CLIENT ACCOUNT
Adults Services,Adult Social Care,Support with Memory and Cognition - adults (18-64),CLDS Longer Term Support Teams,Social Care - Direct Payments,14/12/2016,3795060,539.71,D D PAYROLL SERVICES
Adults Services,Adult Social Care,Support with Memory and Cognition - adults (18-64),Generic Care Packages SW Team - PS,Social Care - Direct Payments,14/12/2016,3795061,794.71,D D PAYROLL SERVICES
Adults Services,Adult Social Care,Support with Memory and Cognition - adults (18-64),Generic Care Packages SW Team - PS,Social Care - Direct Payments,14/12/2016,3795062,728.15,D D PAYROLL SERVICES
Adults Services,Adult Social Care,Support with Memory and Cognition - adults (18-64),CLDS Longer Term Support Teams,Social Care - Direct Payments,14/12/2016,3795063,608.71,DAVID HOWARD LTD CLIENT ACCOUNT
Adults Services,Adult Social Care,Support with Memory and Cognition - adults (18-64),CLDS Longer Term Support Teams,Social Care - Direct Payments,14/12/2016,3795064,642.76,DAVID HOWARD LTD CLIENT ACCOUNT
Adults Services,Adult Social Care,Support with Memory and Cognition - adults (18-64),"Generic Care Packages NW Team-MH						",Social Care - Direct Payments,14/12/2016,3795066,"1,405.58",D D PAYROLL SERVICES
Adults Services,Adult Social Care,Support with Memory and Cognition - adults (18-64),Generic Care Packages NE Team -PS,Social Care - Direct Payments,14/12/2016,3795068,"1,426.04",D D PAYROLL SERVICES
Adults Services,Adult Social Care,Support with Memory and Cognition - adults (18-64),Cmht For Older People,Social Care - Direct Payments,14/12/2016,3795069,"2,947.26",DAVID HOWARD LTD CLIENT ACCOUNT
Adults Services,Adult Social Care,Support with Memory and Cognition - adults (18-64),Generic Care Packages NW Team -PS,Social Care - Direct Payments,14/12/2016,3795071,"1,084.11",DAVID HOWARD LTD CLIENT ACCOUNT
Adults Services,Adult Social Care,Support with Memory and Cognition - adults (18-64),Generic Care Packages SW Team - PS,Social Care - Direct Payments,14/12/2016,3795076,"1,384.24",DAVID HOWARD LTD CLIENT ACCOUNT
Adults Services,Adult Social Care,Support with Memory and Cognition - adults (18-64),Generic Care Packages SW Team - PS,Social Care - Direct Payments,14/12/2016,3795078,"6,994.40",DAVID HOWARD LTD CLIENT ACCOUNT
Adults Services,Adult Social Care,Support with Memory and Cognition - adults (18-64),Generic Care Packages SE Team -PS,Social Care - Direct Payments,14/12/2016,3795080,"1,831.21",DAVID HOWARD LTD CLIENT ACCOUNT
Adults Services,Adult Social Care,Support with Memory and Cognition - adults (18-64),Generic Care Packages SW Team - PS,Social Care - Direct Payments,14/12/2016,3795081,921.10,DAVID HOWARD LTD CLIENT ACCOUNT
Adults Services,Adult Social Care,Support with Memory and Cognition - adults (18-64),Generic Care Packages SW Team - PS,Social Care - Direct Payments,14/12/2016,3795082,704.45,DAVID HOWARD LTD CLIENT ACCOUNT
Adults Services,Adult Social Care,Support with Memory and Cognition - adults (18-64),CLDS Longer Term Support Teams,Social Care - Direct Payments,14/12/2016,3795083,"10,254.49",DAVID HOWARD LTD CLIENT ACCOUNT
Adults Services,Adult Social Care,Support with Memory and Cognition - adults (18-64),CLDS Longer Term Support Teams,Social Care - Direct Payments,14/12/2016,3795084,"1,024.68",D D PAYROLL SERVICES
Adults Services,Adult Social Care,Support with Memory and Cognition - adults (18-64),Generic Care Packages SW Team - PS,Social Care - Direct Payments,14/12/2016,3795086,507.12,D D PAYROLL SERVICES
Adults Services,Adult Social Care,Support with Memory and Cognition - adults (18-64),Generic Care Packages SE Team -PS,Social Care - Direct Payments,14/12/2016,3795088,"11,073.02",DAVID HOWARD LTD CLIENT ACCOUNT
Adults Services,Adult Social Care,Support with Memory and Cognition - adults (18-64),Generic Care Packages NE Team -PS,Social Care - Direct Payments,14/12/2016,3795089,"1,554.47",D D PAYROLL SERVICES
Adults Services,Adult Social Care,Support with Memory and Cognition - adults (18-64),Generic Care Packages SE Team -PS,Social Care - Direct Payments,14/12/2016,3795090,858.52,DAVID HOWARD LTD CLIENT ACCOUNT
Adults Services,Adult Social Care,Support with Memory and Cognition - adults (18-64),Generic Care Packages SW Team - PS,Social Care - Direct Payments,14/12/2016,3795091,604.10,D D PAYROLL SERVICES
Adults Services,Adult Social Care,Support with Memory and Cognition - adults (18-64),Generic Care Packages NE Team -PS,Social Care - Direct Payments,14/12/2016,3795094,659.90,DAVID HOWARD LTD CLIENT ACCOUNT
Adults Services,Adult Social Care,Support with Memory and Cognition - adults (18-64),Generic Care Packages SW Team - PS,Social Care - Direct Payments,14/12/2016,3795096,"1,315.15",D D PAYROLL SERVICES
Adults Services,Adult Social Care,Support with Memory and Cognition - adults (18-64),Generic Care Packages NW Team -PS,Social Care - Direct Payments,14/12/2016,3795099,628.02,DAVID HOWARD LTD CLIENT ACCOUNT
Adults Services,Adult Social Care,Support with Memory and Cognition - adults (18-64),Generic Care Packages SE Team -PS,Social Care - Direct Payments,14/12/2016,3795100,"1,005.95",DAVID HOWARD LTD CLIENT ACCOUNT
Adults Services,Adult Social Care,Support with Memory and Cognition - adults (18-64),Generic Care Packages SW Team - PS,Social Care - Direct Payments,14/12/2016,3795103,"1,012.81",DAVID HOWARD LTD CLIENT ACCOUNT
Adults Services,Adult Social Care,Support with Memory and Cognition - adults (18-64),CLDS Longer Term Support Teams,Social Care - Direct Payments,14/12/2016,3795104,576.87,D D PAYROLL SERVICES
Adults Services,Adult Social Care,Support with Memory and Cognition - adults (18-64),Generic Care Packages SW Team - PS,Social Care - Direct Payments,14/12/2016,3795105,523.72,D D PAYROLL SERVICES
Adults Services,Adult Social Care,Support with Memory and Cognition - adults (18-64),Generic Care Packages NW Team -PS,Social Care - Direct Payments,14/12/2016,3795107,927.70,DAVID HOWARD LTD CLIENT ACCOUNT
Adults Services,Adult Social Care,Support with Memory and Cognition - adults (18-64),Generic Care Packages NW Team -PS,Social Care - Direct Payments,14/12/2016,3795110,849.27,DAVID HOWARD LTD CLIENT ACCOUNT
Adults Services,Adult Social Care,Support with Memory and Cognition - adults (18-64),Generic Care Packages SE Team -PS,Social Care - Direct Payments,14/12/2016,3795113,"2,880.25",D D PAYROLL SERVICES
Adults Services,Adult Social Care,Support with Memory and Cognition - adults (18-64),Generic Care Packages NE Team -PS,Social Care - Direct Payments,14/12/2016,3795114,814.90,D D PAYROLL SERVICES
Adults Services,Adult Social Care,Support with Memory and Cognition - adults (18-64),CLDS Longer Term Support Teams,Social Care - Direct Payments,14/12/2016,3795115,"1,025.35",D D PAYROLL SERVICES
Adults Services,Adult Social Care,Support with Memory and Cognition - adults (18-64),Generic Care Packages NE Team -PS,Social Care - Direct Payments,14/12/2016,3795116,672.83,DAVID HOWARD LTD CLIENT ACCOUNT
Adults Services,Adult Social Care,Support with Memory and Cognition - adults (18-64),Generic Care Packages NW Team -PS,Social Care - Direct Payments,14/12/2016,3795119,"1,023.00",DAVID HOWARD LTD CLIENT ACCOUNT
Adults Services,Adult Social Care,Support with Memory and Cognition - adults (18-64),Generic Care Packages SE Team -PS,Social Care - Direct Payments,14/12/2016,3795121,923.40,D D PAYROLL SERVICES
Adults Services,Adult Social Care,Support with Memory and Cognition - adults (18-64),Generic Care Packages SW Team - PS,Social Care - Direct Payments,14/12/2016,3795122,"1,405.10",D D PAYROLL SERVICES
Adults Services,Adult Social Care,Support with Memory and Cognition - adults (18-64),CLDS Longer Term Support Teams,Social Care - Direct Payments,14/12/2016,3795123,"3,566.33",D D PAYROLL SERVICES
Adults Services,Adult Social Care,Support with Memory and Cognition - adults (18-64),Generic Care Packages NW Team -PS,Social Care - Direct Payments,14/12/2016,3795124,"1,184.78",D D PAYROLL SERVICES
Adults Services,Adult Social Care,Support with Memory and Cognition - adults (18-64),Generic Care Packages SE Team -PS,Social Care - Direct Payments,14/12/2016,3795125,635.59,DAVID HOWARD LTD CLIENT ACCOUNT
Adults Services,Adult Social Care,Support with Memory and Cognition - adults (18-64),Generic Care Packages NW Team -PS,Social Care - Direct Payments,14/12/2016,3795128,"1,045.19",D D PAYROLL SERVICES
Adults Services,Adult Social Care,Support with Memory and Cognition - adults (18-64),Generic Care Packages SE Team -PS,Social Care - Direct Payments,14/12/2016,3795129,552.02,DAVID HOWARD LTD CLIENT ACCOUNT
Adults Services,Adult Social Care,Support with Memory and Cognition - adults (18-64),Generic Care Packages SW Team - PS,Social Care - Direct Payments,14/12/2016,3795130,"2,341.83",D D PAYROLL SERVICES
Adults Services,Adult Social Care,Support with Memory and Cognition - adults (18-64),Cmht Iod / Poplar South,Social Care - Direct Payments,14/12/2016,3795132,"1,365.11",D D PAYROLL SERVICES
Adults Services,Adult Social Care,Support with Memory and Cognition - adults (18-64),CLDS Longer Term Support Teams,Social Care - Direct Payments,14/12/2016,3795134,"2,066.99",DAVID HOWARD LTD CLIENT ACCOUNT
Adults Services,Adult Social Care,Support with Memory and Cognition - adults (18-64),Generic Care Packages NW Team -PS,Social Care - Direct Payments,14/12/2016,3795135,866.89,DAVID HOWARD LTD CLIENT ACCOUNT
Adults Services,Adult Social Care,Support with Memory and Cognition - adults (18-64),Generic Care Packages SE Team -PS,Social Care - Direct Payments,14/12/2016,3795136,"13,157.60",DAVID HOWARD LTD CLIENT ACCOUNT
Adults Services,Adult Social Care,Support with Memory and Cognition - adults (18-64),Generic Care Packages NE Team -PS,Social Care - Direct Payments,14/12/2016,3795142,"1,268.30",D D PAYROLL SERVICES
Adults Services,Adult Social Care,Support with Memory and Cognition - adults (18-64),CLDS Longer Term Support Teams,Social Care - Direct Payments,14/12/2016,3795143,"9,541.18",DAVID HOWARD LTD CLIENT ACCOUNT
Adults Services,Adult Social Care,Support with Memory and Cognition - adults (18-64),Cmht Iod / Poplar South,Social Care - Direct Payments,14/12/2016,3795144,944.48,DAVID HOWARD LTD CLIENT ACCOUNT
Adults Services,Adult Social Care,Support with Memory and Cognition - adults (18-64),Generic Care Packages NE Team -PS,Social Care - Direct Payments,14/12/2016,3795145,"1,005.29",DAVID HOWARD LTD CLIENT ACCOUNT
Adults Services,Adult Social Care,Support with Memory and Cognition - adults (18-64),Generic Care Packages NW Team -PS,Social Care - Direct Payments,14/12/2016,3795150,654.68,DAVID HOWARD LTD CLIENT ACCOUNT
Adults Services,Adult Social Care,Support with Memory and Cognition - adults (18-64),Generic Care Packages SE Team -PS,Social Care - Direct Payments,14/12/2016,3795154,509.64,DAVID HOWARD LTD CLIENT ACCOUNT
Adults Services,Adult Social Care,Support with Memory and Cognition - adults (18-64),Generic Care Packages NE Team -PS,Social Care - Direct Payments,14/12/2016,3795157,"1,092.88",D D PAYROLL SERVICES
Adults Services,Adult Social Care,Support with Memory and Cognition - adults (18-64),Generic Care Packages SE Team -SI,Social Care - Direct Payments,14/12/2016,3795160,852.63,D D PAYROLL SERVICES
Adults Services,Adult Social Care,Support with Memory and Cognition - adults (18-64),Generic Care Packages SE Team -PS,Social Care - Direct Payments,14/12/2016,3795161,653.17,DAVID HOWARD LTD CLIENT ACCOUNT
Adults Services,Adult Social Care,Support with Memory and Cognition - adults (18-64),Generic Care Packages SE Team -PS,Social Care - Direct Payments,14/12/2016,3795163,521.15,DAVID HOWARD LTD CLIENT ACCOUNT
Adults Services,Adult Social Care,Support with Memory and Cognition - adults (18-64),Generic Care Packages SE Team -PS,Social Care - Direct Payments,14/12/2016,3795164,"1,586.67",DAVID HOWARD LTD CLIENT ACCOUNT
Adults Services,Adult Social Care,Support with Memory and Cognition - adults (18-64),Generic Care Packages NE Team -PS,Social Care - Direct Payments,14/12/2016,3795165,913.39,D D PAYROLL SERVICES
Adults Services,Adult Social Care,Support with Memory and Cognition - adults (18-64),"Generic Care Packages NW Team-MH						",Social Care - Direct Payments,14/12/2016,3795166,725.03,DAVID HOWARD LTD CLIENT ACCOUNT
Adults Services,Adult Social Care,Support with Memory and Cognition - adults (18-64),CLDS Longer Term Support Teams,Social Care - Direct Payments,14/12/2016,3795170,"4,389.95",D D PAYROLL SERVICES
Adults Services,Adult Social Care,Support with Memory and Cognition - adults (18-64),Generic Care Packages SW Team - PS,Social Care - Direct Payments,14/12/2016,3795171,"7,827.28",DAVID HOWARD LTD CLIENT ACCOUNT
Adults Services,Adult Social Care,Support with Memory and Cognition - adults (18-64),Generic Care Packages SW Team - PS,Social Care - Direct Payments,14/12/2016,3795174,737.31,DAVID HOWARD LTD CLIENT ACCOUNT
Adults Services,Adult Social Care,Support with Memory and Cognition - adults (18-64),CLDS Longer Term Support Teams,Social Care - Direct Payments,14/12/2016,3795176,"7,130.13",DAVID HOWARD LTD CLIENT ACCOUNT
Adults Services,Adult Social Care,Support with Memory and Cognition - adults (18-64),CLDS Transition,Social Care - Direct Payments,14/12/2016,3795177,"1,516.43",D D PAYROLL SERVICES
Adults Services,Adult Social Care,Support with Memory and Cognition - adults (18-64),Generic Care Packages NW Team -PS,Social Care - Direct Payments,14/12/2016,3795178,930.93,DAVID HOWARD LTD CLIENT ACCOUNT
Adults Services,Adult Social Care,Support with Memory and Cognition - adults (18-64),Generic Care Packages SW Team - PS,Social Care - Direct Payments,14/12/2016,3795180,"1,453.63",D D PAYROLL SERVICES
Adults Services,Adult Social Care,Support with Memory and Cognition - adults (18-64),Generic Care Packages NE Team -PS,Social Care - Direct Payments,14/12/2016,3795181,641.61,DAVID HOWARD LTD CLIENT ACCOUNT
Adults Services,Adult Social Care,Support with Memory and Cognition - adults (18-64),Generic Care Packages NW Team -PS,Social Care - Direct Payments,14/12/2016,3795182,"1,018.97",DAVID HOWARD LTD CLIENT ACCOUNT
Adults Services,Adult Social Care,Support with Memory and Cognition - adults (18-64),Generic Care Packages SE Team -PS,Social Care - Direct Payments,14/12/2016,3795183,842.23,DAVID HOWARD LTD CLIENT ACCOUNT
Adults Services,Adult Social Care,Support with Memory and Cognition - adults (18-64),Generic Care Packages SE Team -PS,Social Care - Direct Payments,14/12/2016,3795184,531.87,D D PAYROLL SERVICES
Adults Services,Adult Social Care,Support with Memory and Cognition - adults (18-64),Generic Care Packages SW Team - PS,Social Care - Direct Payments,14/12/2016,3795187,"1,429.19",DAVID HOWARD LTD CLIENT ACCOUNT
Adults Services,Adult Social Care,Support with Memory and Cognition - adults (18-64),Generic Care Packages SW Team - PS,Social Care - Direct Payments,14/12/2016,3795189,726.95,DAVID HOWARD LTD CLIENT ACCOUNT
Adults Services,Adult Social Care,Support with Memory and Cognition - adults (18-64),CLDS Longer Term Support Teams,Social Care - Direct Payments,14/12/2016,3795190,637.76,DAVID HOWARD LTD CLIENT ACCOUNT
Adults Services,Adult Social Care,Support with Memory and Cognition - adults (18-64),CLDS Transition,Social Care - Direct Payments,14/12/2016,3795191,"3,509.07",DAVID HOWARD LTD CLIENT ACCOUNT
Adults Services,Adult Social Care,Support with Memory and Cognition - adults (18-64),Generic Care Packages SE Team -PS,Social Care - Direct Payments,14/12/2016,3795192,"14,765.99",DAVID HOWARD LTD CLIENT ACCOUNT
Adults Services,Adult Social Care,Support with Memory and Cognition - adults (18-64),Generic Care Packages NW Team -PS,Social Care - Direct Payments,14/12/2016,3795193,"20,535.88",DAVID HOWARD LTD CLIENT ACCOUNT
Adults Services,Adult Social Care,Support with Memory and Cognition - adults (18-64),Generic Care Packages NW Team -PS,Social Care - Direct Payments,14/12/2016,3795194,940.61,DAVID HOWARD LTD CLIENT ACCOUNT
Adults Services,Adult Social Care,Support with Memory and Cognition - adults (18-64),Generic Care Packages NW Team -PS,Social Care - Direct Payments,14/12/2016,3795216,694.00,Soma Healthcare Ltd
Adults Services,Adult Social Care,Support with Memory and Cognition - adults (18-64),Generic Care Packages NE Team -PS,Social Care - Direct Payments,14/12/2016,3795217,"1,287.25",DAVID HOWARD LTD CLIENT ACCOUNT
Adults Services,Adult Social Care,Support with Memory and Cognition - adults (18-64),Generic Care Packages NW Team -PS,Social Care - Direct Payments,14/12/2016,3795231,"6,603.00",D D PAYROLL SERVICES
Adults Services,Adult Social Care,Support with Memory and Cognition - adults (18-64),Generic Care Packages SW Team - PS,Social Care - Direct Payments,14/12/2016,3795238,"1,127.96",DAVID HOWARD LTD CLIENT ACCOUNT
Adults Services,Adult Social Care,Support with Memory and Cognition - adults (18-64),Generic Care Packages NW Team -PS,Social Care - Direct Payments,14/12/2016,3795243,"1,736.00",DAVID HOWARD LTD CLIENT ACCOUNT
Adults Services,Adult Social Care,Support with Memory and Cognition - adults (18-64),Generic Care Packages SE Team -PS,Social Care - Direct Payments,14/12/2016,3795244,"1,423.21",DAVID HOWARD LTD CLIENT ACCOUNT
Adults Services,Adult Social Care,Support with Memory and Cognition - adults (18-64),Generic Care Packages SW Team -SI,Social Care - Direct Payments,14/12/2016,3795248,"2,149.50",DAVID HOWARD LTD CLIENT ACCOUNT
Adults Services,Adult Social Care,Support with Memory and Cognition - adults (18-64),Generic Care Packages SW Team - PS,Social Care - Direct Payments,14/12/2016,3795256,527.31,DAVID HOWARD LTD CLIENT ACCOUNT
Adults Services,Adult Social Care,Support with Memory and Cognition - adults (18-64),Generic Care Packages SE Team -PS,Social Care - Direct Payments,14/12/2016,3795259,"1,014.94",DAVID HOWARD LTD CLIENT ACCOUNT
Adults Services,Adult Social Care,Support with Memory and Cognition - adults (18-64),Generic Care Packages SE Team -SP,Social Care - Direct Payments,14/12/2016,3795260,709.63,DAVID HOWARD LTD CLIENT ACCOUNT
Adults Services,Adult Social Care,Support with Memory and Cognition - adults (18-64),Generic Care Packages NE Team -SP,Social Care - Direct Payments,14/12/2016,3795262,871.10,DAVID HOWARD LTD CLIENT ACCOUNT
Adults Services,Adult Social Care,Support with Memory and Cognition - adults (18-64),Generic Care Packages SE Team -PS,Social Care - Direct Payments,14/12/2016,3795263,535.77,D D PAYROLL SERVICES
Adults Services,Adult Social Care,Support with Memory and Cognition - adults (18-64),Generic Care Packages SE Team -PS,Social Care - Direct Payments,14/12/2016,3795265,584.17,DAVID HOWARD LTD CLIENT ACCOUNT
Adults Services,Adult Social Care,Support with Memory and Cognition - adults (18-64),Generic Care Packages NW Team -PS,Social Care - Direct Payments,14/12/2016,3795271,"2,806.83",D D PAYROLL SERVICES
Adults Services,Adult Social Care,Support with Memory and Cognition - adults (18-64),"Generic Care Packages SW Team-MH									",Social Care - Direct Payments,14/12/2016,3795275,750.60,DAVID HOWARD LTD CLIENT ACCOUNT
Adults Services,Adult Social Care,Support with Memory and Cognition - adults (18-64),Generic Care Packages SE Team-SMC,Social Care - Direct Payments,14/12/2016,3795283,"1,211.48",DAVID HOWARD LTD CLIENT ACCOUNT
Adults Services,Adult Social Care,Support with Memory and Cognition - adults (18-64),Generic Care Packages SE Team -PS,Social Care - Direct Payments,14/12/2016,3795284,808.39,DAVID HOWARD LTD CLIENT ACCOUNT
Adults Services,Adult Social Care,Support with Memory and Cognition - adults (18-64),Cmht Iod / Poplar South,Social Care - Direct Payments,14/12/2016,3795285,663.58,D D PAYROLL SERVICES
Adults Services,Adult Social Care,Support with Memory and Cognition - adults (18-64),Generic Care Packages SW Team - PS,Social Care - Direct Payments,14/12/2016,3795287,542.50,DAVID HOWARD LTD CLIENT ACCOUNT
Adults Services,Adult Social Care,Support with Memory and Cognition - adults (18-64),Generic Care Packages SE Team -PS,Social Care - Direct Payments,14/12/2016,3795288,851.13,DAVID HOWARD LTD CLIENT ACCOUNT
Adults Services,Adult Social Care,Support with Memory and Cognition - adults (18-64),Generic Care Packages SE Team -PS,Social Care - Direct Payments,14/12/2016,3795299,642.36,DAVID HOWARD LTD CLIENT ACCOUNT
Adults Services,Adult Social Care,Support with Memory and Cognition - adults (18-64),Generic Care Packages SE Team -PS,Social Care - Direct Payments,14/12/2016,3795300,"1,183.27",DAVID HOWARD LTD CLIENT ACCOUNT
Adults Services,Adult Social Care,Support with Memory and Cognition - adults (18-64),Generic Care Packages SE Team -PS,Social Care - Direct Payments,14/12/2016,3795302,755.16,D D PAYROLL SERVICES
Adults Services,Adult Social Care,Support with Memory and Cognition - adults (18-64),Generic Care Packages NW Team -PS,Social Care - Direct Payments,14/12/2016,3795304,580.85,DAVID HOWARD LTD CLIENT ACCOUNT
Adults Services,Adult Social Care,Support with Memory and Cognition - adults (18-64),Generic Care Packages NE Team -PS,Social Care - Direct Payments,14/12/2016,3795305,"1,275.65",D D PAYROLL SERVICES
Adults Services,Adult Social Care,Support with Memory and Cognition - adults (18-64),Generic Care Packages SE Team -PS,Social Care - Direct Payments,14/12/2016,3795308,517.08,D D PAYROLL SERVICES
Adults Services,Adult Social Care,Support with Memory and Cognition - adults (18-64),Cmht For Older People,Social Care - Direct Payments,14/12/2016,3795309,"1,830.55",DAVID HOWARD LTD CLIENT ACCOUNT
Adults Services,Adult Social Care,Support with Memory and Cognition - adults (18-64),Generic Care Packages SE Team -PS,Social Care - Direct Payments,14/12/2016,3795314,"1,770.72",DAVID HOWARD LTD CLIENT ACCOUNT
Adults Services,Adult Social Care,Support with Memory and Cognition - adults (18-64),Generic Care Packages NE Team -PS,Social Care - Direct Payments,14/12/2016,3795321,813.09,D D PAYROLL SERVICES
Adults Services,Adult Social Care,Support with Memory and Cognition - adults (18-64),Generic Care Packages SE Team -PS,Social Care - Direct Payments,14/12/2016,3795323,"1,060.78",DAVID HOWARD LTD CLIENT ACCOUNT
Adults Services,Adult Social Care,Support with Memory and Cognition - adults (18-64),CLDS Longer Term Support Teams,Social Care - Direct Payments,14/12/2016,3795325,707.20,DAVID HOWARD LTD CLIENT ACCOUNT
Adults Services,Adult Social Care,Support with Memory and Cognition - adults (18-64),Generic Care Packages NW Team -PS,Social Care - Direct Payments,14/12/2016,3795326,"6,691.35",D D PAYROLL SERVICES
Adults Services,Adult Social Care,Support with Memory and Cognition - adults (18-64),Generic Care Packages SE Team -PS,Social Care - Direct Payments,14/12/2016,3795327,896.65,DAVID HOWARD LTD CLIENT ACCOUNT
Adults Services,Adult Social Care,Support with Memory and Cognition - adults (18-64),Generic Care Packages SE Team -PS,Social Care - Direct Payments,14/12/2016,3795329,922.91,DAVID HOWARD LTD CLIENT ACCOUNT
Adults Services,Adult Social Care,Support with Memory and Cognition - adults (18-64),Generic Care Packages SW Team - PS,Social Care - Direct Payments,14/12/2016,3795330,599.63,DAVID HOWARD LTD CLIENT ACCOUNT
Adults Services,Adult Social Care,Support with Memory and Cognition - adults (18-64),Generic Care Packages SE Team -PS,Social Care - Direct Payments,14/12/2016,3795334,697.99,D D PAYROLL SERVICES
Adults Services,Adult Social Care,Support with Memory and Cognition - adults (18-64),Generic Care Packages NW Team -PS,Social Care - Direct Payments,14/12/2016,3795337,659.06,DAVID HOWARD LTD CLIENT ACCOUNT
Adults Services,Adult Social Care,Support with Memory and Cognition - adults (18-64),Generic Care Packages NE Team -PS,Social Care - Direct Payments,14/12/2016,3795340,591.57,DAVID HOWARD LTD CLIENT ACCOUNT
Adults Services,Adult Social Care,Support with Memory and Cognition - adults (18-64),CLDS Longer Term Support Teams,Social Care - Direct Payments,14/12/2016,3795344,"1,127.47",DAVID HOWARD LTD CLIENT ACCOUNT
Adults Services,Adult Social Care,Support with Memory and Cognition - adults (18-64),Generic Care Packages SE Team -PS,Social Care - Direct Payments,14/12/2016,3795346,"2,340.32",DAVID HOWARD LTD CLIENT ACCOUNT
Adults Services,Adult Social Care,Support with Memory and Cognition - adults (18-64),Generic Care Packages SE Team -PS,Social Care - Direct Payments,14/12/2016,3795350,790.63,DAVID HOWARD LTD CLIENT ACCOUNT
Adults Services,Adult Social Care,Support with Memory and Cognition - adults (18-64),Generic Care Packages NE Team -PS,Social Care - Direct Payments,14/12/2016,3795351,542.90,DAVID HOWARD LTD CLIENT ACCOUNT
Adults Services,Adult Social Care,Support with Memory and Cognition - adults (18-64),Generic Care Packages SW Team - PS,Social Care - Direct Payments,14/12/2016,3795353,"2,903.33",DAVID HOWARD LTD CLIENT ACCOUNT
Adults Services,Adult Social Care,Support with Memory and Cognition - adults (18-64),Generic Care Packages NW Team -PS,Social Care - Direct Payments,14/12/2016,3795355,663.40,DAVID HOWARD LTD CLIENT ACCOUNT
Adults Services,Adult Social Care,Support with Memory and Cognition - adults (18-64),Generic Care Packages SE Team -PS,Social Care - Direct Payments,14/12/2016,3795356,"1,154.31",DAVID HOWARD LTD CLIENT ACCOUNT
Adults Services,Adult Social Care,Support with Memory and Cognition - adults (18-64),Generic Care Packages SE Team -PS,Social Care - Direct Payments,14/12/2016,3795357,"1,007.15",DAVID HOWARD LTD CLIENT ACCOUNT
Adults Services,Adult Social Care,Support with Memory and Cognition - adults (18-64),Generic Care Packages SW Team - PS,Social Care - Direct Payments,14/12/2016,3795363,609.19,DAVID HOWARD LTD CLIENT ACCOUNT
Adults Services,Adult Social Care,Support with Memory and Cognition - adults (18-64),Generic Care Packages SW Team - PS,Social Care - Direct Payments,14/12/2016,3795365,988.90,DAVID HOWARD LTD CLIENT ACCOUNT
Adults Services,Adult Social Care,Support with Memory and Cognition - adults (18-64),Generic Care Packages NW Team -PS,Social Care - Direct Payments,14/12/2016,3795367,656.58,D D PAYROLL SERVICES
Adults Services,Adult Social Care,Support with Memory and Cognition - adults (18-64),Generic Care Packages NE Team -PS,Social Care - Direct Payments,14/12/2016,3795368,"1,239.42",DAVID HOWARD LTD CLIENT ACCOUNT
Adults Services,Adult Social Care,Support with Memory and Cognition - adults (18-64),CLDS Longer Term Support Teams,Social Care - Direct Payments,14/12/2016,3795370,801.93,DAVID HOWARD LTD CLIENT ACCOUNT
Adults Services,Adult Social Care,Support with Memory and Cognition - adults (18-64),Generic Care Packages SW Team - PS,Social Care - Direct Payments,14/12/2016,3795373,737.31,DAVID HOWARD LTD CLIENT ACCOUNT
Adults Services,Adult Social Care,Support with Memory and Cognition - adults (18-64),Generic Care Packages SE Team -PS,Social Care - Direct Payments,14/12/2016,3795374,863.84,D D PAYROLL SERVICES
Adults Services,Adult Social Care,Support with Memory and Cognition - adults (18-64),Generic Care Packages SE Team -PS,Social Care - Direct Payments,14/12/2016,3795377,"6,550.79",DAVID HOWARD LTD CLIENT ACCOUNT
Adults Services,Adult Social Care,Support with Memory and Cognition - adults (18-64),Generic Care Packages SE Team -PS,Social Care - Direct Payments,14/12/2016,3795379,714.77,DAVID HOWARD LTD CLIENT ACCOUNT
Adults Services,Adult Social Care,Support with Memory and Cognition - adults (18-64),Generic Care Packages SW Team - PS,Social Care - Direct Payments,14/12/2016,3795382,605.21,DAVID HOWARD LTD CLIENT ACCOUNT
Adults Services,Adult Social Care,Support with Memory and Cognition - adults (18-64),Generic Care Packages NW Team -PS,Social Care - Direct Payments,14/12/2016,3795385,810.38,DAVID HOWARD LTD CLIENT ACCOUNT
Adults Services,Adult Social Care,Support with Memory and Cognition - adults (18-64),Generic Care Packages NE Team -PS,Social Care - Direct Payments,14/12/2016,3795386,762.20,D D PAYROLL SERVICES
Adults Services,Adult Social Care,Support with Memory and Cognition - adults (18-64),Generic Care Packages SE Team -PS,Social Care - Nursing Care - Block,14/12/2016,3795390,"63,450.36",H-C ONE
Adults Services,Adult Social Care,Support with Memory and Cognition - adults (18-64),Generic Care Packages SE Team -PS,Social Care - Residential Care - Block,14/12/2016,3795390,"84,434.96",H-C ONE
Adults Services,Adult Social Care,Support with Memory and Cognition - adults (18-64),Generic Care Packages NE Team -PS,Social Care - Residential Care,14/12/2016,3795392,"2,462.19",CAMBRIDGE NURSING HOME
Adults Services,Adult Social Care,Support with Memory and Cognition - adults (18-64),Sight and Hearing Service,Social Care - Residential Care,14/12/2016,3795393,"4,257.36",ACTION ON HEARING LOSS
Adults Services,Adult Social Care,Support with Memory and Cognition - adults (18-64),Sight and Hearing Service,Social Care - Residential Care,14/12/2016,3795394,"4,081.41",ACTION ON HEARING LOSS
Adults Services,Adult Social Care,Support with Memory and Cognition - adults (18-64),Generic Care Packages NW Team -PS,Social Care - Residential Care,14/12/2016,3795395,"2,780.25",ROBERTA HOUSE & ELIZABETH HOUSE
Adults Services,Adult Social Care,Support with Memory and Cognition - adults (18-64),Generic Care Packages SE Team -PS,Social Care - Nursing Care,14/12/2016,3795396,-691.97,HAVERING COURT NURSING HOME
Adults Services,Adult Social Care,Support with Memory and Cognition - adults (18-64),Generic Care Packages NE Team -PS,Social Care - Nursing Care,14/12/2016,3795397,"3,808.35",LEONARD CHESHIRE FOUNDATION
Adults Services,Adult Social Care,Support with Memory and Cognition - adults (18-64),Generic Care Packages SE Team -PS,Social Care - Nursing Care,14/12/2016,3795398,"2,974.23",BUPA CARE HOMES
Adults Services,Adult Social Care,Support with Memory and Cognition - adults (18-64),Generic Care Packages NW Team -PS,Social Care - Residential Care,14/12/2016,3795400,"3,367.22",MISSION CARE
Adults Services,Adult Social Care,Support with Memory and Cognition - adults (18-64),Generic Care Packages SW Team - PS,Social Care - Residential Care,14/12/2016,3795401,"2,530.62",HIGH MEADOW - TERRANCE HOUSE CARE LTD
Adults Services,Adult Social Care,Support with Memory and Cognition - adults (18-64),Generic Care Packages NE Team -PS,Social Care - Residential Care,14/12/2016,3795402,"3,095.61",LEONARD CHESHIRE FOUNDATION
Adults Services,Adult Social Care,Support with Memory and Cognition - adults (18-64),Generic Care Packages NW Team -PS,Social Care - Residential Care,14/12/2016,3795403,"8,685.80",High View Care Services
Adults Services,Adult Social Care,Support with Memory and Cognition - adults (18-64),Generic Care Packages NE Team -PS,Social Care - Residential Care,14/12/2016,3795404,"7,145.98",ASHTEAD HOUSE LTD
Adults Services,Adult Social Care,Support with Memory and Cognition - adults (18-64),Generic Care Packages SW Team - PS,Social Care - Residential Care,14/12/2016,3795405,"3,875.00",ROBERTA HOUSE & ELIZABETH HOUSE
Adults Services,Adult Social Care,Support with Memory and Cognition - adults (18-64),Generic Care Packages SW Team - PS,Social Care - Residential Care,14/12/2016,3795406,"2,946.33",ROBERTA HOUSE & ELIZABETH HOUSE
Adults Services,Adult Social Care,Support with Memory and Cognition - adults (18-64),Generic Care Packages NW Team -PS,Social Care - Residential Care,14/12/2016,3795407,"2,842.70",THE ISLAND RESIDENTIAL HOME LTD
Adults Services,Adult Social Care,Support with Memory and Cognition - adults (18-64),Generic Care Packages SE Team -PS,Social Care - Residential Care,14/12/2016,3795408,"4,412.54",LEONARD CHESHIRE FOUNDATION
Adults Services,Adult Social Care,Support with Memory and Cognition - adults (18-64),Generic Care Packages NW Team -PS,Social Care - Residential Care,14/12/2016,3795409,"3,356.46",ST MUNGO ASSOCIATION
Adults Services,Adult Social Care,Support with Memory and Cognition - adults (18-64),Generic Care Packages NW Team -PS,Social Care - Residential Care,14/12/2016,3795410,"2,630.71",ROBERTA HOUSE & ELIZABETH HOUSE
Adults Services,Adult Social Care,Support with Memory and Cognition - adults (18-64),Generic Care Packages NW Team -PS,Social Care - Residential Care,14/12/2016,3795411,"1,806.68",PARK HOMES (UK) LTD
Adults Services,Adult Social Care,Support with Memory and Cognition - adults (18-64),Generic Care Packages NW Team -PS,Social Care - Residential Care,14/12/2016,3795412,-610.25,MISSION CARE
Adults Services,Adult Social Care,Support with Memory and Cognition - adults (18-64),Generic Care Packages NW Team -PS,Social Care - Residential Care,14/12/2016,3795413,"2,592.89",ROBERTA HOUSE & ELIZABETH HOUSE
Adults Services,Adult Social Care,Support with Memory and Cognition - adults (18-64),Generic Care Packages NW Team -PS,Social Care - Nursing Care,14/12/2016,3795414,"5,541.25",SANCTUARY CARE LTD
Adults Services,Adult Social Care,Support with Memory and Cognition - adults (18-64),Generic Care Packages SW Team - PS,Social Care - Nursing Care,14/12/2016,3795415,"4,192.34",SANCTUARY CARE LTD
Adults Services,Adult Social Care,Support with Memory and Cognition - adults (18-64),Generic Care Packages NE Team -PS,Social Care - Nursing Care,14/12/2016,3795416,"2,945.00",SANCTUARY CARE LTD
Adults Services,Adult Social Care,Support with Memory and Cognition - adults (18-64),Generic Care Packages SW Team - PS,Social Care - Residential Care,14/12/2016,3795417,"2,763.43",GATEWAY HOUSING ASSOCIATION
Adults Services,Adult Social Care,Support with Memory and Cognition - adults (18-64),Generic Care Packages SW Team - PS,Social Care - Prevention & Support,14/12/2016,3795417,885.72,GATEWAY HOUSING ASSOCIATION
Adults Services,Adult Social Care,Support with Memory and Cognition - adults (18-64),SW Team AS - Generic Care Packages,Social Care - Residential Care,14/12/2016,3795418,"2,878.57",LITTLEDENE HOUSE
Adults Services,Adult Social Care,Support with Memory and Cognition - adults (18-64),Generic Care Packages SE Team -PS,Social Care - Nursing Care,14/12/2016,3795419,"5,061.85",HAVERING COURT NURSING HOME
Adults Services,Adult Social Care,Support with Memory and Cognition - adults (18-64),Generic Care Packages NW Team -PS,Social Care - Residential Care,14/12/2016,3795420,"2,763.43",GATEWAY HOUSING ASSOCIATION
Adults Services,Adult Social Care,Support with Memory and Cognition - adults (18-64),Generic Care Packages NW Team -PS,Social Care - Prevention & Support,14/12/2016,3795420,885.72,GATEWAY HOUSING ASSOCIATION
Adults Services,Adult Social Care,Support with Memory and Cognition - adults (18-64),Generic Care Packages SE Team -PS,Social Care - Residential Care,14/12/2016,3795421,"1,982.98",ATTWOODS MANOR RETIREMENT HOME
Adults Services,Adult Social Care,Support with Memory and Cognition - adults (18-64),Generic Care Packages NW Team -PS,Social Care - Residential Care,14/12/2016,3795422,666.53,R&G SPARKES LTD
Adults Services,Adult Social Care,Support with Memory and Cognition - adults (18-64),Generic Care Packages NW Team -PS,Social Care - Residential Care,14/12/2016,3795423,"1,438.26",ROYAL ALFRED SEAFARERS SOCIETY
Adults Services,Adult Social Care,Support with Memory and Cognition - adults (18-64),Cmht For Older People,Social Care - Residential Care,14/12/2016,3795424,"2,213.40",RUNWOOD HOMES PLC
Adults Services,Adult Social Care,Support with Memory and Cognition - adults (18-64),Cmht For Older People,Social Care - Residential Care,14/12/2016,3795425,"1,716.69",MEAVY VIEW
Adults Services,Adult Social Care,Support with Memory and Cognition - adults (18-64),Generic Care Packages SW Team - PS,Social Care - Nursing Care,14/12/2016,3795426,-691.97,SANCTUARY CARE LTD
Adults Services,Adult Social Care,Support with Memory and Cognition - adults (18-64),Generic Care Packages NW Team -PS,Social Care - Nursing Care,14/12/2016,3795427,-691.97,DERHAM HOUSE
Adults Services,Adult Social Care,Support with Memory and Cognition - adults (18-64),Generic Care Packages NW Team -PS,Social Care - Nursing Care,14/12/2016,3795428,"2,762.31",TREES PARK (EAST HAM) LIMITED
Adults Services,Adult Social Care,Support with Memory and Cognition - adults (18-64),Generic Care Packages SE Team-SMC,Social Care - Residential Care,14/12/2016,3795429,"2,635.00",EXCELCARE HOLDING PLC
Adults Services,Adult Social Care,Support with Memory and Cognition - adults (18-64),Cmht For Older People,Social Care - Residential Care,14/12/2016,3795431,"3,029.15",GATEWAY HOUSING ASSOCIATION
Adults Services,Adult Social Care,Support with Memory and Cognition - adults (18-64),Generic Care Packages NE Team -PS,Social Care - Nursing Care,14/12/2016,3795432,"-1,219.99",SANCTUARY CARE LTD
Adults Services,Adult Social Care,Support with Memory and Cognition - adults (18-64),Generic Care Packages NE Team -PS,Social Care - Residential Care,14/12/2016,3795433,"3,029.15",GATEWAY HOUSING ASSOCIATION
Adults Services,Adult Social Care,Support with Memory and Cognition - adults (18-64),Generic Care Packages NW Team -PS,Social Care - Nursing Care,14/12/2016,3795434,-691.97,SANCTUARY CARE LTD
Adults Services,Adult Social Care,Support with Memory and Cognition - adults (18-64),Generic Care Packages SW Team - PS,Social Care - Residential Care,14/12/2016,3795435,"1,534.31",ANCHOR TRUST HOMES ACCOUNT
Adults Services,Adult Social Care,Support with Memory and Cognition - adults (18-64),Generic Care Packages NW Team -PS,Social Care - Residential Care,14/12/2016,3795436,"3,029.15",GATEWAY HOUSING ASSOCIATION
Adults Services,Adult Social Care,Support with Memory and Cognition - adults (18-64),Generic Care Packages SE Team -PS,Social Care - Residential Care,14/12/2016,3795437,"1,171.35",ROBERTA HOUSE & ELIZABETH HOUSE
Adults Services,Adult Social Care,Support with Memory and Cognition - adults (18-64),Generic Care Packages SW Team - PS,Social Care - Nursing Care,14/12/2016,3795438,-691.97,SANCTUARY CARE LTD
Adults Services,Adult Social Care,Support with Memory and Cognition - adults (18-64),Generic Care Packages NE Team -PS,Social Care - Residential Care,14/12/2016,3795440,"2,074.66",ANCHOR TRUST HOMES ACCOUNT
Adults Services,Adult Social Care,Support with Memory and Cognition - adults (18-64),Generic Care Packages NW Team -PS,Social Care - Residential Care,14/12/2016,3795441,"2,236.43",SUMMERDALE COURT CARE CENTRE
Adults Services,Adult Social Care,Support with Memory and Cognition - adults (18-64),Generic Care Packages SW Team - PS,Social Care - Nursing Care,14/12/2016,3795442,-691.97,SANCTUARY CARE LTD
Adults Services,Adult Social Care,Support with Memory and Cognition - adults (18-64),Generic Care Packages SE Team -SI,Social Care - Nursing Care,14/12/2016,3795443,"2,136.02",SUMMERDALE COURT CARE CENTRE
Adults Services,Adult Social Care,Support with Memory and Cognition - adults (18-64),Generic Care Packages NE Team -PS,Social Care - Nursing Care,14/12/2016,3795444,-691.97,SANCTUARY CARE LTD
Adults Services,Adult Social Care,Support with Memory and Cognition - adults (18-64),Generic Care Packages NW Team -PS,Social Care - Residential Care,14/12/2016,3795445,"4,124.98",JOHN GROOMS
Adults Services,Adult Social Care,Support with Memory and Cognition - adults (18-64),Generic Care Packages NW Team -PS,Social Care - Residential Care,14/12/2016,3795446,"1,247.49",ANCHOR TRUST HOMES ACCOUNT
Adults Services,Adult Social Care,Support with Memory and Cognition - adults (18-64),Generic Care Packages NW Team -PS,Social Care - Residential Care,14/12/2016,3795447,"2,074.66",ANCHOR TRUST HOMES ACCOUNT
Adults Services,Adult Social Care,Support with Memory and Cognition - adults (18-64),Generic Care Packages NW Team -PS,Social Care - Residential Care,14/12/2016,3795448,631.28,ANCHOR TRUST HOMES ACCOUNT
Adults Services,Adult Social Care,Support with Memory and Cognition - adults (18-64),Generic Care Packages SW Team - PS,Social Care - Nursing Care,14/12/2016,3795449,"-1,761.64",SANCTUARY CARE LTD
Adults Services,Adult Social Care,Support with Memory and Cognition - adults (18-64),Cmht For Older People,Social Care - Residential Care,14/12/2016,3795450,"2,635.00",EXCELCARE HOLDING PLC
Adults Services,Adult Social Care,Support with Memory and Cognition - adults (18-64),Generic Care Packages SW Team - PS,Social Care - Nursing Care,14/12/2016,3795451,-691.97,SANCTUARY CARE LTD
Adults Services,Adult Social Care,Support with Memory and Cognition - adults (18-64),Generic Care Packages NW Team -PS,Social Care - Nursing Care,14/12/2016,3795452,-691.97,HORNCHURCH VCT LTD
Adults Services,Adult Social Care,Support with Memory and Cognition - adults (18-64),Generic Care Packages SW Team - PS,Social Care - Residential Care,14/12/2016,3795453,"3,029.15",GATEWAY HOUSING ASSOCIATION
Adults Services,Adult Social Care,Support with Memory and Cognition - adults (18-64),Cmht For Older People,Social Care - Residential Care,14/12/2016,3795454,"2,897.40",SANCTUARY CARE LTD
Adults Services,Adult Social Care,Support with Memory and Cognition - adults (18-64),Generic Care Packages NW Team -PS,Social Care - Nursing Care,14/12/2016,3795455,-691.97,SANCTUARY CARE LTD
Adults Services,Adult Social Care,Support with Memory and Cognition - adults (18-64),Generic Care Packages SW Team-SMC,Social Care - Nursing Care,14/12/2016,3795456,"-1,303.77",SANCTUARY CARE LTD
Adults Services,Adult Social Care,Support with Memory and Cognition - adults (18-64),Generic Care Packages NE Team-SMC,Social Care - Residential Care,14/12/2016,3795457,"4,058.83",East Thames Group Ltd
Adults Services,Adult Social Care,Support with Memory and Cognition - adults (18-64),Generic Care Packages SE Team -PS,Social Care - Residential Care,14/12/2016,3795458,"2,299.75",LITTLEDENE HOUSE
Adults Services,Adult Social Care,Support with Memory and Cognition - adults (18-64),Generic Care Packages SE Team -SP,Social Care - Residential Care,14/12/2016,3795459,"3,029.15",GATEWAY HOUSING ASSOCIATION
Adults Services,Adult Social Care,Support with Memory and Cognition - adults (18-64),Generic Care Packages SE Team -PS,Social Care - Residential Care,14/12/2016,3795460,"2,420.43",ANCHOR TRUST HOMES ACCOUNT
Adults Services,Adult Social Care,Support with Memory and Cognition - adults (18-64),Generic Care Packages SW Team - PS,Social Care - Nursing Care,14/12/2016,3795461,"-1,247.97",SANCTUARY CARE LTD
Adults Services,Adult Social Care,Support with Memory and Cognition - adults (18-64),Generic Care Packages SE Team -PS,Social Care - Residential Care,14/12/2016,3795462,"3,029.15",GATEWAY HOUSING ASSOCIATION
Adults Services,Adult Social Care,Support with Memory and Cognition - adults (18-64),Generic Care Packages SW Team - PS,Social Care - Residential Care,14/12/2016,3795463,-578.82,SANCTUARY CARE LTD
Adults Services,Adult Social Care,Support with Memory and Cognition - adults (18-64),Generic Care Packages SW Team - PS,Social Care - Nursing Care,14/12/2016,3795464,"-1,553.60",SANCTUARY CARE LTD
Adults Services,Adult Social Care,Support with Memory and Cognition - adults (18-64),Generic Care Packages SW Team - PS,Social Care - Residential Care,14/12/2016,3795465,"3,029.15",GATEWAY HOUSING ASSOCIATION
Adults Services,Adult Social Care,Support with Memory and Cognition - adults (18-64),Generic Care Packages SW Team - PS,Social Care - Residential Care,14/12/2016,3795466,"3,029.15",GATEWAY HOUSING ASSOCIATION
Adults Services,Adult Social Care,Support with Memory and Cognition - adults (18-64),Generic Care Packages SW Team-SMC,Social Care - Residential Care,14/12/2016,3795467,"3,029.15",GATEWAY HOUSING ASSOCIATION
Adults Services,Adult Social Care,Support with Memory and Cognition - adults (18-64),Generic Care Packages NW Team -PS,Social Care - Residential Care,14/12/2016,3795468,"3,029.15",GATEWAY HOUSING ASSOCIATION
Adults Services,Adult Social Care,Support with Memory and Cognition - adults (18-64),Generic Care Packages NE Team-SMC,Social Care - Residential Care,14/12/2016,3795469,"3,029.15",GATEWAY HOUSING ASSOCIATION
Adults Services,Adult Social Care,Support with Memory and Cognition - adults (18-64),Generic Care Packages NW Team-SMC,Social Care - Residential Care,14/12/2016,3795470,"2,763.43",GATEWAY HOUSING ASSOCIATION
Adults Services,Adult Social Care,Support with Memory and Cognition - adults (18-64),Generic Care Packages NW Team -PS,Social Care - Residential Care,14/12/2016,3795471,"2,763.43",GATEWAY HOUSING ASSOCIATION
Adults Services,Adult Social Care,Support with Memory and Cognition - adults (18-64),Generic Care Packages NW Team -PS,Social Care - Residential Care,14/12/2016,3795472,"2,763.43",GATEWAY HOUSING ASSOCIATION
Adults Services,Adult Social Care,Support with Memory and Cognition - adults (18-64),Generic Care Packages NE Team -PS,Social Care - Residential Care,14/12/2016,3795473,"2,763.43",GATEWAY HOUSING ASSOCIATION
Adults Services,Adult Social Care,Support with Memory and Cognition - adults (18-64),Generic Care Packages SW Team - PS,Social Care - Residential Care,14/12/2016,3795474,"2,763.43",GATEWAY HOUSING ASSOCIATION
Adults Services,Adult Social Care,Support with Memory and Cognition - adults (18-64),Generic Care Packages NW Team-SMC,Social Care - Residential Care,14/12/2016,3795475,"2,763.43",GATEWAY HOUSING ASSOCIATION
Adults Services,Adult Social Care,Support with Memory and Cognition - adults (18-64),Generic Care Packages SW Team-SMC,Social Care - Residential Care,14/12/2016,3795476,"3,029.15",GATEWAY HOUSING ASSOCIATION
Adults Services,Adult Social Care,Support with Memory and Cognition - adults (18-64),Generic Care Packages SW Team-SMC,Social Care - Residential Care,14/12/2016,3795477,"2,763.43",GATEWAY HOUSING ASSOCIATION
Adults Services,Adult Social Care,Support with Memory and Cognition - adults (18-64),Generic Care Packages NW Team -PS,Social Care - Nursing Care,14/12/2016,3795478,-691.97,SANCTUARY CARE LTD
Adults Services,Adult Social Care,Support with Memory and Cognition - adults (18-64),Generic Care Packages NW Team -PS,Social Care - Residential Care,14/12/2016,3795479,"2,236.43",SUMMERDALE COURT CARE CENTRE
Adults Services,Adult Social Care,Support with Memory and Cognition - adults (18-64),Generic Care Packages SE Team-SMC,Social Care - Residential Care,14/12/2016,3795481,"2,124.83",ST MICHAELS LODGE T/A SHAKTHI HEALTHCARE LIMITED
Adults Services,Adult Social Care,Support with Memory and Cognition - adults (18-64),Generic Care Packages NE Team -PS,Social Care - Residential Care,14/12/2016,3795482,-672.56,SANCTUARY CARE LTD
Adults Services,Adult Social Care,Support with Memory and Cognition - adults (18-64),Generic Care Packages NE Team -PS,Social Care - Residential Care,14/12/2016,3795483,"2,074.66",ANCHOR TRUST HOMES ACCOUNT
Adults Services,Adult Social Care,Support with Memory and Cognition - adults (18-64),Generic Care Packages NW Team -PS,Social Care - Residential Care,14/12/2016,3795484,-833.50,CARE FIRST CARE HOMES LTD
Adults Services,Adult Social Care,Support with Memory and Cognition - adults (18-64),Generic Care Packages SW Team - PS,Social Care - Nursing Care,14/12/2016,3795485,-691.97,SANCTUARY CARE LTD
Adults Services,Adult Social Care,Support with Memory and Cognition - adults (18-64),Generic Care Packages SE Team -PS,Social Care - Residential Care,14/12/2016,3795486,"2,422.43",ANCHOR TRUST HOMES ACCOUNT
Adults Services,Adult Social Care,Support with Memory and Cognition - adults (18-64),Generic Care Packages NW Team-SMC,Social Care - Residential Care,14/12/2016,3795487,"2,763.43",GATEWAY HOUSING ASSOCIATION
Adults Services,Adult Social Care,Support with Memory and Cognition - adults (18-64),Generic Care Packages NE Team-SMC,Social Care - Residential Care,14/12/2016,3795488,"3,029.15",GATEWAY HOUSING ASSOCIATION
Adults Services,Adult Social Care,Support with Memory and Cognition - adults (18-64),Generic Care Packages SW Team - PS,Social Care - Nursing Care,14/12/2016,3795489,-691.97,SANCTUARY CARE LTD
Adults Services,Adult Social Care,Support with Memory and Cognition - adults (18-64),Generic Care Packages NE Team -PS,Social Care - Nursing Care,14/12/2016,3795490,"2,009.46",LIFE STYLE CARE (2011) PLC
Adults Services,Adult Social Care,Support with Memory and Cognition - adults (18-64),Generic Care Packages SW Team - PS,Social Care - Nursing Care,14/12/2016,3795491,"-1,256.39",SANCTUARY CARE LTD
Adults Services,Adult Social Care,Support with Memory and Cognition - adults (18-64),Generic Care Packages SW Team - PS,Social Care - Nursing Care,14/12/2016,3795492,"2,005.91",SUMMERDALE COURT CARE CENTRE
Adults Services,Adult Social Care,Support with Memory and Cognition - adults (18-64),Generic Care Packages SW Team - PS,Social Care - Nursing Care,14/12/2016,3795493,-691.97,SANCTUARY CARE LTD
Adults Services,Adult Social Care,Support with Memory and Cognition - adults (18-64),Generic Care Packages NW Team -PS,Social Care - Residential Care,14/12/2016,3795494,"2,022.75",ANCHOR TRUST HOMES ACCOUNT
Adults Services,Adult Social Care,Support with Memory and Cognition - adults (18-64),Generic Care Packages SW Team - PS,Social Care - Nursing Care,14/12/2016,3795495,-691.97,SANCTUARY CARE LTD
Adults Services,Adult Social Care,Support with Memory and Cognition - adults (18-64),Generic Care Packages SW Team - PS,Social Care - Nursing Care,14/12/2016,3795496,-691.97,SANCTUARY CARE LTD
Adults Services,Adult Social Care,Support with Memory and Cognition - adults (18-64),Generic Care Packages SW Team - PS,Social Care - Nursing Care,14/12/2016,3795497,-691.97,SANCTUARY CARE LTD
Adults Services,Adult Social Care,Support with Memory and Cognition - adults (18-64),Generic Care Packages NW Team -PS,Social Care - Residential Care,14/12/2016,3795498,"3,029.15",GATEWAY HOUSING ASSOCIATION
Adults Services,Adult Social Care,Support with Memory and Cognition - adults (18-64),Generic Care Packages SW Team-SMC,Social Care - Nursing Care,14/12/2016,3795499,-691.97,SANCTUARY CARE LTD
Adults Services,Adult Social Care,Support with Memory and Cognition - adults (18-64),"Generic Care Packages NW Team-MH						",Social Care - Residential Care,14/12/2016,3795500,"2,763.43",GATEWAY HOUSING ASSOCIATION
Adults Services,Adult Social Care,Support with Memory and Cognition - adults (18-64),Generic Care Packages NW Team -PS,Social Care - Residential Care,14/12/2016,3795501,"2,457.94",ANCHOR TRUST HOMES ACCOUNT
Adults Services,Adult Social Care,Support with Memory and Cognition - adults (18-64),Cmht For Older People,Social Care - Nursing Care,14/12/2016,3795502,"3,002.56",SANCTUARY CARE LTD
Adults Services,Adult Social Care,Support with Memory and Cognition - adults (18-64),Generic Care Packages SW Team - PS,Social Care - Nursing Care,14/12/2016,3795503,-691.97,SANCTUARY CARE LTD
Adults Services,Adult Social Care,Support with Memory and Cognition - adults (18-64),Generic Care Packages NW Team -PS,Social Care - Residential Care,14/12/2016,3795504,"2,763.43",GATEWAY HOUSING ASSOCIATION
Adults Services,Adult Social Care,Support with Memory and Cognition - adults (18-64),Generic Care Packages SW Team - PS,Social Care - Nursing Care,14/12/2016,3795505,-691.97,SANCTUARY CARE LTD
Adults Services,Adult Social Care,Support with Memory and Cognition - adults (18-64),Generic Care Packages NE Team -PS,Social Care - Nursing Care,14/12/2016,3795506,"2,588.05",CAMBRIDGE NURSING HOME
Adults Services,Adult Social Care,Support with Memory and Cognition - adults (18-64),Generic Care Packages SW Team - PS,Social Care - Residential Care,14/12/2016,3795507,"8,555.60",High View Care Services
Adults Services,Adult Social Care,Support with Memory and Cognition - adults (18-64),Generic Care Packages SW Team - PS,Social Care - Residential Care,14/12/2016,3795508,"3,029.15",GATEWAY HOUSING ASSOCIATION
Adults Services,Adult Social Care,Support with Memory and Cognition - adults (18-64),Generic Care Packages NW Team -PS,Social Care - Residential Care,14/12/2016,3795509,"2,763.43",GATEWAY HOUSING ASSOCIATION
Adults Services,Adult Social Care,Support with Memory and Cognition - adults (18-64),Cmht For Older People,Social Care - Residential Care,14/12/2016,3795510,"1,968.19",RUNWOOD HOMES PLC
Adults Services,Adult Social Care,Support with Memory and Cognition - adults (18-64),Generic Care Packages SE Team-SMC,Social Care - Residential Care,14/12/2016,3795511,"2,763.43",GATEWAY HOUSING ASSOCIATION
Adults Services,Adult Social Care,Support with Memory and Cognition - adults (18-64),Generic Care Packages SW Team - PS,Social Care - Residential Care,14/12/2016,3795512,"3,029.15",GATEWAY HOUSING ASSOCIATION
Adults Services,Adult Social Care,Support with Memory and Cognition - adults (18-64),Cmht For Older People,Social Care - Residential Care,14/12/2016,3795513,"2,763.43",GATEWAY HOUSING ASSOCIATION
Adults Services,Adult Social Care,Support with Memory and Cognition - adults (18-64),Cmht For Older People,Social Care - Residential Care,14/12/2016,3795514,"3,029.15",GATEWAY HOUSING ASSOCIATION
Adults Services,Adult Social Care,Support with Memory and Cognition - adults (18-64),Generic Care Packages SE Team -PS,Social Care - Nursing Care,14/12/2016,3795515,-691.97,SANCTUARY CARE LTD
Adults Services,Adult Social Care,Support with Memory and Cognition - adults (18-64),Generic Care Packages NW Team -PS,Social Care - Residential Care,14/12/2016,3795516,835.09,ALTON HOUSE
Adults Services,Adult Social Care,Support with Memory and Cognition - adults (18-64),Generic Care Packages SE Team -PS,Social Care - Nursing Care,14/12/2016,3795517,-691.97,SANCTUARY CARE LTD
Adults Services,Adult Social Care,Support with Memory and Cognition - adults (18-64),Generic Care Packages NE Team -SP,Social Care - Residential Care,14/12/2016,3795518,"2,763.43",GATEWAY HOUSING ASSOCIATION
Adults Services,Adult Social Care,Support with Memory and Cognition - adults (18-64),Generic Care Packages NE Team -PS,Social Care - Nursing Care,14/12/2016,3795519,"2,296.38",BARCHESTER HEALTHCARE LTD
Adults Services,Adult Social Care,Support with Memory and Cognition - adults (18-64),Generic Care Packages SW Team - PS,Social Care - Nursing Care,14/12/2016,3795520,-691.97,SANCTUARY CARE LTD
Adults Services,Adult Social Care,Support with Memory and Cognition - adults (18-64),Generic Care Packages NW Team -PS,Social Care - Residential Care,14/12/2016,3795521,"3,029.15",GATEWAY HOUSING ASSOCIATION
Adults Services,Adult Social Care,Support with Memory and Cognition - adults (18-64),Cmht For Older People,Social Care - Nursing Care,14/12/2016,3795522,"2,762.31",TREES PARK (EAST HAM) LIMITED
Adults Services,Adult Social Care,Support with Memory and Cognition - adults (18-64),Cmht For Older People,Social Care - Nursing Care,14/12/2016,3795523,"2,294.40",TREES PARK (EAST HAM) LIMITED
Adults Services,Adult Social Care,Support with Memory and Cognition - adults (18-64),Generic Care Packages NE Team -PS,Social Care - Residential Care,14/12/2016,3795524,"2,697.00",SANCTUARY CARE LTD
Adults Services,Adult Social Care,Support with Memory and Cognition - adults (18-64),Generic Care Packages SE Team -PS,Social Care - Residential Care,14/12/2016,3795525,"3,029.15",GATEWAY HOUSING ASSOCIATION
Adults Services,Adult Social Care,Support with Memory and Cognition - adults (18-64),"Generic Care Packages NE Team-MH			",Social Care - Residential Care,14/12/2016,3795526,"2,457.94",ANCHOR TRUST HOMES ACCOUNT
Adults Services,Adult Social Care,Support with Memory and Cognition - adults (18-64),Generic Care Packages NE Team -PS,Social Care - Residential Care,14/12/2016,3795527,"3,830.72",SANCTUARY CARE LTD
Adults Services,Adult Social Care,Support with Memory and Cognition - adults (18-64),Cmht For Older People,Social Care - Residential Care,14/12/2016,3795528,"3,029.15",GATEWAY HOUSING ASSOCIATION
Adults Services,Adult Social Care,Support with Memory and Cognition - adults (18-64),Generic Care Packages SW Team - PS,Social Care - Nursing Care,14/12/2016,3795529,"5,089.53",SANCTUARY CARE LTD
Adults Services,Adult Social Care,Support with Memory and Cognition - adults (18-64),Generic Care Packages SE Team -PS,Social Care - Residential Care - Block,14/12/2016,3795530,"3,029.15",GATEWAY HOUSING ASSOCIATION
Adults Services,Adult Social Care,Support with Memory and Cognition - adults (18-64),Generic Care Packages SE Team -PS,Social Care - Nursing Care,14/12/2016,3795531,"2,945.00",SANCTUARY CARE LTD
Adults Services,Adult Social Care,Support with Memory and Cognition - adults (18-64),Generic Care Packages SW Team-SMC,Social Care - Nursing Care,14/12/2016,3795532,"3,694.53",SANCTUARY CARE LTD
Adults Services,Adult Social Care,Support with Memory and Cognition - adults (18-64),Generic Care Packages SW Team - PS,Social Care - Nursing Care,14/12/2016,3795533,"3,694.53",SANCTUARY CARE LTD
Adults Services,Adult Social Care,Support with Memory and Cognition - adults (18-64),Generic Care Packages SW Team - PS,Social Care - Nursing Care,14/12/2016,3795534,"3,694.53",SANCTUARY CARE LTD
Adults Services,Adult Social Care,Support with Memory and Cognition - adults (18-64),Generic Care Packages SW Team - PS,Social Care - Nursing Care,14/12/2016,3795535,"3,694.53",SANCTUARY CARE LTD
Adults Services,Adult Social Care,Support with Memory and Cognition - adults (18-64),Generic Care Packages NW Team-SMC,Social Care - Nursing Care,14/12/2016,3795536,"3,002.56",SANCTUARY CARE LTD
Adults Services,Adult Social Care,Support with Memory and Cognition - adults (18-64),Generic Care Packages SW Team -SI,Social Care - Residential Care,14/12/2016,3795537,"2,590.72",EXCELCARE HOLDING PLC
Adults Services,Adult Social Care,Support with Memory and Cognition - adults (18-64),Generic Care Packages NE Team -PS,Social Care - Residential Care,14/12/2016,3795538,"2,635.00",EXCELCARE HOLDING PLC
Adults Services,Adult Social Care,Support with Memory and Cognition - adults (18-64),Generic Care Packages NW Team -PS,Social Care - Nursing Care,14/12/2016,3795539,"3,636.97",SANCTUARY CARE LTD
Adults Services,Adult Social Care,Support with Memory and Cognition - adults (18-64),Generic Care Packages SE Team -PS,Social Care - Nursing Care,14/12/2016,3795540,"3,694.53",SANCTUARY CARE LTD
Adults Services,Adult Social Care,Support with Memory and Cognition - adults (18-64),Generic Care Packages NW Team-SMC,Social Care - Nursing Care,14/12/2016,3795541,"3,694.53",SANCTUARY CARE LTD
Adults Services,Adult Social Care,Support with Memory and Cognition - adults (18-64),Generic Care Packages NW Team -PS,Social Care - Nursing Care,14/12/2016,3795542,"3,498.57",SANCTUARY CARE LTD
Adults Services,Adult Social Care,Support with Memory and Cognition - adults (18-64),Generic Care Packages NE Team -PS,Social Care - Nursing Care,14/12/2016,3795543,"3,694.53",SANCTUARY CARE LTD
Adults Services,Adult Social Care,Support with Memory and Cognition - adults (18-64),Generic Care Packages NE Team -PS,Social Care - Nursing Care,14/12/2016,3795544,"3,694.53",SANCTUARY CARE LTD
Adults Services,Adult Social Care,Support with Memory and Cognition - adults (18-64),Generic Care Packages NW Team -PS,Social Care - Nursing Care,14/12/2016,3795545,"3,694.53",SANCTUARY CARE LTD
Adults Services,Adult Social Care,Support with Memory and Cognition - adults (18-64),Generic Care Packages SE Team -PS,Social Care - Nursing Care,14/12/2016,3795546,"3,694.53",SANCTUARY CARE LTD
Adults Services,Adult Social Care,Support with Memory and Cognition - adults (18-64),Generic Care Packages NE Team -PS,Social Care - Nursing Care,14/12/2016,3795547,"3,694.53",SANCTUARY CARE LTD
Adults Services,Adult Social Care,Support with Memory and Cognition - adults (18-64),Generic Care Packages SW Team - PS,Social Care - Nursing Care,14/12/2016,3795548,"3,636.97",SANCTUARY CARE LTD
Adults Services,Adult Social Care,Support with Memory and Cognition - adults (18-64),Generic Care Packages NW Team -PS,Social Care - Nursing Care,14/12/2016,3795549,"3,636.97",SANCTUARY CARE LTD
Adults Services,Adult Social Care,Support with Memory and Cognition - adults (18-64),Generic Care Packages NE Team -PS,Social Care - Nursing Care,14/12/2016,3795550,"3,636.97",SANCTUARY CARE LTD
Adults Services,Adult Social Care,Support with Memory and Cognition - adults (18-64),Generic Care Packages SW Team - PS,Social Care - Nursing Care,14/12/2016,3795551,"3,636.97",SANCTUARY CARE LTD
Adults Services,Adult Social Care,Support with Memory and Cognition - adults (18-64),Generic Care Packages NE Team -PS,Social Care - Nursing Care,14/12/2016,3795552,"3,636.97",SANCTUARY CARE LTD
Adults Services,Adult Social Care,Support with Memory and Cognition - adults (18-64),Generic Care Packages SW Team - PS,Social Care - Nursing Care,14/12/2016,3795553,"3,636.97",SANCTUARY CARE LTD
